Body Name,Date Paid,Transaction Number,Amount,Supplier Name,Supplier Type,Expense Area,Cost Centre Description,Expense Type
Cambridgeshire County Council,06-Oct-20,51301440138,"-84,662.80",STAGECOACH SERVICES LTD,TRADE SUPPLIER,GCP - City Centre Access Project,GCP - City Centre Access Project,Construction - External Professional Fees
Cambridgeshire County Council,26-Oct-20,51301454356,"-65,392.54",CAMBRIDGESHIRE AND PETERBOROUGH NHS FOUNDATION TRUST,TRUST (OTHER),Mental Health Central,Adults MH CPMHT Central costs,Care & Ed Partner Organisations
Cambridgeshire County Council,28-Oct-20,51301457514,"-60,767.86",KISIMUL SCHOOL,CARE ESTABLISHMENT,SEN Placements,Placements - Education,Independent School Placements
Cambridgeshire County Council,08-Oct-20,51301450735,"-19,350.00",Wellingtone  PPM Intelligence,COMPANY,IT Strategy,IT Strategy - Programme,IT Software
Cambridgeshire County Council,27-Oct-20,51301457106,"-16,200.00",Keys PCE Ltd,CARE ESTABLISHMENT,LAC Placements,Placements - residential homes,Agency Placements - In County
Cambridgeshire County Council,29-Oct-20,51301463744,"-14,220.00",Keys PCE Ltd,CARE ESTABLISHMENT,LAC Placements,Placements - residential homes,Agency Placements - Out of  County
Cambridgeshire County Council,27-Oct-20,51301457102,"-12,960.00",Keys PCE Ltd,CARE ESTABLISHMENT,LAC Placements,Placements - residential homes,Agency Placements - In County
Cambridgeshire County Council,27-Oct-20,51301457104,"-12,960.00",Keys PCE Ltd,CARE ESTABLISHMENT,LAC Placements,Placements - residential homes,Agency Placements - In County
Cambridgeshire County Council,28-Oct-20,51301457227,"-10,975.28",KISIMUL SCHOOL,CARE ESTABLISHMENT,SEND High Needs Top Up,SEND Specialist Services-High needs top-up-Post 16,Independent School Placements
Cambridgeshire County Council,08-Oct-20,51301450737,"-10,380.00",Wellingtone  PPM Intelligence,COMPANY,IT Strategy,IT Strategy - Programme,IT Software
Cambridgeshire County Council,08-Oct-20,51301450738,"-9,750.00",Wellingtone  PPM Intelligence,COMPANY,IT Strategy,IT Strategy - Programme,IT Software
Cambridgeshire County Council,27-Oct-20,51301457097,"-9,720.00",Keys PCE Ltd,CARE ESTABLISHMENT,LAC Placements,Placements - residential homes,Agency Placements - In County
Cambridgeshire County Council,05-Oct-20,51301446889,"-9,675.00",FITZWILLIAM HEALTHCARE LTD,CARE ESTABLISHMENT,OP - City & South Blocks,City and South - Long term blocks,Residential Care
Cambridgeshire County Council,05-Oct-20,51301446889,"-9,675.00",FITZWILLIAM HEALTHCARE LTD,CARE ESTABLISHMENT,OP - City & South Blocks,City and South - Long term blocks,Residential Care
Cambridgeshire County Council,16-Oct-20,51301454056,"-9,480.00",Keys PCE Ltd,CARE ESTABLISHMENT,LAC Placements,Placements - residential homes,Agency Placements - Out of  County
Cambridgeshire County Council,05-Oct-20,51301446889,"-8,292.86",FITZWILLIAM HEALTHCARE LTD,CARE ESTABLISHMENT,OP - City & South Blocks,City and South - Long term blocks,Residential Care
Cambridgeshire County Council,05-Oct-20,51301413970,"-7,529.00",Lifeways Community Care,COMPANY,LD - Head of Service,Head of LDP,Supported Living
Cambridgeshire County Council,05-Oct-20,51301413970,"-7,529.00",Lifeways Community Care,COMPANY,LD - Head of Service,Head of LDP,Supported Living
Cambridgeshire County Council,05-Oct-20,51301413970,"-7,529.00",Lifeways Community Care,COMPANY,LD - Head of Service,Head of LDP,Supported Living
Cambridgeshire County Council,05-Oct-20,51301413970,"-7,529.00",Lifeways Community Care,COMPANY,LD - Head of Service,Head of LDP,Supported Living
Cambridgeshire County Council,05-Oct-20,51301413970,"-7,529.00",Lifeways Community Care,COMPANY,LD - Head of Service,Head of LDP,Supported Living
Cambridgeshire County Council,05-Oct-20,51301431581,"-7,268.57",HEADWAY CAMBRIDGESHIRE,CHARITY,Physical Disablity - Cost of Care,Countywide PD Service - Care,Day Care
Cambridgeshire County Council,15-Oct-20,51301440820,"-7,137.33",ASKEWS AND HOLTS LIBRARY SERVICES LTD,TRADE SUPPLIER,Libraries - Support,Support - Stock & Distribution,Books and Multimedia Supplies
Cambridgeshire County Council,29-Oct-20,51301463740,"-7,020.00",Keys PCE Ltd,CARE ESTABLISHMENT,LAC Placements,Placements - residential homes,Agency Placements - Out of  County
Cambridgeshire County Council,05-Oct-20,51301413970,"-6,453.43",Lifeways Community Care,COMPANY,LD - Head of Service,Head of LDP,Supported Living
Cambridgeshire County Council,20-Oct-20,51301454407,"-6,308.45",AVICAN SUPPORT LTD,CARE ESTABLISHMENT,LAC Placements,Placements - 16+,Agency Placements - In County
Cambridgeshire County Council,20-Oct-20,51301454405,"-5,046.76",AVICAN SUPPORT LTD,CARE ESTABLISHMENT,LAC Placements,Placements - 16+,Agency Placements - In County
Cambridgeshire County Council,28-Oct-20,51301444643,"-5,011.55",AXIOM HOUSING ASSOCIATION LTD,CARE ESTABLISHMENT,AMH - Hunts & Fens,Hunts Mental Health Team,Domiciliary Care
Cambridgeshire County Council,16-Oct-20,51301454048,"-5,000.00",CHARTWELL HOUSE,CARE ESTABLISHMENT,LAC Placements,Placements - residential homes,Agency Placements - In County
Cambridgeshire County Council,16-Oct-20,51301454057,"-4,740.00",Keys PCE Ltd,CARE ESTABLISHMENT,LAC Placements,Placements - residential homes,Agency Placements - Out of  County
Cambridgeshire County Council,20-Oct-20,51301454403,"-4,686.28",AVICAN SUPPORT LTD,CARE ESTABLISHMENT,LAC Placements,Placements - 16+,Agency Placements - In County
Cambridgeshire County Council,29-Oct-20,51301463138,"-3,843.75",THE ELMS NURSING HOME,CARE ESTABLISHMENT,OP - Fenland Locality - Cost of Care,Older People - Fenland - Care,Residential Care
Cambridgeshire County Council,05-Oct-20,51301446890,"-3,720.00",ALIWAL HEALTHCARE LTD,CARE ESTABLISHMENT,OP - Fenland Blocks,Fenland - Long term blocks,Residential Care
Cambridgeshire County Council,05-Oct-20,51301446890,"-3,720.00",ALIWAL HEALTHCARE LTD,CARE ESTABLISHMENT,OP - Fenland Blocks,Fenland - Long term blocks,Residential Care
Cambridgeshire County Council,05-Oct-20,51301446890,"-3,720.00",ALIWAL HEALTHCARE LTD,CARE ESTABLISHMENT,OP - Fenland Blocks,Fenland - Long term blocks,Residential Care
Cambridgeshire County Council,05-Oct-20,51301446890,"-3,720.00",ALIWAL HEALTHCARE LTD,CARE ESTABLISHMENT,OP - Fenland Blocks,Fenland - Long term blocks,Residential Care
Cambridgeshire County Council,05-Oct-20,51301446890,"-3,720.00",ALIWAL HEALTHCARE LTD,CARE ESTABLISHMENT,OP - Fenland Blocks,Fenland - Long term blocks,Residential Care
Cambridgeshire County Council,05-Oct-20,51301446890,"-3,720.00",ALIWAL HEALTHCARE LTD,CARE ESTABLISHMENT,OP - Fenland Blocks,Fenland - Long term blocks,Residential Care
Cambridgeshire County Council,05-Oct-20,51301446890,"-3,720.00",ALIWAL HEALTHCARE LTD,CARE ESTABLISHMENT,OP - Fenland Blocks,Fenland - Long term blocks,Residential Care
Cambridgeshire County Council,05-Oct-20,51301446890,"-3,720.00",ALIWAL HEALTHCARE LTD,CARE ESTABLISHMENT,OP - Fenland Blocks,Fenland - Long term blocks,Residential Care
Cambridgeshire County Council,05-Oct-20,51301446890,"-3,720.00",ALIWAL HEALTHCARE LTD,CARE ESTABLISHMENT,OP - Fenland Blocks,Fenland - Long term blocks,Residential Care
Cambridgeshire County Council,05-Oct-20,51301446890,"-3,720.00",ALIWAL HEALTHCARE LTD,CARE ESTABLISHMENT,OP - Fenland Blocks,Fenland - Long term blocks,Residential Care
Cambridgeshire County Council,05-Oct-20,51301449398,"-3,487.00",Olive Healthcare Solutions Limited,CARE ESTABLISHMENT,OP - Hunts Locality - Cost of Care,Hunts OP Team - Care,Domiciliary Care
Cambridgeshire County Council,29-Oct-20,51301453535,"-3,251.26",GLENHOLME HEALTHCARE LTD,CARE ESTABLISHMENT,LD - Young Adults Team,LD - Young Adults - Care,Residential Care
Cambridgeshire County Council,29-Oct-20,51301453535,"-3,251.26",GLENHOLME HEALTHCARE LTD,CARE ESTABLISHMENT,LD - Young Adults Team,LD - Young Adults - Care,Residential Care
Cambridgeshire County Council,29-Oct-20,51301453535,"-3,251.26",GLENHOLME HEALTHCARE LTD,CARE ESTABLISHMENT,LD - Young Adults Team,LD - Young Adults - Care,Residential Care
Cambridgeshire County Council,29-Oct-20,51301453535,"-3,251.26",GLENHOLME HEALTHCARE LTD,CARE ESTABLISHMENT,LD - Young Adults Team,LD - Young Adults - Care,Residential Care
Cambridgeshire County Council,29-Oct-20,51301453535,"-3,251.26",GLENHOLME HEALTHCARE LTD,CARE ESTABLISHMENT,LD - Young Adults Team,LD - Young Adults - Care,Residential Care
Cambridgeshire County Council,29-Oct-20,51301453535,"-3,251.26",GLENHOLME HEALTHCARE LTD,CARE ESTABLISHMENT,LD - Young Adults Team,LD - Young Adults - Care,Residential Care
Cambridgeshire County Council,06-Oct-20,51301449750,"-3,210.00",LITTLE ACORNS FOSTERING LTD,CARE ESTABLISHMENT,LAC Placements,Placements - independent fostering,Agency Placements - Out of  County
Cambridgeshire County Council,16-Oct-20,51301451500,"-3,037.07",FOSTERING SOLUTIONS LTD,CARE ESTABLISHMENT,LAC Placements,Placements - independent fostering,Agency Placements - Out of  County
Cambridgeshire County Council,09-Oct-20,51301451201,"-2,931.30",KITES CHILDRENS SERVICES LIMITED,CARE ESTABLISHMENT,LAC Placements,Placements - residential schools,Agency Placements - Out of  County
Cambridgeshire County Council,29-Oct-20,51301453535,"-2,786.79",GLENHOLME HEALTHCARE LTD,CARE ESTABLISHMENT,LD - Young Adults Team,LD - Young Adults - Care,Residential Care
Cambridgeshire County Council,06-Oct-20,51301449754,"-2,782.00",LITTLE ACORNS FOSTERING LTD,CARE ESTABLISHMENT,LAC Placements,Placements - independent fostering,Agency Placements - Out of  County
Cambridgeshire County Council,22-Oct-20,51301455150,"-2,691.43",WEIGHTMANS LLP,TRADE SUPPLIER,C&I - Capitalisation of Interest Costs,C&I - Capitalisation of Interest Costs,Insurance Fund External
Cambridgeshire County Council,28-Oct-20,51301457531,"-2,358.66",Redacted Personal Data ,INDIVIDUAL,Children's Disability Direct Payments,CSC Direct Payments,Direct Payments
Cambridgeshire County Council,09-Oct-20,51301393315,"-2,356.12",VODAFONE LTD,TRADE SUPPLIER,"Telephony, CPSN & MFD",Corporate Telephony,Telephone equipment & installation
Cambridgeshire County Council,05-Oct-20,51301446890,"-2,125.71",ALIWAL HEALTHCARE LTD,CARE ESTABLISHMENT,OP - Fenland Blocks,Fenland - Long term blocks,Residential Care
Cambridgeshire County Council,05-Oct-20,51301444598,"-1,991.55",AUGUSTA CARE LTD,CARE ESTABLISHMENT,OPMH - Hunts & Fens,Older People Mental Health Fenland,Supported Living
Cambridgeshire County Council,09-Oct-20,51301451124,"-1,903.51",FITZROY SUPPORTED,CARE ESTABLISHMENT,LD - Fenland Locality - Cost of Care,LD - Fenland  - Care,Supported Living
Cambridgeshire County Council,09-Oct-20,51301451124,"-1,903.51",FITZROY SUPPORTED,CARE ESTABLISHMENT,LD - Fenland Locality - Cost of Care,LD - Fenland  - Care,Supported Living
Cambridgeshire County Council,09-Oct-20,51301451124,"-1,903.51",FITZROY SUPPORTED,CARE ESTABLISHMENT,LD - Fenland Locality - Cost of Care,LD - Fenland  - Care,Supported Living
Cambridgeshire County Council,09-Oct-20,51301451124,"-1,903.51",FITZROY SUPPORTED,CARE ESTABLISHMENT,LD - Fenland Locality - Cost of Care,LD - Fenland  - Care,Supported Living
Cambridgeshire County Council,09-Oct-20,51301451124,"-1,903.51",FITZROY SUPPORTED,CARE ESTABLISHMENT,LD - Fenland Locality - Cost of Care,LD - Fenland  - Care,Supported Living
Cambridgeshire County Council,09-Oct-20,51301451124,"-1,903.51",FITZROY SUPPORTED,CARE ESTABLISHMENT,LD - Fenland Locality - Cost of Care,LD - Fenland  - Care,Supported Living
Cambridgeshire County Council,09-Oct-20,51301451124,"-1,903.51",FITZROY SUPPORTED,CARE ESTABLISHMENT,LD - Fenland Locality - Cost of Care,LD - Fenland  - Care,Supported Living
Cambridgeshire County Council,09-Oct-20,51301451124,"-1,903.51",FITZROY SUPPORTED,CARE ESTABLISHMENT,LD - Fenland Locality - Cost of Care,LD - Fenland  - Care,Supported Living
Cambridgeshire County Council,09-Oct-20,51301451124,"-1,903.51",FITZROY SUPPORTED,CARE ESTABLISHMENT,LD - Fenland Locality - Cost of Care,LD - Fenland  - Care,Supported Living
Cambridgeshire County Council,09-Oct-20,51301451124,"-1,903.51",FITZROY SUPPORTED,CARE ESTABLISHMENT,LD - Fenland Locality - Cost of Care,LD - Fenland  - Care,Supported Living
Cambridgeshire County Council,09-Oct-20,51301451124,"-1,903.51",FITZROY SUPPORTED,CARE ESTABLISHMENT,LD - Fenland Locality - Cost of Care,LD - Fenland  - Care,Supported Living
Cambridgeshire County Council,09-Oct-20,51301451124,"-1,903.51",FITZROY SUPPORTED,CARE ESTABLISHMENT,LD - Fenland Locality - Cost of Care,LD - Fenland  - Care,Supported Living
Cambridgeshire County Council,09-Oct-20,51301451124,"-1,903.51",FITZROY SUPPORTED,CARE ESTABLISHMENT,LD - Fenland Locality - Cost of Care,LD - Fenland  - Care,Supported Living
Cambridgeshire County Council,09-Oct-20,51301451124,"-1,903.51",FITZROY SUPPORTED,CARE ESTABLISHMENT,LD - Fenland Locality - Cost of Care,LD - Fenland  - Care,Supported Living
Cambridgeshire County Council,09-Oct-20,51301451124,"-1,903.51",FITZROY SUPPORTED,CARE ESTABLISHMENT,LD - Fenland Locality - Cost of Care,LD - Fenland  - Care,Supported Living
Cambridgeshire County Council,09-Oct-20,51301451124,"-1,903.51",FITZROY SUPPORTED,CARE ESTABLISHMENT,LD - Fenland Locality - Cost of Care,LD - Fenland  - Care,Supported Living
Cambridgeshire County Council,09-Oct-20,51301451124,"-1,903.51",FITZROY SUPPORTED,CARE ESTABLISHMENT,LD - Fenland Locality - Cost of Care,LD - Fenland  - Care,Supported Living
Cambridgeshire County Council,09-Oct-20,51301451124,"-1,903.51",FITZROY SUPPORTED,CARE ESTABLISHMENT,LD - Fenland Locality - Cost of Care,LD - Fenland  - Care,Supported Living
Cambridgeshire County Council,09-Oct-20,51301451124,"-1,903.51",FITZROY SUPPORTED,CARE ESTABLISHMENT,LD - Fenland Locality - Cost of Care,LD - Fenland  - Care,Supported Living
Cambridgeshire County Council,09-Oct-20,51301451124,"-1,903.51",FITZROY SUPPORTED,CARE ESTABLISHMENT,LD - Fenland Locality - Cost of Care,LD - Fenland  - Care,Supported Living
Cambridgeshire County Council,09-Oct-20,51301451124,"-1,903.51",FITZROY SUPPORTED,CARE ESTABLISHMENT,LD - Fenland Locality - Cost of Care,LD - Fenland  - Care,Supported Living
Cambridgeshire County Council,09-Oct-20,51301451124,"-1,903.51",FITZROY SUPPORTED,CARE ESTABLISHMENT,LD - Fenland Locality - Cost of Care,LD - Fenland  - Care,Supported Living
Cambridgeshire County Council,09-Oct-20,51301451124,"-1,903.51",FITZROY SUPPORTED,CARE ESTABLISHMENT,LD - Fenland Locality - Cost of Care,LD - Fenland  - Care,Supported Living
Cambridgeshire County Council,09-Oct-20,51301451124,"-1,903.51",FITZROY SUPPORTED,CARE ESTABLISHMENT,LD - Fenland Locality - Cost of Care,LD - Fenland  - Care,Supported Living
Cambridgeshire County Council,09-Oct-20,51301451124,"-1,903.51",FITZROY SUPPORTED,CARE ESTABLISHMENT,LD - Fenland Locality - Cost of Care,LD - Fenland  - Care,Supported Living
Cambridgeshire County Council,09-Oct-20,51301451124,"-1,903.51",FITZROY SUPPORTED,CARE ESTABLISHMENT,LD - Fenland Locality - Cost of Care,LD - Fenland  - Care,Supported Living
Cambridgeshire County Council,09-Oct-20,51301451124,"-1,903.51",FITZROY SUPPORTED,CARE ESTABLISHMENT,LD - Fenland Locality - Cost of Care,LD - Fenland  - Care,Supported Living
Cambridgeshire County Council,09-Oct-20,51301451124,"-1,903.51",FITZROY SUPPORTED,CARE ESTABLISHMENT,LD - Fenland Locality - Cost of Care,LD - Fenland  - Care,Supported Living
Cambridgeshire County Council,09-Oct-20,51301451124,"-1,903.51",FITZROY SUPPORTED,CARE ESTABLISHMENT,LD - Fenland Locality - Cost of Care,LD - Fenland  - Care,Supported Living
Cambridgeshire County Council,09-Oct-20,51301451124,"-1,903.51",FITZROY SUPPORTED,CARE ESTABLISHMENT,LD - Fenland Locality - Cost of Care,LD - Fenland  - Care,Supported Living
Cambridgeshire County Council,09-Oct-20,51301451124,"-1,903.51",FITZROY SUPPORTED,CARE ESTABLISHMENT,LD - Fenland Locality - Cost of Care,LD - Fenland  - Care,Supported Living
Cambridgeshire County Council,09-Oct-20,51301451124,"-1,903.51",FITZROY SUPPORTED,CARE ESTABLISHMENT,LD - Fenland Locality - Cost of Care,LD - Fenland  - Care,Supported Living
Cambridgeshire County Council,09-Oct-20,51301451124,"-1,903.51",FITZROY SUPPORTED,CARE ESTABLISHMENT,LD - Fenland Locality - Cost of Care,LD - Fenland  - Care,Supported Living
Cambridgeshire County Council,09-Oct-20,51301451124,"-1,903.51",FITZROY SUPPORTED,CARE ESTABLISHMENT,LD - Fenland Locality - Cost of Care,LD - Fenland  - Care,Supported Living
Cambridgeshire County Council,09-Oct-20,51301451124,"-1,903.51",FITZROY SUPPORTED,CARE ESTABLISHMENT,LD - Fenland Locality - Cost of Care,LD - Fenland  - Care,Supported Living
Cambridgeshire County Council,09-Oct-20,51301451124,"-1,903.51",FITZROY SUPPORTED,CARE ESTABLISHMENT,LD - Fenland Locality - Cost of Care,LD - Fenland  - Care,Supported Living
Cambridgeshire County Council,09-Oct-20,51301451124,"-1,903.51",FITZROY SUPPORTED,CARE ESTABLISHMENT,LD - Fenland Locality - Cost of Care,LD - Fenland  - Care,Supported Living
Cambridgeshire County Council,09-Oct-20,51301451124,"-1,903.51",FITZROY SUPPORTED,CARE ESTABLISHMENT,LD - Fenland Locality - Cost of Care,LD - Fenland  - Care,Supported Living
Cambridgeshire County Council,09-Oct-20,51301451124,"-1,903.51",FITZROY SUPPORTED,CARE ESTABLISHMENT,LD - Fenland Locality - Cost of Care,LD - Fenland  - Care,Supported Living
Cambridgeshire County Council,09-Oct-20,51301451124,"-1,903.51",FITZROY SUPPORTED,CARE ESTABLISHMENT,LD - Fenland Locality - Cost of Care,LD - Fenland  - Care,Supported Living
Cambridgeshire County Council,09-Oct-20,51301451124,"-1,903.51",FITZROY SUPPORTED,CARE ESTABLISHMENT,LD - Fenland Locality - Cost of Care,LD - Fenland  - Care,Supported Living
Cambridgeshire County Council,09-Oct-20,51301451124,"-1,903.51",FITZROY SUPPORTED,CARE ESTABLISHMENT,LD - Fenland Locality - Cost of Care,LD - Fenland  - Care,Supported Living
Cambridgeshire County Council,09-Oct-20,51301451124,"-1,903.51",FITZROY SUPPORTED,CARE ESTABLISHMENT,LD - Fenland Locality - Cost of Care,LD - Fenland  - Care,Supported Living
Cambridgeshire County Council,09-Oct-20,51301451124,"-1,903.51",FITZROY SUPPORTED,CARE ESTABLISHMENT,LD - Fenland Locality - Cost of Care,LD - Fenland  - Care,Supported Living
Cambridgeshire County Council,09-Oct-20,51301451124,"-1,903.51",FITZROY SUPPORTED,CARE ESTABLISHMENT,LD - Fenland Locality - Cost of Care,LD - Fenland  - Care,Supported Living
Cambridgeshire County Council,09-Oct-20,51301451124,"-1,903.51",FITZROY SUPPORTED,CARE ESTABLISHMENT,LD - Fenland Locality - Cost of Care,LD - Fenland  - Care,Supported Living
Cambridgeshire County Council,09-Oct-20,51301451124,"-1,903.51",FITZROY SUPPORTED,CARE ESTABLISHMENT,LD - Fenland Locality - Cost of Care,LD - Fenland  - Care,Supported Living
Cambridgeshire County Council,09-Oct-20,51301451124,"-1,903.51",FITZROY SUPPORTED,CARE ESTABLISHMENT,LD - Fenland Locality - Cost of Care,LD - Fenland  - Care,Supported Living
Cambridgeshire County Council,09-Oct-20,51301451124,"-1,903.51",FITZROY SUPPORTED,CARE ESTABLISHMENT,LD - Fenland Locality - Cost of Care,LD - Fenland  - Care,Supported Living
Cambridgeshire County Council,09-Oct-20,51301451124,"-1,903.51",FITZROY SUPPORTED,CARE ESTABLISHMENT,LD - Fenland Locality - Cost of Care,LD - Fenland  - Care,Supported Living
Cambridgeshire County Council,09-Oct-20,51301451124,"-1,903.51",FITZROY SUPPORTED,CARE ESTABLISHMENT,LD - Fenland Locality - Cost of Care,LD - Fenland  - Care,Supported Living
Cambridgeshire County Council,09-Oct-20,51301451124,"-1,903.51",FITZROY SUPPORTED,CARE ESTABLISHMENT,LD - Fenland Locality - Cost of Care,LD - Fenland  - Care,Supported Living
Cambridgeshire County Council,09-Oct-20,51301451124,"-1,903.51",FITZROY SUPPORTED,CARE ESTABLISHMENT,LD - Fenland Locality - Cost of Care,LD - Fenland  - Care,Supported Living
Cambridgeshire County Council,09-Oct-20,51301451124,"-1,903.51",FITZROY SUPPORTED,CARE ESTABLISHMENT,LD - Fenland Locality - Cost of Care,LD - Fenland  - Care,Supported Living
Cambridgeshire County Council,29-Oct-20,51301454003,"-1,876.75",MAYFIELD HEATH FARM,CARE ESTABLISHMENT,LD - Hunts Locality - Cost of Care,LD - Huntingdonshire - Care,Supported Living
Cambridgeshire County Council,29-Oct-20,51301454003,"-1,876.75",MAYFIELD HEATH FARM,CARE ESTABLISHMENT,LD - Hunts Locality - Cost of Care,LD - Huntingdonshire - Care,Supported Living
Cambridgeshire County Council,29-Oct-20,51301454003,"-1,876.75",MAYFIELD HEATH FARM,CARE ESTABLISHMENT,LD - Hunts Locality - Cost of Care,LD - Huntingdonshire - Care,Supported Living
Cambridgeshire County Council,29-Oct-20,51301454003,"-1,876.75",MAYFIELD HEATH FARM,CARE ESTABLISHMENT,LD - Hunts Locality - Cost of Care,LD - Huntingdonshire - Care,Supported Living
Cambridgeshire County Council,29-Oct-20,51301454003,"-1,876.75",MAYFIELD HEATH FARM,CARE ESTABLISHMENT,LD - Hunts Locality - Cost of Care,LD - Huntingdonshire - Care,Supported Living
Cambridgeshire County Council,29-Oct-20,51301454003,"-1,876.75",MAYFIELD HEATH FARM,CARE ESTABLISHMENT,LD - Hunts Locality - Cost of Care,LD - Huntingdonshire - Care,Supported Living
Cambridgeshire County Council,29-Oct-20,51301454003,"-1,876.75",MAYFIELD HEATH FARM,CARE ESTABLISHMENT,LD - Hunts Locality - Cost of Care,LD - Huntingdonshire - Care,Supported Living
Cambridgeshire County Council,29-Oct-20,51301454003,"-1,876.75",MAYFIELD HEATH FARM,CARE ESTABLISHMENT,LD - Hunts Locality - Cost of Care,LD - Huntingdonshire - Care,Supported Living
Cambridgeshire County Council,29-Oct-20,51301454003,"-1,876.75",MAYFIELD HEATH FARM,CARE ESTABLISHMENT,LD - Hunts Locality - Cost of Care,LD - Huntingdonshire - Care,Supported Living
Cambridgeshire County Council,29-Oct-20,51301454003,"-1,876.75",MAYFIELD HEATH FARM,CARE ESTABLISHMENT,LD - Hunts Locality - Cost of Care,LD - Huntingdonshire - Care,Supported Living
Cambridgeshire County Council,29-Oct-20,51301454003,"-1,876.75",MAYFIELD HEATH FARM,CARE ESTABLISHMENT,LD - Hunts Locality - Cost of Care,LD - Huntingdonshire - Care,Supported Living
Cambridgeshire County Council,29-Oct-20,51301454003,"-1,876.75",MAYFIELD HEATH FARM,CARE ESTABLISHMENT,LD - Hunts Locality - Cost of Care,LD - Huntingdonshire - Care,Supported Living
Cambridgeshire County Council,29-Oct-20,51301454003,"-1,876.75",MAYFIELD HEATH FARM,CARE ESTABLISHMENT,LD - Hunts Locality - Cost of Care,LD - Huntingdonshire - Care,Supported Living
Cambridgeshire County Council,29-Oct-20,51301454003,"-1,876.75",MAYFIELD HEATH FARM,CARE ESTABLISHMENT,LD - Hunts Locality - Cost of Care,LD - Huntingdonshire - Care,Supported Living
Cambridgeshire County Council,29-Oct-20,51301454003,"-1,876.75",MAYFIELD HEATH FARM,CARE ESTABLISHMENT,LD - Hunts Locality - Cost of Care,LD - Huntingdonshire - Care,Supported Living
Cambridgeshire County Council,29-Oct-20,51301454003,"-1,876.75",MAYFIELD HEATH FARM,CARE ESTABLISHMENT,LD - Hunts Locality - Cost of Care,LD - Huntingdonshire - Care,Supported Living
Cambridgeshire County Council,29-Oct-20,51301454003,"-1,876.75",MAYFIELD HEATH FARM,CARE ESTABLISHMENT,LD - Hunts Locality - Cost of Care,LD - Huntingdonshire - Care,Supported Living
Cambridgeshire County Council,29-Oct-20,51301454003,"-1,876.75",MAYFIELD HEATH FARM,CARE ESTABLISHMENT,LD - Hunts Locality - Cost of Care,LD - Huntingdonshire - Care,Supported Living
Cambridgeshire County Council,29-Oct-20,51301454003,"-1,876.75",MAYFIELD HEATH FARM,CARE ESTABLISHMENT,LD - Hunts Locality - Cost of Care,LD - Huntingdonshire - Care,Supported Living
Cambridgeshire County Council,29-Oct-20,51301454003,"-1,876.75",MAYFIELD HEATH FARM,CARE ESTABLISHMENT,LD - Hunts Locality - Cost of Care,LD - Huntingdonshire - Care,Supported Living
Cambridgeshire County Council,29-Oct-20,51301454003,"-1,876.75",MAYFIELD HEATH FARM,CARE ESTABLISHMENT,LD - Hunts Locality - Cost of Care,LD - Huntingdonshire - Care,Supported Living
Cambridgeshire County Council,29-Oct-20,51301454003,"-1,876.75",MAYFIELD HEATH FARM,CARE ESTABLISHMENT,LD - Hunts Locality - Cost of Care,LD - Huntingdonshire - Care,Supported Living
Cambridgeshire County Council,29-Oct-20,51301454003,"-1,876.75",MAYFIELD HEATH FARM,CARE ESTABLISHMENT,LD - Hunts Locality - Cost of Care,LD - Huntingdonshire - Care,Supported Living
Cambridgeshire County Council,29-Oct-20,51301454003,"-1,876.75",MAYFIELD HEATH FARM,CARE ESTABLISHMENT,LD - Hunts Locality - Cost of Care,LD - Huntingdonshire - Care,Supported Living
Cambridgeshire County Council,29-Oct-20,51301454003,"-1,876.75",MAYFIELD HEATH FARM,CARE ESTABLISHMENT,LD - Hunts Locality - Cost of Care,LD - Huntingdonshire - Care,Supported Living
Cambridgeshire County Council,29-Oct-20,51301454003,"-1,876.75",MAYFIELD HEATH FARM,CARE ESTABLISHMENT,LD - Hunts Locality - Cost of Care,LD - Huntingdonshire - Care,Supported Living
Cambridgeshire County Council,29-Oct-20,51301454003,"-1,876.75",MAYFIELD HEATH FARM,CARE ESTABLISHMENT,LD - Hunts Locality - Cost of Care,LD - Huntingdonshire - Care,Supported Living
Cambridgeshire County Council,29-Oct-20,51301454003,"-1,876.75",MAYFIELD HEATH FARM,CARE ESTABLISHMENT,LD - Hunts Locality - Cost of Care,LD - Huntingdonshire - Care,Supported Living
Cambridgeshire County Council,29-Oct-20,51301454003,"-1,876.75",MAYFIELD HEATH FARM,CARE ESTABLISHMENT,LD - Hunts Locality - Cost of Care,LD - Huntingdonshire - Care,Supported Living
Cambridgeshire County Council,29-Oct-20,51301454003,"-1,876.75",MAYFIELD HEATH FARM,CARE ESTABLISHMENT,LD - Hunts Locality - Cost of Care,LD - Huntingdonshire - Care,Supported Living
Cambridgeshire County Council,29-Oct-20,51301454003,"-1,876.75",MAYFIELD HEATH FARM,CARE ESTABLISHMENT,LD - Hunts Locality - Cost of Care,LD - Huntingdonshire - Care,Supported Living
Cambridgeshire County Council,29-Oct-20,51301454003,"-1,876.75",MAYFIELD HEATH FARM,CARE ESTABLISHMENT,LD - Hunts Locality - Cost of Care,LD - Huntingdonshire - Care,Supported Living
Cambridgeshire County Council,29-Oct-20,51301454003,"-1,876.75",MAYFIELD HEATH FARM,CARE ESTABLISHMENT,LD - Hunts Locality - Cost of Care,LD - Huntingdonshire - Care,Supported Living
Cambridgeshire County Council,29-Oct-20,51301454003,"-1,876.75",MAYFIELD HEATH FARM,CARE ESTABLISHMENT,LD - Hunts Locality - Cost of Care,LD - Huntingdonshire - Care,Supported Living
Cambridgeshire County Council,29-Oct-20,51301454003,"-1,876.75",MAYFIELD HEATH FARM,CARE ESTABLISHMENT,LD - Hunts Locality - Cost of Care,LD - Huntingdonshire - Care,Supported Living
Cambridgeshire County Council,29-Oct-20,51301454003,"-1,876.75",MAYFIELD HEATH FARM,CARE ESTABLISHMENT,LD - Hunts Locality - Cost of Care,LD - Huntingdonshire - Care,Supported Living
Cambridgeshire County Council,29-Oct-20,51301454003,"-1,876.75",MAYFIELD HEATH FARM,CARE ESTABLISHMENT,LD - Hunts Locality - Cost of Care,LD - Huntingdonshire - Care,Supported Living
Cambridgeshire County Council,29-Oct-20,51301454003,"-1,876.75",MAYFIELD HEATH FARM,CARE ESTABLISHMENT,LD - Hunts Locality - Cost of Care,LD - Huntingdonshire - Care,Supported Living
Cambridgeshire County Council,29-Oct-20,51301454003,"-1,876.75",MAYFIELD HEATH FARM,CARE ESTABLISHMENT,LD - Hunts Locality - Cost of Care,LD - Huntingdonshire - Care,Supported Living
Cambridgeshire County Council,29-Oct-20,51301454003,"-1,876.75",MAYFIELD HEATH FARM,CARE ESTABLISHMENT,LD - Hunts Locality - Cost of Care,LD - Huntingdonshire - Care,Supported Living
Cambridgeshire County Council,29-Oct-20,51301454003,"-1,876.75",MAYFIELD HEATH FARM,CARE ESTABLISHMENT,LD - Hunts Locality - Cost of Care,LD - Huntingdonshire - Care,Supported Living
Cambridgeshire County Council,29-Oct-20,51301454003,"-1,876.75",MAYFIELD HEATH FARM,CARE ESTABLISHMENT,LD - Hunts Locality - Cost of Care,LD - Huntingdonshire - Care,Supported Living
Cambridgeshire County Council,29-Oct-20,51301454003,"-1,876.75",MAYFIELD HEATH FARM,CARE ESTABLISHMENT,LD - Hunts Locality - Cost of Care,LD - Huntingdonshire - Care,Supported Living
Cambridgeshire County Council,29-Oct-20,51301454003,"-1,876.75",MAYFIELD HEATH FARM,CARE ESTABLISHMENT,LD - Hunts Locality - Cost of Care,LD - Huntingdonshire - Care,Supported Living
Cambridgeshire County Council,29-Oct-20,51301454003,"-1,876.75",MAYFIELD HEATH FARM,CARE ESTABLISHMENT,LD - Hunts Locality - Cost of Care,LD - Huntingdonshire - Care,Supported Living
Cambridgeshire County Council,29-Oct-20,51301454003,"-1,876.75",MAYFIELD HEATH FARM,CARE ESTABLISHMENT,LD - Hunts Locality - Cost of Care,LD - Huntingdonshire - Care,Supported Living
Cambridgeshire County Council,29-Oct-20,51301454003,"-1,876.75",MAYFIELD HEATH FARM,CARE ESTABLISHMENT,LD - Hunts Locality - Cost of Care,LD - Huntingdonshire - Care,Supported Living
Cambridgeshire County Council,29-Oct-20,51301454003,"-1,876.75",MAYFIELD HEATH FARM,CARE ESTABLISHMENT,LD - Hunts Locality - Cost of Care,LD - Huntingdonshire - Care,Supported Living
Cambridgeshire County Council,29-Oct-20,51301454003,"-1,876.75",MAYFIELD HEATH FARM,CARE ESTABLISHMENT,LD - Hunts Locality - Cost of Care,LD - Huntingdonshire - Care,Supported Living
Cambridgeshire County Council,29-Oct-20,51301454003,"-1,876.75",MAYFIELD HEATH FARM,CARE ESTABLISHMENT,LD - Hunts Locality - Cost of Care,LD - Huntingdonshire - Care,Supported Living
Cambridgeshire County Council,29-Oct-20,51301454003,"-1,876.75",MAYFIELD HEATH FARM,CARE ESTABLISHMENT,LD - Hunts Locality - Cost of Care,LD - Huntingdonshire - Care,Supported Living
Cambridgeshire County Council,29-Oct-20,51301454003,"-1,876.75",MAYFIELD HEATH FARM,CARE ESTABLISHMENT,LD - Hunts Locality - Cost of Care,LD - Huntingdonshire - Care,Supported Living
Cambridgeshire County Council,29-Oct-20,51301454003,"-1,876.75",MAYFIELD HEATH FARM,CARE ESTABLISHMENT,LD - Hunts Locality - Cost of Care,LD - Huntingdonshire - Care,Supported Living
Cambridgeshire County Council,29-Oct-20,51301454003,"-1,876.75",MAYFIELD HEATH FARM,CARE ESTABLISHMENT,LD - Hunts Locality - Cost of Care,LD - Huntingdonshire - Care,Supported Living
Cambridgeshire County Council,28-Oct-20,51301457474,"-1,875.50",AXIOM HOUSING ASSOCIATION LTD,CARE ESTABLISHMENT,AMH - Hunts & Fens,Hunts Mental Health Team,Domiciliary Care
Cambridgeshire County Council,29-Oct-20,51301462869,"-1,724.39",GLENHOLME HEALTHCARE LTD,CARE ESTABLISHMENT,LD - Hunts Locality - Cost of Care,LD - Huntingdonshire - Care,Residential Care
Cambridgeshire County Council,29-Oct-20,51301462869,"-1,724.39",GLENHOLME HEALTHCARE LTD,CARE ESTABLISHMENT,LD - Hunts Locality - Cost of Care,LD - Huntingdonshire - Care,Residential Care
Cambridgeshire County Council,29-Oct-20,51301462869,"-1,724.39",GLENHOLME HEALTHCARE LTD,CARE ESTABLISHMENT,LD - Hunts Locality - Cost of Care,LD - Huntingdonshire - Care,Residential Care
Cambridgeshire County Council,29-Oct-20,51301462869,"-1,724.39",GLENHOLME HEALTHCARE LTD,CARE ESTABLISHMENT,LD - Hunts Locality - Cost of Care,LD - Huntingdonshire - Care,Residential Care
Cambridgeshire County Council,29-Oct-20,51301462869,"-1,724.39",GLENHOLME HEALTHCARE LTD,CARE ESTABLISHMENT,LD - Hunts Locality - Cost of Care,LD - Huntingdonshire - Care,Residential Care
Cambridgeshire County Council,15-Oct-20,51301453538,"-1,680.00",WOODLANDS CARE CENTRE,CARE ESTABLISHMENT,OPMH - City & South,Older People Mental Health City & South,Nursing Care
Cambridgeshire County Council,29-Oct-20,51301453535,"-1,674.89",GLENHOLME HEALTHCARE LTD,CARE ESTABLISHMENT,LD - Young Adults Team,LD - Young Adults - Care,Residential Care
Cambridgeshire County Council,29-Oct-20,51301453535,"-1,674.89",GLENHOLME HEALTHCARE LTD,CARE ESTABLISHMENT,LD - Young Adults Team,LD - Young Adults - Care,Residential Care
Cambridgeshire County Council,29-Oct-20,51301453535,"-1,674.89",GLENHOLME HEALTHCARE LTD,CARE ESTABLISHMENT,LD - Young Adults Team,LD - Young Adults - Care,Residential Care
Cambridgeshire County Council,29-Oct-20,51301453535,"-1,674.89",GLENHOLME HEALTHCARE LTD,CARE ESTABLISHMENT,LD - Young Adults Team,LD - Young Adults - Care,Residential Care
Cambridgeshire County Council,29-Oct-20,51301453535,"-1,674.89",GLENHOLME HEALTHCARE LTD,CARE ESTABLISHMENT,LD - Young Adults Team,LD - Young Adults - Care,Residential Care
Cambridgeshire County Council,29-Oct-20,51301453535,"-1,674.89",GLENHOLME HEALTHCARE LTD,CARE ESTABLISHMENT,LD - Young Adults Team,LD - Young Adults - Care,Residential Care
Cambridgeshire County Council,05-Oct-20,51301438927,"-1,636.64",73 HIGH ROAD,CARE ESTABLISHMENT,LD - South Locality - Cost of Care,LD - South Cambs - Care,Supported Living
Cambridgeshire County Council,05-Oct-20,51301438927,"-1,636.64",73 HIGH ROAD,CARE ESTABLISHMENT,LD - South Locality - Cost of Care,LD - South Cambs - Care,Supported Living
Cambridgeshire County Council,05-Oct-20,51301438927,"-1,636.64",73 HIGH ROAD,CARE ESTABLISHMENT,LD - South Locality - Cost of Care,LD - South Cambs - Care,Supported Living
Cambridgeshire County Council,05-Oct-20,51301438927,"-1,636.64",73 HIGH ROAD,CARE ESTABLISHMENT,LD - South Locality - Cost of Care,LD - South Cambs - Care,Supported Living
Cambridgeshire County Council,05-Oct-20,51301438927,"-1,636.64",73 HIGH ROAD,CARE ESTABLISHMENT,LD - South Locality - Cost of Care,LD - South Cambs - Care,Supported Living
Cambridgeshire County Council,05-Oct-20,51301438927,"-1,636.64",73 HIGH ROAD,CARE ESTABLISHMENT,LD - South Locality - Cost of Care,LD - South Cambs - Care,Supported Living
Cambridgeshire County Council,05-Oct-20,51301438927,"-1,636.64",73 HIGH ROAD,CARE ESTABLISHMENT,LD - South Locality - Cost of Care,LD - South Cambs - Care,Supported Living
Cambridgeshire County Council,05-Oct-20,51301438927,"-1,636.64",73 HIGH ROAD,CARE ESTABLISHMENT,LD - South Locality - Cost of Care,LD - South Cambs - Care,Supported Living
Cambridgeshire County Council,13-Oct-20,51301452876,"-1,626.77",THE NATIONAL FOSTERING AGENCY,CARE ESTABLISHMENT,LAC Placements,Placements - independent fostering,Agency Placements - Out of  County
Cambridgeshire County Council,29-Oct-20,51301462885,"-1,501.00",CONQUEST CARE HOMES PETERBOROUGH,CARE ESTABLISHMENT,Physical Disablity - Cost of Care,Countywide PD Service - Care,Residential Care
Cambridgeshire County Council,29-Oct-20,51301462885,"-1,501.00",CONQUEST CARE HOMES PETERBOROUGH,CARE ESTABLISHMENT,Physical Disablity - Cost of Care,Countywide PD Service - Care,Residential Care
Cambridgeshire County Council,29-Oct-20,51301462885,"-1,501.00",CONQUEST CARE HOMES PETERBOROUGH,CARE ESTABLISHMENT,Physical Disablity - Cost of Care,Countywide PD Service - Care,Residential Care
Cambridgeshire County Council,29-Oct-20,51301462885,"-1,501.00",CONQUEST CARE HOMES PETERBOROUGH,CARE ESTABLISHMENT,Physical Disablity - Cost of Care,Countywide PD Service - Care,Residential Care
Cambridgeshire County Council,29-Oct-20,51301462885,"-1,501.00",CONQUEST CARE HOMES PETERBOROUGH,CARE ESTABLISHMENT,Physical Disablity - Cost of Care,Countywide PD Service - Care,Residential Care
Cambridgeshire County Council,29-Oct-20,51301462885,"-1,501.00",CONQUEST CARE HOMES PETERBOROUGH,CARE ESTABLISHMENT,Physical Disablity - Cost of Care,Countywide PD Service - Care,Residential Care
Cambridgeshire County Council,29-Oct-20,51301462885,"-1,501.00",CONQUEST CARE HOMES PETERBOROUGH,CARE ESTABLISHMENT,Physical Disablity - Cost of Care,Countywide PD Service - Care,Residential Care
Cambridgeshire County Council,29-Oct-20,51301462885,"-1,501.00",CONQUEST CARE HOMES PETERBOROUGH,CARE ESTABLISHMENT,Physical Disablity - Cost of Care,Countywide PD Service - Care,Residential Care
Cambridgeshire County Council,29-Oct-20,51301462885,"-1,501.00",CONQUEST CARE HOMES PETERBOROUGH,CARE ESTABLISHMENT,Physical Disablity - Cost of Care,Countywide PD Service - Care,Residential Care
Cambridgeshire County Council,29-Oct-20,51301462885,"-1,501.00",CONQUEST CARE HOMES PETERBOROUGH,CARE ESTABLISHMENT,Physical Disablity - Cost of Care,Countywide PD Service - Care,Residential Care
Cambridgeshire County Council,29-Oct-20,51301462885,"-1,501.00",CONQUEST CARE HOMES PETERBOROUGH,CARE ESTABLISHMENT,Physical Disablity - Cost of Care,Countywide PD Service - Care,Residential Care
Cambridgeshire County Council,29-Oct-20,51301462885,"-1,501.00",CONQUEST CARE HOMES PETERBOROUGH,CARE ESTABLISHMENT,Physical Disablity - Cost of Care,Countywide PD Service - Care,Residential Care
Cambridgeshire County Council,29-Oct-20,51301462885,"-1,501.00",CONQUEST CARE HOMES PETERBOROUGH,CARE ESTABLISHMENT,Physical Disablity - Cost of Care,Countywide PD Service - Care,Residential Care
Cambridgeshire County Council,29-Oct-20,51301462885,"-1,501.00",CONQUEST CARE HOMES PETERBOROUGH,CARE ESTABLISHMENT,Physical Disablity - Cost of Care,Countywide PD Service - Care,Residential Care
Cambridgeshire County Council,29-Oct-20,51301462885,"-1,501.00",CONQUEST CARE HOMES PETERBOROUGH,CARE ESTABLISHMENT,Physical Disablity - Cost of Care,Countywide PD Service - Care,Residential Care
Cambridgeshire County Council,29-Oct-20,51301462885,"-1,501.00",CONQUEST CARE HOMES PETERBOROUGH,CARE ESTABLISHMENT,Physical Disablity - Cost of Care,Countywide PD Service - Care,Residential Care
Cambridgeshire County Council,29-Oct-20,51301462885,"-1,501.00",CONQUEST CARE HOMES PETERBOROUGH,CARE ESTABLISHMENT,Physical Disablity - Cost of Care,Countywide PD Service - Care,Residential Care
Cambridgeshire County Council,29-Oct-20,51301462885,"-1,501.00",CONQUEST CARE HOMES PETERBOROUGH,CARE ESTABLISHMENT,Physical Disablity - Cost of Care,Countywide PD Service - Care,Residential Care
Cambridgeshire County Council,29-Oct-20,51301462885,"-1,501.00",CONQUEST CARE HOMES PETERBOROUGH,CARE ESTABLISHMENT,Physical Disablity - Cost of Care,Countywide PD Service - Care,Residential Care
Cambridgeshire County Council,29-Oct-20,51301462885,"-1,501.00",CONQUEST CARE HOMES PETERBOROUGH,CARE ESTABLISHMENT,Physical Disablity - Cost of Care,Countywide PD Service - Care,Residential Care
Cambridgeshire County Council,29-Oct-20,51301462885,"-1,501.00",CONQUEST CARE HOMES PETERBOROUGH,CARE ESTABLISHMENT,Physical Disablity - Cost of Care,Countywide PD Service - Care,Residential Care
Cambridgeshire County Council,29-Oct-20,51301462885,"-1,501.00",CONQUEST CARE HOMES PETERBOROUGH,CARE ESTABLISHMENT,Physical Disablity - Cost of Care,Countywide PD Service - Care,Residential Care
Cambridgeshire County Council,29-Oct-20,51301462885,"-1,501.00",CONQUEST CARE HOMES PETERBOROUGH,CARE ESTABLISHMENT,Physical Disablity - Cost of Care,Countywide PD Service - Care,Residential Care
Cambridgeshire County Council,29-Oct-20,51301462885,"-1,501.00",CONQUEST CARE HOMES PETERBOROUGH,CARE ESTABLISHMENT,Physical Disablity - Cost of Care,Countywide PD Service - Care,Residential Care
Cambridgeshire County Council,29-Oct-20,51301462885,"-1,501.00",CONQUEST CARE HOMES PETERBOROUGH,CARE ESTABLISHMENT,Physical Disablity - Cost of Care,Countywide PD Service - Care,Residential Care
Cambridgeshire County Council,29-Oct-20,51301462885,"-1,501.00",CONQUEST CARE HOMES PETERBOROUGH,CARE ESTABLISHMENT,Physical Disablity - Cost of Care,Countywide PD Service - Care,Residential Care
Cambridgeshire County Council,29-Oct-20,51301462885,"-1,501.00",CONQUEST CARE HOMES PETERBOROUGH,CARE ESTABLISHMENT,Physical Disablity - Cost of Care,Countywide PD Service - Care,Residential Care
Cambridgeshire County Council,29-Oct-20,51301462885,"-1,501.00",CONQUEST CARE HOMES PETERBOROUGH,CARE ESTABLISHMENT,Physical Disablity - Cost of Care,Countywide PD Service - Care,Residential Care
Cambridgeshire County Council,29-Oct-20,51301462885,"-1,501.00",CONQUEST CARE HOMES PETERBOROUGH,CARE ESTABLISHMENT,Physical Disablity - Cost of Care,Countywide PD Service - Care,Residential Care
Cambridgeshire County Council,29-Oct-20,51301462885,"-1,501.00",CONQUEST CARE HOMES PETERBOROUGH,CARE ESTABLISHMENT,Physical Disablity - Cost of Care,Countywide PD Service - Care,Residential Care
Cambridgeshire County Council,29-Oct-20,51301462885,"-1,501.00",CONQUEST CARE HOMES PETERBOROUGH,CARE ESTABLISHMENT,Physical Disablity - Cost of Care,Countywide PD Service - Care,Residential Care
Cambridgeshire County Council,29-Oct-20,51301462885,"-1,501.00",CONQUEST CARE HOMES PETERBOROUGH,CARE ESTABLISHMENT,Physical Disablity - Cost of Care,Countywide PD Service - Care,Residential Care
Cambridgeshire County Council,29-Oct-20,51301462885,"-1,501.00",CONQUEST CARE HOMES PETERBOROUGH,CARE ESTABLISHMENT,Physical Disablity - Cost of Care,Countywide PD Service - Care,Residential Care
Cambridgeshire County Council,29-Oct-20,51301462966,"-1,457.08",VOYAGE,CARE ESTABLISHMENT,LD - City Locality - Cost of Care,LD - City - Care,Residential Care
Cambridgeshire County Council,29-Oct-20,51301462966,"-1,457.08",VOYAGE,CARE ESTABLISHMENT,LD - City Locality - Cost of Care,LD - City - Care,Residential Care
Cambridgeshire County Council,29-Oct-20,51301462966,"-1,457.08",VOYAGE,CARE ESTABLISHMENT,LD - City Locality - Cost of Care,LD - City - Care,Residential Care
Cambridgeshire County Council,29-Oct-20,51301462966,"-1,457.08",VOYAGE,CARE ESTABLISHMENT,LD - City Locality - Cost of Care,LD - City - Care,Residential Care
Cambridgeshire County Council,29-Oct-20,51301462966,"-1,457.08",VOYAGE,CARE ESTABLISHMENT,LD - City Locality - Cost of Care,LD - City - Care,Residential Care
Cambridgeshire County Council,29-Oct-20,51301462966,"-1,457.08",VOYAGE,CARE ESTABLISHMENT,LD - City Locality - Cost of Care,LD - City - Care,Residential Care
Cambridgeshire County Council,29-Oct-20,51301462966,"-1,457.08",VOYAGE,CARE ESTABLISHMENT,LD - City Locality - Cost of Care,LD - City - Care,Residential Care
Cambridgeshire County Council,29-Oct-20,51301462966,"-1,457.08",VOYAGE,CARE ESTABLISHMENT,LD - City Locality - Cost of Care,LD - City - Care,Residential Care
Cambridgeshire County Council,28-Oct-20,51301431488,"-1,438.62",AXIOM HOUSING ASSOCIATION LTD,CARE ESTABLISHMENT,AMH - Hunts & Fens,Hunts Mental Health Team,Domiciliary Care
Cambridgeshire County Council,29-Oct-20,51301453535,"-1,435.62",GLENHOLME HEALTHCARE LTD,CARE ESTABLISHMENT,LD - Young Adults Team,LD - Young Adults - Care,Residential Care
Cambridgeshire County Council,29-Oct-20,51301461518,"-1,418.14",HOME CLOSE LTD,CARE ESTABLISHMENT,OP - City & South Locality - Cost of Care,Older People - City & South - Care,Nursing Care
Cambridgeshire County Council,29-Oct-20,51301461518,"-1,418.14",HOME CLOSE LTD,CARE ESTABLISHMENT,OP - City & South Locality - Cost of Care,Older People - City & South - Care,Nursing Care
Cambridgeshire County Council,29-Oct-20,51301461518,"-1,418.14",HOME CLOSE LTD,CARE ESTABLISHMENT,OP - City & South Locality - Cost of Care,Older People - City & South - Care,Nursing Care
Cambridgeshire County Council,29-Oct-20,51301461518,"-1,418.14",HOME CLOSE LTD,CARE ESTABLISHMENT,OP - City & South Locality - Cost of Care,Older People - City & South - Care,Nursing Care
Cambridgeshire County Council,29-Oct-20,51301461518,"-1,418.14",HOME CLOSE LTD,CARE ESTABLISHMENT,OP - City & South Locality - Cost of Care,Older People - City & South - Care,Nursing Care
Cambridgeshire County Council,29-Oct-20,51301461518,"-1,418.14",HOME CLOSE LTD,CARE ESTABLISHMENT,OP - City & South Locality - Cost of Care,Older People - City & South - Care,Nursing Care
Cambridgeshire County Council,29-Oct-20,51301461518,"-1,418.14",HOME CLOSE LTD,CARE ESTABLISHMENT,OP - City & South Locality - Cost of Care,Older People - City & South - Care,Nursing Care
Cambridgeshire County Council,29-Oct-20,51301461518,"-1,418.14",HOME CLOSE LTD,CARE ESTABLISHMENT,OP - City & South Locality - Cost of Care,Older People - City & South - Care,Nursing Care
Cambridgeshire County Council,29-Oct-20,51301461518,"-1,418.14",HOME CLOSE LTD,CARE ESTABLISHMENT,OP - City & South Locality - Cost of Care,Older People - City & South - Care,Nursing Care
Cambridgeshire County Council,29-Oct-20,51301461518,"-1,418.14",HOME CLOSE LTD,CARE ESTABLISHMENT,OP - City & South Locality - Cost of Care,Older People - City & South - Care,Nursing Care
Cambridgeshire County Council,29-Oct-20,51301461518,"-1,418.14",HOME CLOSE LTD,CARE ESTABLISHMENT,OP - City & South Locality - Cost of Care,Older People - City & South - Care,Nursing Care
Cambridgeshire County Council,29-Oct-20,51301461518,"-1,418.14",HOME CLOSE LTD,CARE ESTABLISHMENT,OP - City & South Locality - Cost of Care,Older People - City & South - Care,Nursing Care
Cambridgeshire County Council,29-Oct-20,51301461518,"-1,418.14",HOME CLOSE LTD,CARE ESTABLISHMENT,OP - City & South Locality - Cost of Care,Older People - City & South - Care,Nursing Care
Cambridgeshire County Council,29-Oct-20,51301461518,"-1,418.14",HOME CLOSE LTD,CARE ESTABLISHMENT,OP - City & South Locality - Cost of Care,Older People - City & South - Care,Nursing Care
Cambridgeshire County Council,29-Oct-20,51301461518,"-1,418.14",HOME CLOSE LTD,CARE ESTABLISHMENT,OP - City & South Locality - Cost of Care,Older People - City & South - Care,Nursing Care
Cambridgeshire County Council,29-Oct-20,51301461518,"-1,418.14",HOME CLOSE LTD,CARE ESTABLISHMENT,OP - City & South Locality - Cost of Care,Older People - City & South - Care,Nursing Care
Cambridgeshire County Council,29-Oct-20,51301461518,"-1,418.14",HOME CLOSE LTD,CARE ESTABLISHMENT,OP - City & South Locality - Cost of Care,Older People - City & South - Care,Nursing Care
Cambridgeshire County Council,29-Oct-20,51301461518,"-1,418.14",HOME CLOSE LTD,CARE ESTABLISHMENT,OP - City & South Locality - Cost of Care,Older People - City & South - Care,Nursing Care
Cambridgeshire County Council,29-Oct-20,51301461518,"-1,418.14",HOME CLOSE LTD,CARE ESTABLISHMENT,OP - City & South Locality - Cost of Care,Older People - City & South - Care,Nursing Care
Cambridgeshire County Council,29-Oct-20,51301461518,"-1,418.14",HOME CLOSE LTD,CARE ESTABLISHMENT,OP - City & South Locality - Cost of Care,Older People - City & South - Care,Nursing Care
Cambridgeshire County Council,29-Oct-20,51301461518,"-1,418.14",HOME CLOSE LTD,CARE ESTABLISHMENT,OP - City & South Locality - Cost of Care,Older People - City & South - Care,Nursing Care
Cambridgeshire County Council,29-Oct-20,51301461518,"-1,418.14",HOME CLOSE LTD,CARE ESTABLISHMENT,OP - City & South Locality - Cost of Care,Older People - City & South - Care,Nursing Care
Cambridgeshire County Council,29-Oct-20,51301461518,"-1,418.14",HOME CLOSE LTD,CARE ESTABLISHMENT,OP - City & South Locality - Cost of Care,Older People - City & South - Care,Nursing Care
Cambridgeshire County Council,29-Oct-20,51301461518,"-1,418.14",HOME CLOSE LTD,CARE ESTABLISHMENT,OP - City & South Locality - Cost of Care,Older People - City & South - Care,Nursing Care
Cambridgeshire County Council,29-Oct-20,51301461518,"-1,418.14",HOME CLOSE LTD,CARE ESTABLISHMENT,OP - City & South Locality - Cost of Care,Older People - City & South - Care,Nursing Care
Cambridgeshire County Council,29-Oct-20,51301454016,"-1,409.10",MENCAP PETERBOROUGH,CARE ESTABLISHMENT,OP - Fenland Locality - Cost of Care,Older People - Fenland - Care,Domiciliary Care
Cambridgeshire County Council,29-Oct-20,51301454016,"-1,409.10",MENCAP PETERBOROUGH,CARE ESTABLISHMENT,OP - Fenland Locality - Cost of Care,Older People - Fenland - Care,Domiciliary Care
Cambridgeshire County Council,29-Oct-20,51301454016,"-1,409.10",MENCAP PETERBOROUGH,CARE ESTABLISHMENT,OP - Fenland Locality - Cost of Care,Older People - Fenland - Care,Domiciliary Care
Cambridgeshire County Council,29-Oct-20,51301454016,"-1,409.10",MENCAP PETERBOROUGH,CARE ESTABLISHMENT,OP - Fenland Locality - Cost of Care,Older People - Fenland - Care,Domiciliary Care
Cambridgeshire County Council,29-Oct-20,51301454016,"-1,409.10",MENCAP PETERBOROUGH,CARE ESTABLISHMENT,OP - Fenland Locality - Cost of Care,Older People - Fenland - Care,Domiciliary Care
Cambridgeshire County Council,29-Oct-20,51301454016,"-1,409.10",MENCAP PETERBOROUGH,CARE ESTABLISHMENT,OP - Fenland Locality - Cost of Care,Older People - Fenland - Care,Domiciliary Care
Cambridgeshire County Council,29-Oct-20,51301454016,"-1,409.10",MENCAP PETERBOROUGH,CARE ESTABLISHMENT,OP - Fenland Locality - Cost of Care,Older People - Fenland - Care,Domiciliary Care
Cambridgeshire County Council,29-Oct-20,51301454016,"-1,409.10",MENCAP PETERBOROUGH,CARE ESTABLISHMENT,OP - Fenland Locality - Cost of Care,Older People - Fenland - Care,Domiciliary Care
Cambridgeshire County Council,29-Oct-20,51301454016,"-1,409.10",MENCAP PETERBOROUGH,CARE ESTABLISHMENT,OP - Fenland Locality - Cost of Care,Older People - Fenland - Care,Domiciliary Care
Cambridgeshire County Council,29-Oct-20,51301454016,"-1,409.10",MENCAP PETERBOROUGH,CARE ESTABLISHMENT,OP - Fenland Locality - Cost of Care,Older People - Fenland - Care,Domiciliary Care
Cambridgeshire County Council,29-Oct-20,51301454016,"-1,409.10",MENCAP PETERBOROUGH,CARE ESTABLISHMENT,OP - Fenland Locality - Cost of Care,Older People - Fenland - Care,Domiciliary Care
Cambridgeshire County Council,29-Oct-20,51301454016,"-1,409.10",MENCAP PETERBOROUGH,CARE ESTABLISHMENT,OP - Fenland Locality - Cost of Care,Older People - Fenland - Care,Domiciliary Care
Cambridgeshire County Council,29-Oct-20,51301454016,"-1,409.10",MENCAP PETERBOROUGH,CARE ESTABLISHMENT,OP - Fenland Locality - Cost of Care,Older People - Fenland - Care,Domiciliary Care
Cambridgeshire County Council,29-Oct-20,51301454016,"-1,409.10",MENCAP PETERBOROUGH,CARE ESTABLISHMENT,OP - Fenland Locality - Cost of Care,Older People - Fenland - Care,Domiciliary Care
Cambridgeshire County Council,29-Oct-20,51301454016,"-1,409.10",MENCAP PETERBOROUGH,CARE ESTABLISHMENT,OP - Fenland Locality - Cost of Care,Older People - Fenland - Care,Domiciliary Care
Cambridgeshire County Council,29-Oct-20,51301454016,"-1,409.10",MENCAP PETERBOROUGH,CARE ESTABLISHMENT,OP - Fenland Locality - Cost of Care,Older People - Fenland - Care,Domiciliary Care
Cambridgeshire County Council,29-Oct-20,51301454016,"-1,409.10",MENCAP PETERBOROUGH,CARE ESTABLISHMENT,OP - Fenland Locality - Cost of Care,Older People - Fenland - Care,Domiciliary Care
Cambridgeshire County Council,29-Oct-20,51301454016,"-1,409.10",MENCAP PETERBOROUGH,CARE ESTABLISHMENT,OP - Fenland Locality - Cost of Care,Older People - Fenland - Care,Domiciliary Care
Cambridgeshire County Council,29-Oct-20,51301454016,"-1,409.10",MENCAP PETERBOROUGH,CARE ESTABLISHMENT,OP - Fenland Locality - Cost of Care,Older People - Fenland - Care,Domiciliary Care
Cambridgeshire County Council,29-Oct-20,51301454016,"-1,409.10",MENCAP PETERBOROUGH,CARE ESTABLISHMENT,OP - Fenland Locality - Cost of Care,Older People - Fenland - Care,Domiciliary Care
Cambridgeshire County Council,29-Oct-20,51301454016,"-1,409.10",MENCAP PETERBOROUGH,CARE ESTABLISHMENT,OP - Fenland Locality - Cost of Care,Older People - Fenland - Care,Domiciliary Care
Cambridgeshire County Council,29-Oct-20,51301454016,"-1,409.10",MENCAP PETERBOROUGH,CARE ESTABLISHMENT,OP - Fenland Locality - Cost of Care,Older People - Fenland - Care,Domiciliary Care
Cambridgeshire County Council,29-Oct-20,51301454016,"-1,409.10",MENCAP PETERBOROUGH,CARE ESTABLISHMENT,OP - Fenland Locality - Cost of Care,Older People - Fenland - Care,Domiciliary Care
Cambridgeshire County Council,29-Oct-20,51301454016,"-1,409.10",MENCAP PETERBOROUGH,CARE ESTABLISHMENT,OP - Fenland Locality - Cost of Care,Older People - Fenland - Care,Domiciliary Care
Cambridgeshire County Council,29-Oct-20,51301454016,"-1,409.10",MENCAP PETERBOROUGH,CARE ESTABLISHMENT,OP - Fenland Locality - Cost of Care,Older People - Fenland - Care,Domiciliary Care
Cambridgeshire County Council,29-Oct-20,51301454016,"-1,409.10",MENCAP PETERBOROUGH,CARE ESTABLISHMENT,OP - Fenland Locality - Cost of Care,Older People - Fenland - Care,Domiciliary Care
Cambridgeshire County Council,29-Oct-20,51301454016,"-1,409.10",MENCAP PETERBOROUGH,CARE ESTABLISHMENT,OP - Fenland Locality - Cost of Care,Older People - Fenland - Care,Domiciliary Care
Cambridgeshire County Council,29-Oct-20,51301454016,"-1,409.10",MENCAP PETERBOROUGH,CARE ESTABLISHMENT,OP - Fenland Locality - Cost of Care,Older People - Fenland - Care,Domiciliary Care
Cambridgeshire County Council,29-Oct-20,51301454016,"-1,409.10",MENCAP PETERBOROUGH,CARE ESTABLISHMENT,OP - Fenland Locality - Cost of Care,Older People - Fenland - Care,Domiciliary Care
Cambridgeshire County Council,29-Oct-20,51301454016,"-1,409.10",MENCAP PETERBOROUGH,CARE ESTABLISHMENT,OP - Fenland Locality - Cost of Care,Older People - Fenland - Care,Domiciliary Care
Cambridgeshire County Council,29-Oct-20,51301454016,"-1,409.10",MENCAP PETERBOROUGH,CARE ESTABLISHMENT,OP - Fenland Locality - Cost of Care,Older People - Fenland - Care,Domiciliary Care
Cambridgeshire County Council,29-Oct-20,51301454016,"-1,409.10",MENCAP PETERBOROUGH,CARE ESTABLISHMENT,OP - Fenland Locality - Cost of Care,Older People - Fenland - Care,Domiciliary Care
Cambridgeshire County Council,29-Oct-20,51301454016,"-1,409.10",MENCAP PETERBOROUGH,CARE ESTABLISHMENT,OP - Fenland Locality - Cost of Care,Older People - Fenland - Care,Domiciliary Care
Cambridgeshire County Council,29-Oct-20,51301454016,"-1,409.10",MENCAP PETERBOROUGH,CARE ESTABLISHMENT,OP - Fenland Locality - Cost of Care,Older People - Fenland - Care,Domiciliary Care
Cambridgeshire County Council,29-Oct-20,51301454016,"-1,409.10",MENCAP PETERBOROUGH,CARE ESTABLISHMENT,OP - Fenland Locality - Cost of Care,Older People - Fenland - Care,Domiciliary Care
Cambridgeshire County Council,29-Oct-20,51301454016,"-1,409.10",MENCAP PETERBOROUGH,CARE ESTABLISHMENT,OP - Fenland Locality - Cost of Care,Older People - Fenland - Care,Domiciliary Care
Cambridgeshire County Council,29-Oct-20,51301454016,"-1,409.10",MENCAP PETERBOROUGH,CARE ESTABLISHMENT,OP - Fenland Locality - Cost of Care,Older People - Fenland - Care,Domiciliary Care
Cambridgeshire County Council,29-Oct-20,51301454016,"-1,409.10",MENCAP PETERBOROUGH,CARE ESTABLISHMENT,OP - Fenland Locality - Cost of Care,Older People - Fenland - Care,Domiciliary Care
Cambridgeshire County Council,29-Oct-20,51301454016,"-1,409.10",MENCAP PETERBOROUGH,CARE ESTABLISHMENT,OP - Fenland Locality - Cost of Care,Older People - Fenland - Care,Domiciliary Care
Cambridgeshire County Council,29-Oct-20,51301454016,"-1,409.10",MENCAP PETERBOROUGH,CARE ESTABLISHMENT,OP - Fenland Locality - Cost of Care,Older People - Fenland - Care,Domiciliary Care
Cambridgeshire County Council,29-Oct-20,51301454016,"-1,409.10",MENCAP PETERBOROUGH,CARE ESTABLISHMENT,OP - Fenland Locality - Cost of Care,Older People - Fenland - Care,Domiciliary Care
Cambridgeshire County Council,29-Oct-20,51301463079,"-1,405.00",CONQUEST CARE HOMES PETERBOROUGH,CARE ESTABLISHMENT,AMH - Hunts & Fens,Hunts Mental Health Team,Residential Care
Cambridgeshire County Council,29-Oct-20,51301463079,"-1,405.00",CONQUEST CARE HOMES PETERBOROUGH,CARE ESTABLISHMENT,AMH - Hunts & Fens,Hunts Mental Health Team,Residential Care
Cambridgeshire County Council,29-Oct-20,51301463079,"-1,405.00",CONQUEST CARE HOMES PETERBOROUGH,CARE ESTABLISHMENT,AMH - Hunts & Fens,Hunts Mental Health Team,Residential Care
Cambridgeshire County Council,29-Oct-20,51301463079,"-1,405.00",CONQUEST CARE HOMES PETERBOROUGH,CARE ESTABLISHMENT,AMH - Hunts & Fens,Hunts Mental Health Team,Residential Care
Cambridgeshire County Council,29-Oct-20,51301463079,"-1,405.00",CONQUEST CARE HOMES PETERBOROUGH,CARE ESTABLISHMENT,AMH - Hunts & Fens,Hunts Mental Health Team,Residential Care
Cambridgeshire County Council,29-Oct-20,51301463079,"-1,405.00",CONQUEST CARE HOMES PETERBOROUGH,CARE ESTABLISHMENT,AMH - Hunts & Fens,Hunts Mental Health Team,Residential Care
Cambridgeshire County Council,29-Oct-20,51301463079,"-1,405.00",CONQUEST CARE HOMES PETERBOROUGH,CARE ESTABLISHMENT,AMH - Hunts & Fens,Hunts Mental Health Team,Residential Care
Cambridgeshire County Council,29-Oct-20,51301463079,"-1,405.00",CONQUEST CARE HOMES PETERBOROUGH,CARE ESTABLISHMENT,AMH - Hunts & Fens,Hunts Mental Health Team,Residential Care
Cambridgeshire County Council,29-Oct-20,51301463079,"-1,405.00",CONQUEST CARE HOMES PETERBOROUGH,CARE ESTABLISHMENT,AMH - Hunts & Fens,Hunts Mental Health Team,Residential Care
Cambridgeshire County Council,29-Oct-20,51301463079,"-1,405.00",CONQUEST CARE HOMES PETERBOROUGH,CARE ESTABLISHMENT,AMH - Hunts & Fens,Hunts Mental Health Team,Residential Care
Cambridgeshire County Council,29-Oct-20,51301463079,"-1,405.00",CONQUEST CARE HOMES PETERBOROUGH,CARE ESTABLISHMENT,AMH - Hunts & Fens,Hunts Mental Health Team,Residential Care
Cambridgeshire County Council,29-Oct-20,51301463079,"-1,405.00",CONQUEST CARE HOMES PETERBOROUGH,CARE ESTABLISHMENT,AMH - Hunts & Fens,Hunts Mental Health Team,Residential Care
Cambridgeshire County Council,29-Oct-20,51301463079,"-1,405.00",CONQUEST CARE HOMES PETERBOROUGH,CARE ESTABLISHMENT,AMH - Hunts & Fens,Hunts Mental Health Team,Residential Care
Cambridgeshire County Council,29-Oct-20,51301463079,"-1,405.00",CONQUEST CARE HOMES PETERBOROUGH,CARE ESTABLISHMENT,AMH - Hunts & Fens,Hunts Mental Health Team,Residential Care
Cambridgeshire County Council,29-Oct-20,51301463079,"-1,405.00",CONQUEST CARE HOMES PETERBOROUGH,CARE ESTABLISHMENT,AMH - Hunts & Fens,Hunts Mental Health Team,Residential Care
Cambridgeshire County Council,29-Oct-20,51301463079,"-1,405.00",CONQUEST CARE HOMES PETERBOROUGH,CARE ESTABLISHMENT,AMH - Hunts & Fens,Hunts Mental Health Team,Residential Care
Cambridgeshire County Council,29-Oct-20,51301463079,"-1,405.00",CONQUEST CARE HOMES PETERBOROUGH,CARE ESTABLISHMENT,AMH - Hunts & Fens,Hunts Mental Health Team,Residential Care
Cambridgeshire County Council,29-Oct-20,51301463079,"-1,405.00",CONQUEST CARE HOMES PETERBOROUGH,CARE ESTABLISHMENT,AMH - Hunts & Fens,Hunts Mental Health Team,Residential Care
Cambridgeshire County Council,29-Oct-20,51301463079,"-1,405.00",CONQUEST CARE HOMES PETERBOROUGH,CARE ESTABLISHMENT,AMH - Hunts & Fens,Hunts Mental Health Team,Residential Care
Cambridgeshire County Council,29-Oct-20,51301463079,"-1,405.00",CONQUEST CARE HOMES PETERBOROUGH,CARE ESTABLISHMENT,AMH - Hunts & Fens,Hunts Mental Health Team,Residential Care
Cambridgeshire County Council,29-Oct-20,51301463079,"-1,405.00",CONQUEST CARE HOMES PETERBOROUGH,CARE ESTABLISHMENT,AMH - Hunts & Fens,Hunts Mental Health Team,Residential Care
Cambridgeshire County Council,29-Oct-20,51301463079,"-1,405.00",CONQUEST CARE HOMES PETERBOROUGH,CARE ESTABLISHMENT,AMH - Hunts & Fens,Hunts Mental Health Team,Residential Care
Cambridgeshire County Council,29-Oct-20,51301463079,"-1,405.00",CONQUEST CARE HOMES PETERBOROUGH,CARE ESTABLISHMENT,AMH - Hunts & Fens,Hunts Mental Health Team,Residential Care
Cambridgeshire County Council,29-Oct-20,51301463079,"-1,405.00",CONQUEST CARE HOMES PETERBOROUGH,CARE ESTABLISHMENT,AMH - Hunts & Fens,Hunts Mental Health Team,Residential Care
Cambridgeshire County Council,29-Oct-20,51301463079,"-1,405.00",CONQUEST CARE HOMES PETERBOROUGH,CARE ESTABLISHMENT,AMH - Hunts & Fens,Hunts Mental Health Team,Residential Care
Cambridgeshire County Council,29-Oct-20,51301463079,"-1,405.00",CONQUEST CARE HOMES PETERBOROUGH,CARE ESTABLISHMENT,AMH - Hunts & Fens,Hunts Mental Health Team,Residential Care
Cambridgeshire County Council,29-Oct-20,51301463079,"-1,405.00",CONQUEST CARE HOMES PETERBOROUGH,CARE ESTABLISHMENT,AMH - Hunts & Fens,Hunts Mental Health Team,Residential Care
Cambridgeshire County Council,29-Oct-20,51301463079,"-1,405.00",CONQUEST CARE HOMES PETERBOROUGH,CARE ESTABLISHMENT,AMH - Hunts & Fens,Hunts Mental Health Team,Residential Care
Cambridgeshire County Council,29-Oct-20,51301463079,"-1,405.00",CONQUEST CARE HOMES PETERBOROUGH,CARE ESTABLISHMENT,AMH - Hunts & Fens,Hunts Mental Health Team,Residential Care
Cambridgeshire County Council,29-Oct-20,51301463079,"-1,405.00",CONQUEST CARE HOMES PETERBOROUGH,CARE ESTABLISHMENT,AMH - Hunts & Fens,Hunts Mental Health Team,Residential Care
Cambridgeshire County Council,29-Oct-20,51301463079,"-1,405.00",CONQUEST CARE HOMES PETERBOROUGH,CARE ESTABLISHMENT,AMH - Hunts & Fens,Hunts Mental Health Team,Residential Care
Cambridgeshire County Council,29-Oct-20,51301463079,"-1,405.00",CONQUEST CARE HOMES PETERBOROUGH,CARE ESTABLISHMENT,AMH - Hunts & Fens,Hunts Mental Health Team,Residential Care
Cambridgeshire County Council,29-Oct-20,51301463079,"-1,405.00",CONQUEST CARE HOMES PETERBOROUGH,CARE ESTABLISHMENT,AMH - Hunts & Fens,Hunts Mental Health Team,Residential Care
Cambridgeshire County Council,29-Oct-20,51301463079,"-1,405.00",CONQUEST CARE HOMES PETERBOROUGH,CARE ESTABLISHMENT,AMH - Hunts & Fens,Hunts Mental Health Team,Residential Care
Cambridgeshire County Council,29-Oct-20,51301463079,"-1,405.00",CONQUEST CARE HOMES PETERBOROUGH,CARE ESTABLISHMENT,AMH - Hunts & Fens,Hunts Mental Health Team,Residential Care
Cambridgeshire County Council,29-Oct-20,51301463079,"-1,405.00",CONQUEST CARE HOMES PETERBOROUGH,CARE ESTABLISHMENT,AMH - Hunts & Fens,Hunts Mental Health Team,Residential Care
Cambridgeshire County Council,29-Oct-20,51301463079,"-1,405.00",CONQUEST CARE HOMES PETERBOROUGH,CARE ESTABLISHMENT,AMH - Hunts & Fens,Hunts Mental Health Team,Residential Care
Cambridgeshire County Council,29-Oct-20,51301463079,"-1,405.00",CONQUEST CARE HOMES PETERBOROUGH,CARE ESTABLISHMENT,AMH - Hunts & Fens,Hunts Mental Health Team,Residential Care
Cambridgeshire County Council,29-Oct-20,51301463079,"-1,405.00",CONQUEST CARE HOMES PETERBOROUGH,CARE ESTABLISHMENT,AMH - Hunts & Fens,Hunts Mental Health Team,Residential Care
Cambridgeshire County Council,29-Oct-20,51301431788,"-1,400.00",LONGUEVILLE COURT,CARE ESTABLISHMENT,Physical Disablity - Cost of Care,Countywide PD Service - Care,Residential Care
Cambridgeshire County Council,29-Oct-20,51301431788,"-1,400.00",LONGUEVILLE COURT,CARE ESTABLISHMENT,Physical Disablity - Cost of Care,Countywide PD Service - Care,Residential Care
Cambridgeshire County Council,29-Oct-20,51301431788,"-1,400.00",LONGUEVILLE COURT,CARE ESTABLISHMENT,Physical Disablity - Cost of Care,Countywide PD Service - Care,Residential Care
Cambridgeshire County Council,29-Oct-20,51301431788,"-1,400.00",LONGUEVILLE COURT,CARE ESTABLISHMENT,Physical Disablity - Cost of Care,Countywide PD Service - Care,Residential Care
Cambridgeshire County Council,29-Oct-20,51301444950,"-1,400.00",LONGUEVILLE COURT,CARE ESTABLISHMENT,Physical Disablity - Cost of Care,Countywide PD Service - Care,Residential Care
Cambridgeshire County Council,29-Oct-20,51301444950,"-1,400.00",LONGUEVILLE COURT,CARE ESTABLISHMENT,Physical Disablity - Cost of Care,Countywide PD Service - Care,Residential Care
Cambridgeshire County Council,29-Oct-20,51301444950,"-1,400.00",LONGUEVILLE COURT,CARE ESTABLISHMENT,Physical Disablity - Cost of Care,Countywide PD Service - Care,Residential Care
Cambridgeshire County Council,29-Oct-20,51301444950,"-1,400.00",LONGUEVILLE COURT,CARE ESTABLISHMENT,Physical Disablity - Cost of Care,Countywide PD Service - Care,Residential Care
Cambridgeshire County Council,29-Oct-20,51301444950,"-1,400.00",LONGUEVILLE COURT,CARE ESTABLISHMENT,Physical Disablity - Cost of Care,Countywide PD Service - Care,Residential Care
Cambridgeshire County Council,29-Oct-20,51301444950,"-1,400.00",LONGUEVILLE COURT,CARE ESTABLISHMENT,Physical Disablity - Cost of Care,Countywide PD Service - Care,Residential Care
Cambridgeshire County Council,29-Oct-20,51301444950,"-1,400.00",LONGUEVILLE COURT,CARE ESTABLISHMENT,Physical Disablity - Cost of Care,Countywide PD Service - Care,Residential Care
Cambridgeshire County Council,29-Oct-20,51301444950,"-1,400.00",LONGUEVILLE COURT,CARE ESTABLISHMENT,Physical Disablity - Cost of Care,Countywide PD Service - Care,Residential Care
Cambridgeshire County Council,29-Oct-20,51301444950,"-1,400.00",LONGUEVILLE COURT,CARE ESTABLISHMENT,Physical Disablity - Cost of Care,Countywide PD Service - Care,Residential Care
Cambridgeshire County Council,29-Oct-20,51301444950,"-1,400.00",LONGUEVILLE COURT,CARE ESTABLISHMENT,Physical Disablity - Cost of Care,Countywide PD Service - Care,Residential Care
Cambridgeshire County Council,29-Oct-20,51301444950,"-1,400.00",LONGUEVILLE COURT,CARE ESTABLISHMENT,Physical Disablity - Cost of Care,Countywide PD Service - Care,Residential Care
Cambridgeshire County Council,29-Oct-20,51301444950,"-1,400.00",LONGUEVILLE COURT,CARE ESTABLISHMENT,Physical Disablity - Cost of Care,Countywide PD Service - Care,Residential Care
Cambridgeshire County Council,29-Oct-20,51301444950,"-1,400.00",LONGUEVILLE COURT,CARE ESTABLISHMENT,Physical Disablity - Cost of Care,Countywide PD Service - Care,Residential Care
Cambridgeshire County Council,29-Oct-20,51301444950,"-1,400.00",LONGUEVILLE COURT,CARE ESTABLISHMENT,Physical Disablity - Cost of Care,Countywide PD Service - Care,Residential Care
Cambridgeshire County Council,29-Oct-20,51301444950,"-1,400.00",LONGUEVILLE COURT,CARE ESTABLISHMENT,Physical Disablity - Cost of Care,Countywide PD Service - Care,Residential Care
Cambridgeshire County Council,29-Oct-20,51301444950,"-1,400.00",LONGUEVILLE COURT,CARE ESTABLISHMENT,Physical Disablity - Cost of Care,Countywide PD Service - Care,Residential Care
Cambridgeshire County Council,29-Oct-20,51301444950,"-1,400.00",LONGUEVILLE COURT,CARE ESTABLISHMENT,Physical Disablity - Cost of Care,Countywide PD Service - Care,Residential Care
Cambridgeshire County Council,29-Oct-20,51301444950,"-1,400.00",LONGUEVILLE COURT,CARE ESTABLISHMENT,Physical Disablity - Cost of Care,Countywide PD Service - Care,Residential Care
Cambridgeshire County Council,29-Oct-20,51301444950,"-1,400.00",LONGUEVILLE COURT,CARE ESTABLISHMENT,Physical Disablity - Cost of Care,Countywide PD Service - Care,Residential Care
Cambridgeshire County Council,29-Oct-20,51301444950,"-1,400.00",LONGUEVILLE COURT,CARE ESTABLISHMENT,Physical Disablity - Cost of Care,Countywide PD Service - Care,Residential Care
Cambridgeshire County Council,29-Oct-20,51301444950,"-1,400.00",LONGUEVILLE COURT,CARE ESTABLISHMENT,Physical Disablity - Cost of Care,Countywide PD Service - Care,Residential Care
Cambridgeshire County Council,29-Oct-20,51301444950,"-1,400.00",LONGUEVILLE COURT,CARE ESTABLISHMENT,Physical Disablity - Cost of Care,Countywide PD Service - Care,Residential Care
Cambridgeshire County Council,29-Oct-20,51301444950,"-1,400.00",LONGUEVILLE COURT,CARE ESTABLISHMENT,Physical Disablity - Cost of Care,Countywide PD Service - Care,Residential Care
Cambridgeshire County Council,29-Oct-20,51301444950,"-1,400.00",LONGUEVILLE COURT,CARE ESTABLISHMENT,Physical Disablity - Cost of Care,Countywide PD Service - Care,Residential Care
Cambridgeshire County Council,29-Oct-20,51301444950,"-1,400.00",LONGUEVILLE COURT,CARE ESTABLISHMENT,Physical Disablity - Cost of Care,Countywide PD Service - Care,Residential Care
Cambridgeshire County Council,29-Oct-20,51301444950,"-1,400.00",LONGUEVILLE COURT,CARE ESTABLISHMENT,Physical Disablity - Cost of Care,Countywide PD Service - Care,Residential Care
Cambridgeshire County Council,29-Oct-20,51301444950,"-1,400.00",LONGUEVILLE COURT,CARE ESTABLISHMENT,Physical Disablity - Cost of Care,Countywide PD Service - Care,Residential Care
Cambridgeshire County Council,29-Oct-20,51301444950,"-1,400.00",LONGUEVILLE COURT,CARE ESTABLISHMENT,Physical Disablity - Cost of Care,Countywide PD Service - Care,Residential Care
Cambridgeshire County Council,29-Oct-20,51301444950,"-1,400.00",LONGUEVILLE COURT,CARE ESTABLISHMENT,Physical Disablity - Cost of Care,Countywide PD Service - Care,Residential Care
Cambridgeshire County Council,29-Oct-20,51301444950,"-1,400.00",LONGUEVILLE COURT,CARE ESTABLISHMENT,Physical Disablity - Cost of Care,Countywide PD Service - Care,Residential Care
Cambridgeshire County Council,29-Oct-20,51301444950,"-1,400.00",LONGUEVILLE COURT,CARE ESTABLISHMENT,Physical Disablity - Cost of Care,Countywide PD Service - Care,Residential Care
Cambridgeshire County Council,29-Oct-20,51301444950,"-1,400.00",LONGUEVILLE COURT,CARE ESTABLISHMENT,Physical Disablity - Cost of Care,Countywide PD Service - Care,Residential Care
Cambridgeshire County Council,29-Oct-20,51301444950,"-1,400.00",LONGUEVILLE COURT,CARE ESTABLISHMENT,Physical Disablity - Cost of Care,Countywide PD Service - Care,Residential Care
Cambridgeshire County Council,29-Oct-20,51301444950,"-1,400.00",LONGUEVILLE COURT,CARE ESTABLISHMENT,Physical Disablity - Cost of Care,Countywide PD Service - Care,Residential Care
Cambridgeshire County Council,29-Oct-20,51301444950,"-1,400.00",LONGUEVILLE COURT,CARE ESTABLISHMENT,Physical Disablity - Cost of Care,Countywide PD Service - Care,Residential Care
Cambridgeshire County Council,29-Oct-20,51301444950,"-1,400.00",LONGUEVILLE COURT,CARE ESTABLISHMENT,Physical Disablity - Cost of Care,Countywide PD Service - Care,Residential Care
Cambridgeshire County Council,29-Oct-20,51301444950,"-1,400.00",LONGUEVILLE COURT,CARE ESTABLISHMENT,Physical Disablity - Cost of Care,Countywide PD Service - Care,Residential Care
Cambridgeshire County Council,29-Oct-20,51301444950,"-1,400.00",LONGUEVILLE COURT,CARE ESTABLISHMENT,Physical Disablity - Cost of Care,Countywide PD Service - Care,Residential Care
Cambridgeshire County Council,29-Oct-20,51301444950,"-1,400.00",LONGUEVILLE COURT,CARE ESTABLISHMENT,Physical Disablity - Cost of Care,Countywide PD Service - Care,Residential Care
Cambridgeshire County Council,29-Oct-20,51301444950,"-1,400.00",LONGUEVILLE COURT,CARE ESTABLISHMENT,Physical Disablity - Cost of Care,Countywide PD Service - Care,Residential Care
Cambridgeshire County Council,29-Oct-20,51301444950,"-1,400.00",LONGUEVILLE COURT,CARE ESTABLISHMENT,Physical Disablity - Cost of Care,Countywide PD Service - Care,Residential Care
Cambridgeshire County Council,29-Oct-20,51301444950,"-1,400.00",LONGUEVILLE COURT,CARE ESTABLISHMENT,Physical Disablity - Cost of Care,Countywide PD Service - Care,Residential Care
Cambridgeshire County Council,29-Oct-20,51301444950,"-1,400.00",LONGUEVILLE COURT,CARE ESTABLISHMENT,Physical Disablity - Cost of Care,Countywide PD Service - Care,Residential Care
Cambridgeshire County Council,29-Oct-20,51301444950,"-1,400.00",LONGUEVILLE COURT,CARE ESTABLISHMENT,Physical Disablity - Cost of Care,Countywide PD Service - Care,Residential Care
Cambridgeshire County Council,29-Oct-20,51301444950,"-1,400.00",LONGUEVILLE COURT,CARE ESTABLISHMENT,Physical Disablity - Cost of Care,Countywide PD Service - Care,Residential Care
Cambridgeshire County Council,29-Oct-20,51301444950,"-1,400.00",LONGUEVILLE COURT,CARE ESTABLISHMENT,Physical Disablity - Cost of Care,Countywide PD Service - Care,Residential Care
Cambridgeshire County Council,29-Oct-20,51301444950,"-1,400.00",LONGUEVILLE COURT,CARE ESTABLISHMENT,Physical Disablity - Cost of Care,Countywide PD Service - Care,Residential Care
Cambridgeshire County Council,29-Oct-20,51301444950,"-1,400.00",LONGUEVILLE COURT,CARE ESTABLISHMENT,Physical Disablity - Cost of Care,Countywide PD Service - Care,Residential Care
Cambridgeshire County Council,29-Oct-20,51301444950,"-1,400.00",LONGUEVILLE COURT,CARE ESTABLISHMENT,Physical Disablity - Cost of Care,Countywide PD Service - Care,Residential Care
Cambridgeshire County Council,29-Oct-20,51301444950,"-1,400.00",LONGUEVILLE COURT,CARE ESTABLISHMENT,Physical Disablity - Cost of Care,Countywide PD Service - Care,Residential Care
Cambridgeshire County Council,29-Oct-20,51301444950,"-1,400.00",LONGUEVILLE COURT,CARE ESTABLISHMENT,Physical Disablity - Cost of Care,Countywide PD Service - Care,Residential Care
Cambridgeshire County Council,29-Oct-20,51301444950,"-1,400.00",LONGUEVILLE COURT,CARE ESTABLISHMENT,Physical Disablity - Cost of Care,Countywide PD Service - Care,Residential Care
Cambridgeshire County Council,29-Oct-20,51301444950,"-1,400.00",LONGUEVILLE COURT,CARE ESTABLISHMENT,Physical Disablity - Cost of Care,Countywide PD Service - Care,Residential Care
Cambridgeshire County Council,29-Oct-20,51301444950,"-1,400.00",LONGUEVILLE COURT,CARE ESTABLISHMENT,Physical Disablity - Cost of Care,Countywide PD Service - Care,Residential Care
Cambridgeshire County Council,29-Oct-20,51301444950,"-1,400.00",LONGUEVILLE COURT,CARE ESTABLISHMENT,Physical Disablity - Cost of Care,Countywide PD Service - Care,Residential Care
Cambridgeshire County Council,29-Oct-20,51301444950,"-1,400.00",LONGUEVILLE COURT,CARE ESTABLISHMENT,Physical Disablity - Cost of Care,Countywide PD Service - Care,Residential Care
Cambridgeshire County Council,29-Oct-20,51301444950,"-1,400.00",LONGUEVILLE COURT,CARE ESTABLISHMENT,Physical Disablity - Cost of Care,Countywide PD Service - Care,Residential Care
Cambridgeshire County Council,29-Oct-20,51301444950,"-1,400.00",LONGUEVILLE COURT,CARE ESTABLISHMENT,Physical Disablity - Cost of Care,Countywide PD Service - Care,Residential Care
Cambridgeshire County Council,29-Oct-20,51301444950,"-1,400.00",LONGUEVILLE COURT,CARE ESTABLISHMENT,Physical Disablity - Cost of Care,Countywide PD Service - Care,Residential Care
Cambridgeshire County Council,29-Oct-20,51301444950,"-1,400.00",LONGUEVILLE COURT,CARE ESTABLISHMENT,Physical Disablity - Cost of Care,Countywide PD Service - Care,Residential Care
Cambridgeshire County Council,29-Oct-20,51301444950,"-1,400.00",LONGUEVILLE COURT,CARE ESTABLISHMENT,Physical Disablity - Cost of Care,Countywide PD Service - Care,Residential Care
Cambridgeshire County Council,29-Oct-20,51301444950,"-1,400.00",LONGUEVILLE COURT,CARE ESTABLISHMENT,Physical Disablity - Cost of Care,Countywide PD Service - Care,Residential Care
Cambridgeshire County Council,29-Oct-20,51301444950,"-1,400.00",LONGUEVILLE COURT,CARE ESTABLISHMENT,Physical Disablity - Cost of Care,Countywide PD Service - Care,Residential Care
Cambridgeshire County Council,29-Oct-20,51301431788,"-1,400.00",LONGUEVILLE COURT,CARE ESTABLISHMENT,Physical Disablity - Cost of Care,Countywide PD Service - Care,Residential Care
Cambridgeshire County Council,29-Oct-20,51301431788,"-1,400.00",LONGUEVILLE COURT,CARE ESTABLISHMENT,Physical Disablity - Cost of Care,Countywide PD Service - Care,Residential Care
Cambridgeshire County Council,16-Oct-20,51301454031,"-1,388.57",Lighthouse Fostering,CARE ESTABLISHMENT,LAC Placements,Placements - independent fostering,Agency Placements - Out of  County
Cambridgeshire County Council,15-Oct-20,51301453538,"-1,366.08",WOODLANDS CARE CENTRE,CARE ESTABLISHMENT,OPMH - City & South,Older People Mental Health City & South,Nursing Care
Cambridgeshire County Council,15-Oct-20,51301453538,"-1,366.08",WOODLANDS CARE CENTRE,CARE ESTABLISHMENT,OPMH - City & South,Older People Mental Health City & South,Nursing Care
Cambridgeshire County Council,15-Oct-20,51301453538,"-1,366.08",WOODLANDS CARE CENTRE,CARE ESTABLISHMENT,OPMH - City & South,Older People Mental Health City & South,Nursing Care
Cambridgeshire County Council,15-Oct-20,51301453538,"-1,366.08",WOODLANDS CARE CENTRE,CARE ESTABLISHMENT,OPMH - City & South,Older People Mental Health City & South,Nursing Care
Cambridgeshire County Council,15-Oct-20,51301453538,"-1,366.08",WOODLANDS CARE CENTRE,CARE ESTABLISHMENT,OPMH - City & South,Older People Mental Health City & South,Nursing Care
Cambridgeshire County Council,15-Oct-20,51301453538,"-1,366.08",WOODLANDS CARE CENTRE,CARE ESTABLISHMENT,OPMH - City & South,Older People Mental Health City & South,Nursing Care
Cambridgeshire County Council,15-Oct-20,51301453538,"-1,366.08",WOODLANDS CARE CENTRE,CARE ESTABLISHMENT,OPMH - City & South,Older People Mental Health City & South,Nursing Care
Cambridgeshire County Council,29-Oct-20,51301461518,"-1,350.65",HOME CLOSE LTD,CARE ESTABLISHMENT,OP - City & South Locality - Cost of Care,Older People - City & South - Care,Nursing Care
Cambridgeshire County Council,29-Oct-20,51301461518,"-1,350.65",HOME CLOSE LTD,CARE ESTABLISHMENT,OP - City & South Locality - Cost of Care,Older People - City & South - Care,Nursing Care
Cambridgeshire County Council,29-Oct-20,51301461518,"-1,350.65",HOME CLOSE LTD,CARE ESTABLISHMENT,OP - City & South Locality - Cost of Care,Older People - City & South - Care,Nursing Care
Cambridgeshire County Council,29-Oct-20,51301461518,"-1,350.65",HOME CLOSE LTD,CARE ESTABLISHMENT,OP - City & South Locality - Cost of Care,Older People - City & South - Care,Nursing Care
Cambridgeshire County Council,29-Oct-20,51301461518,"-1,350.65",HOME CLOSE LTD,CARE ESTABLISHMENT,OP - City & South Locality - Cost of Care,Older People - City & South - Care,Nursing Care
Cambridgeshire County Council,29-Oct-20,51301461518,"-1,350.65",HOME CLOSE LTD,CARE ESTABLISHMENT,OP - City & South Locality - Cost of Care,Older People - City & South - Care,Nursing Care
Cambridgeshire County Council,29-Oct-20,51301461518,"-1,350.65",HOME CLOSE LTD,CARE ESTABLISHMENT,OP - City & South Locality - Cost of Care,Older People - City & South - Care,Nursing Care
Cambridgeshire County Council,29-Oct-20,51301461518,"-1,350.65",HOME CLOSE LTD,CARE ESTABLISHMENT,OP - City & South Locality - Cost of Care,Older People - City & South - Care,Nursing Care
Cambridgeshire County Council,29-Oct-20,51301461518,"-1,350.65",HOME CLOSE LTD,CARE ESTABLISHMENT,OP - City & South Locality - Cost of Care,Older People - City & South - Care,Nursing Care
Cambridgeshire County Council,29-Oct-20,51301461518,"-1,350.65",HOME CLOSE LTD,CARE ESTABLISHMENT,OP - City & South Locality - Cost of Care,Older People - City & South - Care,Nursing Care
Cambridgeshire County Council,29-Oct-20,51301461518,"-1,350.65",HOME CLOSE LTD,CARE ESTABLISHMENT,OP - City & South Locality - Cost of Care,Older People - City & South - Care,Nursing Care
Cambridgeshire County Council,29-Oct-20,51301461518,"-1,350.65",HOME CLOSE LTD,CARE ESTABLISHMENT,OP - City & South Locality - Cost of Care,Older People - City & South - Care,Nursing Care
Cambridgeshire County Council,29-Oct-20,51301461518,"-1,350.65",HOME CLOSE LTD,CARE ESTABLISHMENT,OP - City & South Locality - Cost of Care,Older People - City & South - Care,Nursing Care
Cambridgeshire County Council,29-Oct-20,51301461518,"-1,350.65",HOME CLOSE LTD,CARE ESTABLISHMENT,OP - City & South Locality - Cost of Care,Older People - City & South - Care,Nursing Care
Cambridgeshire County Council,29-Oct-20,51301461518,"-1,350.65",HOME CLOSE LTD,CARE ESTABLISHMENT,OP - City & South Locality - Cost of Care,Older People - City & South - Care,Nursing Care
Cambridgeshire County Council,29-Oct-20,51301461518,"-1,350.65",HOME CLOSE LTD,CARE ESTABLISHMENT,OP - City & South Locality - Cost of Care,Older People - City & South - Care,Nursing Care
Cambridgeshire County Council,29-Oct-20,51301461518,"-1,350.65",HOME CLOSE LTD,CARE ESTABLISHMENT,OP - City & South Locality - Cost of Care,Older People - City & South - Care,Nursing Care
Cambridgeshire County Council,29-Oct-20,51301461518,"-1,350.65",HOME CLOSE LTD,CARE ESTABLISHMENT,OP - City & South Locality - Cost of Care,Older People - City & South - Care,Nursing Care
Cambridgeshire County Council,14-Oct-20,51301453359,"-1,316.89",Redacted Personal Data ,SERVICE USER,Physical Disablity - Cost of Care,Countywide PD Service - Care,Direct Payments
Cambridgeshire County Council,14-Oct-20,51301453359,"-1,316.89",Redacted Personal Data ,SERVICE USER,Physical Disablity - Cost of Care,Countywide PD Service - Care,Direct Payments
Cambridgeshire County Council,14-Oct-20,51301453359,"-1,316.89",Redacted Personal Data ,SERVICE USER,Physical Disablity - Cost of Care,Countywide PD Service - Care,Direct Payments
Cambridgeshire County Council,29-Oct-20,51301432820,"-1,302.00",LONGUEVILLE COURT,CARE ESTABLISHMENT,Physical Disablity - Cost of Care,Countywide PD Service - Care,Short Term Other
Cambridgeshire County Council,29-Oct-20,51301432820,"-1,302.00",LONGUEVILLE COURT,CARE ESTABLISHMENT,Physical Disablity - Cost of Care,Countywide PD Service - Care,Short Term Other
Cambridgeshire County Council,29-Oct-20,51301432820,"-1,302.00",LONGUEVILLE COURT,CARE ESTABLISHMENT,Physical Disablity - Cost of Care,Countywide PD Service - Care,Short Term Other
Cambridgeshire County Council,29-Oct-20,51301432820,"-1,302.00",LONGUEVILLE COURT,CARE ESTABLISHMENT,Physical Disablity - Cost of Care,Countywide PD Service - Care,Short Term Other
Cambridgeshire County Council,29-Oct-20,51301432820,"-1,302.00",LONGUEVILLE COURT,CARE ESTABLISHMENT,Physical Disablity - Cost of Care,Countywide PD Service - Care,Short Term Other
Cambridgeshire County Council,29-Oct-20,51301432820,"-1,302.00",LONGUEVILLE COURT,CARE ESTABLISHMENT,Physical Disablity - Cost of Care,Countywide PD Service - Care,Short Term Other
Cambridgeshire County Council,29-Oct-20,51301432820,"-1,302.00",LONGUEVILLE COURT,CARE ESTABLISHMENT,Physical Disablity - Cost of Care,Countywide PD Service - Care,Short Term Other
Cambridgeshire County Council,29-Oct-20,51301432820,"-1,302.00",LONGUEVILLE COURT,CARE ESTABLISHMENT,Physical Disablity - Cost of Care,Countywide PD Service - Care,Short Term Other
Cambridgeshire County Council,29-Oct-20,51301432820,"-1,302.00",LONGUEVILLE COURT,CARE ESTABLISHMENT,Physical Disablity - Cost of Care,Countywide PD Service - Care,Short Term Other
Cambridgeshire County Council,29-Oct-20,51301432820,"-1,302.00",LONGUEVILLE COURT,CARE ESTABLISHMENT,Physical Disablity - Cost of Care,Countywide PD Service - Care,Short Term Other
Cambridgeshire County Council,29-Oct-20,51301432820,"-1,302.00",LONGUEVILLE COURT,CARE ESTABLISHMENT,Physical Disablity - Cost of Care,Countywide PD Service - Care,Short Term Other
Cambridgeshire County Council,29-Oct-20,51301432820,"-1,302.00",LONGUEVILLE COURT,CARE ESTABLISHMENT,Physical Disablity - Cost of Care,Countywide PD Service - Care,Short Term Other
Cambridgeshire County Council,29-Oct-20,51301432820,"-1,302.00",LONGUEVILLE COURT,CARE ESTABLISHMENT,Physical Disablity - Cost of Care,Countywide PD Service - Care,Short Term Other
Cambridgeshire County Council,29-Oct-20,51301432820,"-1,302.00",LONGUEVILLE COURT,CARE ESTABLISHMENT,Physical Disablity - Cost of Care,Countywide PD Service - Care,Short Term Other
Cambridgeshire County Council,29-Oct-20,51301432820,"-1,302.00",LONGUEVILLE COURT,CARE ESTABLISHMENT,Physical Disablity - Cost of Care,Countywide PD Service - Care,Short Term Other
Cambridgeshire County Council,29-Oct-20,51301432820,"-1,302.00",LONGUEVILLE COURT,CARE ESTABLISHMENT,Physical Disablity - Cost of Care,Countywide PD Service - Care,Short Term Other
Cambridgeshire County Council,29-Oct-20,51301432820,"-1,302.00",LONGUEVILLE COURT,CARE ESTABLISHMENT,Physical Disablity - Cost of Care,Countywide PD Service - Care,Short Term Other
Cambridgeshire County Council,29-Oct-20,51301432820,"-1,302.00",LONGUEVILLE COURT,CARE ESTABLISHMENT,Physical Disablity - Cost of Care,Countywide PD Service - Care,Short Term Other
Cambridgeshire County Council,29-Oct-20,51301432820,"-1,302.00",LONGUEVILLE COURT,CARE ESTABLISHMENT,Physical Disablity - Cost of Care,Countywide PD Service - Care,Short Term Other
Cambridgeshire County Council,29-Oct-20,51301432820,"-1,302.00",LONGUEVILLE COURT,CARE ESTABLISHMENT,Physical Disablity - Cost of Care,Countywide PD Service - Care,Short Term Other
Cambridgeshire County Council,29-Oct-20,51301432820,"-1,302.00",LONGUEVILLE COURT,CARE ESTABLISHMENT,Physical Disablity - Cost of Care,Countywide PD Service - Care,Short Term Other
Cambridgeshire County Council,29-Oct-20,51301432820,"-1,302.00",LONGUEVILLE COURT,CARE ESTABLISHMENT,Physical Disablity - Cost of Care,Countywide PD Service - Care,Short Term Other
Cambridgeshire County Council,29-Oct-20,51301432820,"-1,302.00",LONGUEVILLE COURT,CARE ESTABLISHMENT,Physical Disablity - Cost of Care,Countywide PD Service - Care,Short Term Other
Cambridgeshire County Council,29-Oct-20,51301432820,"-1,302.00",LONGUEVILLE COURT,CARE ESTABLISHMENT,Physical Disablity - Cost of Care,Countywide PD Service - Care,Short Term Other
Cambridgeshire County Council,29-Oct-20,51301432820,"-1,302.00",LONGUEVILLE COURT,CARE ESTABLISHMENT,Physical Disablity - Cost of Care,Countywide PD Service - Care,Short Term Other
Cambridgeshire County Council,09-Oct-20,51301451173,"-1,285.68",Keys PCE Ltd,CARE ESTABLISHMENT,LAC Placements,Placements - residential homes,Agency Placements - Out of  County
Cambridgeshire County Council,09-Oct-20,51301451124,"-1,269.01",FITZROY SUPPORTED,CARE ESTABLISHMENT,LD - Fenland Locality - Cost of Care,LD - Fenland  - Care,Supported Living
Cambridgeshire County Council,09-Oct-20,51301451124,"-1,269.01",FITZROY SUPPORTED,CARE ESTABLISHMENT,LD - Fenland Locality - Cost of Care,LD - Fenland  - Care,Supported Living
Cambridgeshire County Council,09-Oct-20,51301451124,"-1,269.01",FITZROY SUPPORTED,CARE ESTABLISHMENT,LD - Fenland Locality - Cost of Care,LD - Fenland  - Care,Supported Living
Cambridgeshire County Council,09-Oct-20,51301451124,"-1,269.01",FITZROY SUPPORTED,CARE ESTABLISHMENT,LD - Fenland Locality - Cost of Care,LD - Fenland  - Care,Supported Living
Cambridgeshire County Council,09-Oct-20,51301451124,"-1,269.01",FITZROY SUPPORTED,CARE ESTABLISHMENT,LD - Fenland Locality - Cost of Care,LD - Fenland  - Care,Supported Living
Cambridgeshire County Council,09-Oct-20,51301451124,"-1,269.01",FITZROY SUPPORTED,CARE ESTABLISHMENT,LD - Fenland Locality - Cost of Care,LD - Fenland  - Care,Supported Living
Cambridgeshire County Council,09-Oct-20,51301451124,"-1,269.01",FITZROY SUPPORTED,CARE ESTABLISHMENT,LD - Fenland Locality - Cost of Care,LD - Fenland  - Care,Supported Living
Cambridgeshire County Council,09-Oct-20,51301451124,"-1,269.01",FITZROY SUPPORTED,CARE ESTABLISHMENT,LD - Fenland Locality - Cost of Care,LD - Fenland  - Care,Supported Living
Cambridgeshire County Council,09-Oct-20,51301451124,"-1,269.01",FITZROY SUPPORTED,CARE ESTABLISHMENT,LD - Fenland Locality - Cost of Care,LD - Fenland  - Care,Supported Living
Cambridgeshire County Council,09-Oct-20,51301451124,"-1,269.01",FITZROY SUPPORTED,CARE ESTABLISHMENT,LD - Fenland Locality - Cost of Care,LD - Fenland  - Care,Supported Living
Cambridgeshire County Council,09-Oct-20,51301451124,"-1,269.01",FITZROY SUPPORTED,CARE ESTABLISHMENT,LD - Fenland Locality - Cost of Care,LD - Fenland  - Care,Supported Living
Cambridgeshire County Council,09-Oct-20,51301451124,"-1,269.01",FITZROY SUPPORTED,CARE ESTABLISHMENT,LD - Fenland Locality - Cost of Care,LD - Fenland  - Care,Supported Living
Cambridgeshire County Council,09-Oct-20,51301451124,"-1,269.01",FITZROY SUPPORTED,CARE ESTABLISHMENT,LD - Fenland Locality - Cost of Care,LD - Fenland  - Care,Supported Living
Cambridgeshire County Council,09-Oct-20,51301451124,"-1,269.01",FITZROY SUPPORTED,CARE ESTABLISHMENT,LD - Fenland Locality - Cost of Care,LD - Fenland  - Care,Supported Living
Cambridgeshire County Council,09-Oct-20,51301451124,"-1,269.01",FITZROY SUPPORTED,CARE ESTABLISHMENT,LD - Fenland Locality - Cost of Care,LD - Fenland  - Care,Supported Living
Cambridgeshire County Council,09-Oct-20,51301451124,"-1,269.01",FITZROY SUPPORTED,CARE ESTABLISHMENT,LD - Fenland Locality - Cost of Care,LD - Fenland  - Care,Supported Living
Cambridgeshire County Council,09-Oct-20,51301451124,"-1,269.01",FITZROY SUPPORTED,CARE ESTABLISHMENT,LD - Fenland Locality - Cost of Care,LD - Fenland  - Care,Supported Living
Cambridgeshire County Council,09-Oct-20,51301451124,"-1,269.01",FITZROY SUPPORTED,CARE ESTABLISHMENT,LD - Fenland Locality - Cost of Care,LD - Fenland  - Care,Supported Living
Cambridgeshire County Council,09-Oct-20,51301451124,"-1,269.01",FITZROY SUPPORTED,CARE ESTABLISHMENT,LD - Fenland Locality - Cost of Care,LD - Fenland  - Care,Supported Living
Cambridgeshire County Council,09-Oct-20,51301451124,"-1,269.01",FITZROY SUPPORTED,CARE ESTABLISHMENT,LD - Fenland Locality - Cost of Care,LD - Fenland  - Care,Supported Living
Cambridgeshire County Council,09-Oct-20,51301451124,"-1,269.01",FITZROY SUPPORTED,CARE ESTABLISHMENT,LD - Fenland Locality - Cost of Care,LD - Fenland  - Care,Supported Living
Cambridgeshire County Council,09-Oct-20,51301451124,"-1,269.01",FITZROY SUPPORTED,CARE ESTABLISHMENT,LD - Fenland Locality - Cost of Care,LD - Fenland  - Care,Supported Living
Cambridgeshire County Council,09-Oct-20,51301451124,"-1,269.01",FITZROY SUPPORTED,CARE ESTABLISHMENT,LD - Fenland Locality - Cost of Care,LD - Fenland  - Care,Supported Living
Cambridgeshire County Council,09-Oct-20,51301451124,"-1,269.01",FITZROY SUPPORTED,CARE ESTABLISHMENT,LD - Fenland Locality - Cost of Care,LD - Fenland  - Care,Supported Living
Cambridgeshire County Council,09-Oct-20,51301451124,"-1,269.01",FITZROY SUPPORTED,CARE ESTABLISHMENT,LD - Fenland Locality - Cost of Care,LD - Fenland  - Care,Supported Living
Cambridgeshire County Council,09-Oct-20,51301451124,"-1,269.01",FITZROY SUPPORTED,CARE ESTABLISHMENT,LD - Fenland Locality - Cost of Care,LD - Fenland  - Care,Supported Living
Cambridgeshire County Council,09-Oct-20,51301451124,"-1,269.01",FITZROY SUPPORTED,CARE ESTABLISHMENT,LD - Fenland Locality - Cost of Care,LD - Fenland  - Care,Supported Living
Cambridgeshire County Council,09-Oct-20,51301451124,"-1,269.01",FITZROY SUPPORTED,CARE ESTABLISHMENT,LD - Fenland Locality - Cost of Care,LD - Fenland  - Care,Supported Living
Cambridgeshire County Council,09-Oct-20,51301451124,"-1,269.01",FITZROY SUPPORTED,CARE ESTABLISHMENT,LD - Fenland Locality - Cost of Care,LD - Fenland  - Care,Supported Living
Cambridgeshire County Council,09-Oct-20,51301451124,"-1,269.01",FITZROY SUPPORTED,CARE ESTABLISHMENT,LD - Fenland Locality - Cost of Care,LD - Fenland  - Care,Supported Living
Cambridgeshire County Council,09-Oct-20,51301451124,"-1,269.01",FITZROY SUPPORTED,CARE ESTABLISHMENT,LD - Fenland Locality - Cost of Care,LD - Fenland  - Care,Supported Living
Cambridgeshire County Council,09-Oct-20,51301451124,"-1,269.01",FITZROY SUPPORTED,CARE ESTABLISHMENT,LD - Fenland Locality - Cost of Care,LD - Fenland  - Care,Supported Living
Cambridgeshire County Council,09-Oct-20,51301451124,"-1,269.01",FITZROY SUPPORTED,CARE ESTABLISHMENT,LD - Fenland Locality - Cost of Care,LD - Fenland  - Care,Supported Living
Cambridgeshire County Council,09-Oct-20,51301451124,"-1,269.01",FITZROY SUPPORTED,CARE ESTABLISHMENT,LD - Fenland Locality - Cost of Care,LD - Fenland  - Care,Supported Living
Cambridgeshire County Council,09-Oct-20,51301451124,"-1,269.01",FITZROY SUPPORTED,CARE ESTABLISHMENT,LD - Fenland Locality - Cost of Care,LD - Fenland  - Care,Supported Living
Cambridgeshire County Council,09-Oct-20,51301451124,"-1,269.01",FITZROY SUPPORTED,CARE ESTABLISHMENT,LD - Fenland Locality - Cost of Care,LD - Fenland  - Care,Supported Living
Cambridgeshire County Council,09-Oct-20,51301451124,"-1,269.01",FITZROY SUPPORTED,CARE ESTABLISHMENT,LD - Fenland Locality - Cost of Care,LD - Fenland  - Care,Supported Living
Cambridgeshire County Council,09-Oct-20,51301451124,"-1,269.01",FITZROY SUPPORTED,CARE ESTABLISHMENT,LD - Fenland Locality - Cost of Care,LD - Fenland  - Care,Supported Living
Cambridgeshire County Council,09-Oct-20,51301451124,"-1,269.01",FITZROY SUPPORTED,CARE ESTABLISHMENT,LD - Fenland Locality - Cost of Care,LD - Fenland  - Care,Supported Living
Cambridgeshire County Council,09-Oct-20,51301451124,"-1,269.01",FITZROY SUPPORTED,CARE ESTABLISHMENT,LD - Fenland Locality - Cost of Care,LD - Fenland  - Care,Supported Living
Cambridgeshire County Council,09-Oct-20,51301451124,"-1,269.01",FITZROY SUPPORTED,CARE ESTABLISHMENT,LD - Fenland Locality - Cost of Care,LD - Fenland  - Care,Supported Living
Cambridgeshire County Council,09-Oct-20,51301451124,"-1,269.01",FITZROY SUPPORTED,CARE ESTABLISHMENT,LD - Fenland Locality - Cost of Care,LD - Fenland  - Care,Supported Living
Cambridgeshire County Council,09-Oct-20,51301451124,"-1,269.01",FITZROY SUPPORTED,CARE ESTABLISHMENT,LD - Fenland Locality - Cost of Care,LD - Fenland  - Care,Supported Living
Cambridgeshire County Council,09-Oct-20,51301451124,"-1,269.01",FITZROY SUPPORTED,CARE ESTABLISHMENT,LD - Fenland Locality - Cost of Care,LD - Fenland  - Care,Supported Living
Cambridgeshire County Council,09-Oct-20,51301451124,"-1,269.01",FITZROY SUPPORTED,CARE ESTABLISHMENT,LD - Fenland Locality - Cost of Care,LD - Fenland  - Care,Supported Living
Cambridgeshire County Council,09-Oct-20,51301451124,"-1,269.01",FITZROY SUPPORTED,CARE ESTABLISHMENT,LD - Fenland Locality - Cost of Care,LD - Fenland  - Care,Supported Living
Cambridgeshire County Council,09-Oct-20,51301451124,"-1,269.01",FITZROY SUPPORTED,CARE ESTABLISHMENT,LD - Fenland Locality - Cost of Care,LD - Fenland  - Care,Supported Living
Cambridgeshire County Council,09-Oct-20,51301451124,"-1,269.01",FITZROY SUPPORTED,CARE ESTABLISHMENT,LD - Fenland Locality - Cost of Care,LD - Fenland  - Care,Supported Living
Cambridgeshire County Council,09-Oct-20,51301451124,"-1,269.01",FITZROY SUPPORTED,CARE ESTABLISHMENT,LD - Fenland Locality - Cost of Care,LD - Fenland  - Care,Supported Living
Cambridgeshire County Council,09-Oct-20,51301451124,"-1,269.01",FITZROY SUPPORTED,CARE ESTABLISHMENT,LD - Fenland Locality - Cost of Care,LD - Fenland  - Care,Supported Living
Cambridgeshire County Council,09-Oct-20,51301451124,"-1,269.01",FITZROY SUPPORTED,CARE ESTABLISHMENT,LD - Fenland Locality - Cost of Care,LD - Fenland  - Care,Supported Living
Cambridgeshire County Council,09-Oct-20,51301451124,"-1,269.01",FITZROY SUPPORTED,CARE ESTABLISHMENT,LD - Fenland Locality - Cost of Care,LD - Fenland  - Care,Supported Living
Cambridgeshire County Council,09-Oct-20,51301451124,"-1,269.01",FITZROY SUPPORTED,CARE ESTABLISHMENT,LD - Fenland Locality - Cost of Care,LD - Fenland  - Care,Supported Living
Cambridgeshire County Council,09-Oct-20,51301451124,"-1,269.01",FITZROY SUPPORTED,CARE ESTABLISHMENT,LD - Fenland Locality - Cost of Care,LD - Fenland  - Care,Supported Living
Cambridgeshire County Council,29-Oct-20,51301463663,"-1,260.00",FARRINGTON CARE HOMES LTD T/A WOODLANDS RESIDENTIAL CARE HOME,CARE ESTABLISHMENT,OP - City & South Locality - Cost of Care,Older People - City & South - Care,Rehabilitation And Respite Care
Cambridgeshire County Council,05-Oct-20,51301444650,"-1,233.99",AUGUSTA CARE LTD,CARE ESTABLISHMENT,LD - Young Adults Team,LD - Young Adults - Care,Supported Living
Cambridgeshire County Council,05-Oct-20,51301444650,"-1,233.99",AUGUSTA CARE LTD,CARE ESTABLISHMENT,LD - Young Adults Team,LD - Young Adults - Care,Supported Living
Cambridgeshire County Council,05-Oct-20,51301444650,"-1,233.99",AUGUSTA CARE LTD,CARE ESTABLISHMENT,LD - Young Adults Team,LD - Young Adults - Care,Supported Living
Cambridgeshire County Council,05-Oct-20,51301444650,"-1,233.99",AUGUSTA CARE LTD,CARE ESTABLISHMENT,LD - Young Adults Team,LD - Young Adults - Care,Supported Living
Cambridgeshire County Council,05-Oct-20,51301444650,"-1,233.99",AUGUSTA CARE LTD,CARE ESTABLISHMENT,LD - Young Adults Team,LD - Young Adults - Care,Supported Living
Cambridgeshire County Council,05-Oct-20,51301444650,"-1,233.99",AUGUSTA CARE LTD,CARE ESTABLISHMENT,LD - Young Adults Team,LD - Young Adults - Care,Supported Living
Cambridgeshire County Council,05-Oct-20,51301444650,"-1,233.99",AUGUSTA CARE LTD,CARE ESTABLISHMENT,LD - Young Adults Team,LD - Young Adults - Care,Supported Living
Cambridgeshire County Council,05-Oct-20,51301444650,"-1,233.99",AUGUSTA CARE LTD,CARE ESTABLISHMENT,LD - Young Adults Team,LD - Young Adults - Care,Supported Living
Cambridgeshire County Council,05-Oct-20,51301444650,"-1,233.99",AUGUSTA CARE LTD,CARE ESTABLISHMENT,LD - Young Adults Team,LD - Young Adults - Care,Supported Living
Cambridgeshire County Council,05-Oct-20,51301444655,"-1,233.99",AUGUSTA CARE LTD,CARE ESTABLISHMENT,LD - Young Adults Team,LD - Young Adults - Care,Supported Living
Cambridgeshire County Council,05-Oct-20,51301444655,"-1,233.99",AUGUSTA CARE LTD,CARE ESTABLISHMENT,LD - Young Adults Team,LD - Young Adults - Care,Supported Living
Cambridgeshire County Council,05-Oct-20,51301444655,"-1,233.99",AUGUSTA CARE LTD,CARE ESTABLISHMENT,LD - Young Adults Team,LD - Young Adults - Care,Supported Living
Cambridgeshire County Council,05-Oct-20,51301444655,"-1,233.99",AUGUSTA CARE LTD,CARE ESTABLISHMENT,LD - Young Adults Team,LD - Young Adults - Care,Supported Living
Cambridgeshire County Council,05-Oct-20,51301444655,"-1,233.99",AUGUSTA CARE LTD,CARE ESTABLISHMENT,LD - Young Adults Team,LD - Young Adults - Care,Supported Living
Cambridgeshire County Council,05-Oct-20,51301444655,"-1,233.99",AUGUSTA CARE LTD,CARE ESTABLISHMENT,LD - Young Adults Team,LD - Young Adults - Care,Supported Living
Cambridgeshire County Council,05-Oct-20,51301444655,"-1,233.99",AUGUSTA CARE LTD,CARE ESTABLISHMENT,LD - Young Adults Team,LD - Young Adults - Care,Supported Living
Cambridgeshire County Council,05-Oct-20,51301444655,"-1,233.99",AUGUSTA CARE LTD,CARE ESTABLISHMENT,LD - Young Adults Team,LD - Young Adults - Care,Supported Living
Cambridgeshire County Council,05-Oct-20,51301444655,"-1,233.99",AUGUSTA CARE LTD,CARE ESTABLISHMENT,LD - Young Adults Team,LD - Young Adults - Care,Supported Living
Cambridgeshire County Council,05-Oct-20,51301444650,"-1,233.99",AUGUSTA CARE LTD,CARE ESTABLISHMENT,LD - Young Adults Team,LD - Young Adults - Care,Supported Living
Cambridgeshire County Council,05-Oct-20,51301444650,"-1,233.99",AUGUSTA CARE LTD,CARE ESTABLISHMENT,LD - Young Adults Team,LD - Young Adults - Care,Supported Living
Cambridgeshire County Council,05-Oct-20,51301444650,"-1,233.99",AUGUSTA CARE LTD,CARE ESTABLISHMENT,LD - Young Adults Team,LD - Young Adults - Care,Supported Living
Cambridgeshire County Council,05-Oct-20,51301444650,"-1,233.99",AUGUSTA CARE LTD,CARE ESTABLISHMENT,LD - Young Adults Team,LD - Young Adults - Care,Supported Living
Cambridgeshire County Council,05-Oct-20,51301444650,"-1,233.99",AUGUSTA CARE LTD,CARE ESTABLISHMENT,LD - Young Adults Team,LD - Young Adults - Care,Supported Living
Cambridgeshire County Council,05-Oct-20,51301444650,"-1,233.99",AUGUSTA CARE LTD,CARE ESTABLISHMENT,LD - Young Adults Team,LD - Young Adults - Care,Supported Living
Cambridgeshire County Council,05-Oct-20,51301444650,"-1,233.99",AUGUSTA CARE LTD,CARE ESTABLISHMENT,LD - Young Adults Team,LD - Young Adults - Care,Supported Living
Cambridgeshire County Council,05-Oct-20,51301444650,"-1,233.99",AUGUSTA CARE LTD,CARE ESTABLISHMENT,LD - Young Adults Team,LD - Young Adults - Care,Supported Living
Cambridgeshire County Council,05-Oct-20,51301444650,"-1,233.99",AUGUSTA CARE LTD,CARE ESTABLISHMENT,LD - Young Adults Team,LD - Young Adults - Care,Supported Living
Cambridgeshire County Council,05-Oct-20,51301444650,"-1,233.99",AUGUSTA CARE LTD,CARE ESTABLISHMENT,LD - Young Adults Team,LD - Young Adults - Care,Supported Living
Cambridgeshire County Council,05-Oct-20,51301444650,"-1,233.99",AUGUSTA CARE LTD,CARE ESTABLISHMENT,LD - Young Adults Team,LD - Young Adults - Care,Supported Living
Cambridgeshire County Council,05-Oct-20,51301444650,"-1,233.99",AUGUSTA CARE LTD,CARE ESTABLISHMENT,LD - Young Adults Team,LD - Young Adults - Care,Supported Living
Cambridgeshire County Council,05-Oct-20,51301444650,"-1,233.99",AUGUSTA CARE LTD,CARE ESTABLISHMENT,LD - Young Adults Team,LD - Young Adults - Care,Supported Living
Cambridgeshire County Council,05-Oct-20,51301444650,"-1,233.99",AUGUSTA CARE LTD,CARE ESTABLISHMENT,LD - Young Adults Team,LD - Young Adults - Care,Supported Living
Cambridgeshire County Council,05-Oct-20,51301444650,"-1,233.99",AUGUSTA CARE LTD,CARE ESTABLISHMENT,LD - Young Adults Team,LD - Young Adults - Care,Supported Living
Cambridgeshire County Council,05-Oct-20,51301444650,"-1,233.99",AUGUSTA CARE LTD,CARE ESTABLISHMENT,LD - Young Adults Team,LD - Young Adults - Care,Supported Living
Cambridgeshire County Council,05-Oct-20,51301444655,"-1,233.99",AUGUSTA CARE LTD,CARE ESTABLISHMENT,LD - Young Adults Team,LD - Young Adults - Care,Supported Living
Cambridgeshire County Council,05-Oct-20,51301444655,"-1,233.99",AUGUSTA CARE LTD,CARE ESTABLISHMENT,LD - Young Adults Team,LD - Young Adults - Care,Supported Living
Cambridgeshire County Council,05-Oct-20,51301444655,"-1,233.99",AUGUSTA CARE LTD,CARE ESTABLISHMENT,LD - Young Adults Team,LD - Young Adults - Care,Supported Living
Cambridgeshire County Council,05-Oct-20,51301444655,"-1,233.99",AUGUSTA CARE LTD,CARE ESTABLISHMENT,LD - Young Adults Team,LD - Young Adults - Care,Supported Living
Cambridgeshire County Council,05-Oct-20,51301444655,"-1,233.99",AUGUSTA CARE LTD,CARE ESTABLISHMENT,LD - Young Adults Team,LD - Young Adults - Care,Supported Living
Cambridgeshire County Council,05-Oct-20,51301444655,"-1,233.99",AUGUSTA CARE LTD,CARE ESTABLISHMENT,LD - Young Adults Team,LD - Young Adults - Care,Supported Living
Cambridgeshire County Council,05-Oct-20,51301444655,"-1,233.99",AUGUSTA CARE LTD,CARE ESTABLISHMENT,LD - Young Adults Team,LD - Young Adults - Care,Supported Living
Cambridgeshire County Council,05-Oct-20,51301444655,"-1,233.99",AUGUSTA CARE LTD,CARE ESTABLISHMENT,LD - Young Adults Team,LD - Young Adults - Care,Supported Living
Cambridgeshire County Council,05-Oct-20,51301444655,"-1,233.99",AUGUSTA CARE LTD,CARE ESTABLISHMENT,LD - Young Adults Team,LD - Young Adults - Care,Supported Living
Cambridgeshire County Council,05-Oct-20,51301444655,"-1,233.99",AUGUSTA CARE LTD,CARE ESTABLISHMENT,LD - Young Adults Team,LD - Young Adults - Care,Supported Living
Cambridgeshire County Council,05-Oct-20,51301444655,"-1,233.99",AUGUSTA CARE LTD,CARE ESTABLISHMENT,LD - Young Adults Team,LD - Young Adults - Care,Supported Living
Cambridgeshire County Council,05-Oct-20,51301444655,"-1,233.99",AUGUSTA CARE LTD,CARE ESTABLISHMENT,LD - Young Adults Team,LD - Young Adults - Care,Supported Living
Cambridgeshire County Council,05-Oct-20,51301444655,"-1,233.99",AUGUSTA CARE LTD,CARE ESTABLISHMENT,LD - Young Adults Team,LD - Young Adults - Care,Supported Living
Cambridgeshire County Council,05-Oct-20,51301444655,"-1,233.99",AUGUSTA CARE LTD,CARE ESTABLISHMENT,LD - Young Adults Team,LD - Young Adults - Care,Supported Living
Cambridgeshire County Council,05-Oct-20,51301444655,"-1,233.99",AUGUSTA CARE LTD,CARE ESTABLISHMENT,LD - Young Adults Team,LD - Young Adults - Care,Supported Living
Cambridgeshire County Council,05-Oct-20,51301444655,"-1,233.99",AUGUSTA CARE LTD,CARE ESTABLISHMENT,LD - Young Adults Team,LD - Young Adults - Care,Supported Living
Cambridgeshire County Council,29-Oct-20,51301462869,"-1,231.71",GLENHOLME HEALTHCARE LTD,CARE ESTABLISHMENT,LD - Hunts Locality - Cost of Care,LD - Huntingdonshire - Care,Residential Care
Cambridgeshire County Council,05-Oct-20,51301444718,"-1,231.68",GUYATT HOUSE CARE LTD,CARE ESTABLISHMENT,LD - Young Adults Team,LD - Young Adults - Care,Supported Living
Cambridgeshire County Council,05-Oct-20,51301444718,"-1,231.68",GUYATT HOUSE CARE LTD,CARE ESTABLISHMENT,LD - Young Adults Team,LD - Young Adults - Care,Supported Living
Cambridgeshire County Council,05-Oct-20,51301444718,"-1,231.68",GUYATT HOUSE CARE LTD,CARE ESTABLISHMENT,LD - Young Adults Team,LD - Young Adults - Care,Supported Living
Cambridgeshire County Council,05-Oct-20,51301444718,"-1,231.68",GUYATT HOUSE CARE LTD,CARE ESTABLISHMENT,LD - Young Adults Team,LD - Young Adults - Care,Supported Living
Cambridgeshire County Council,05-Oct-20,51301444718,"-1,231.68",GUYATT HOUSE CARE LTD,CARE ESTABLISHMENT,LD - Young Adults Team,LD - Young Adults - Care,Supported Living
Cambridgeshire County Council,05-Oct-20,51301444718,"-1,231.68",GUYATT HOUSE CARE LTD,CARE ESTABLISHMENT,LD - Young Adults Team,LD - Young Adults - Care,Supported Living
Cambridgeshire County Council,05-Oct-20,51301444718,"-1,231.68",GUYATT HOUSE CARE LTD,CARE ESTABLISHMENT,LD - Young Adults Team,LD - Young Adults - Care,Supported Living
Cambridgeshire County Council,05-Oct-20,51301444718,"-1,231.68",GUYATT HOUSE CARE LTD,CARE ESTABLISHMENT,LD - Young Adults Team,LD - Young Adults - Care,Supported Living
Cambridgeshire County Council,05-Oct-20,51301444718,"-1,231.68",GUYATT HOUSE CARE LTD,CARE ESTABLISHMENT,LD - Young Adults Team,LD - Young Adults - Care,Supported Living
Cambridgeshire County Council,05-Oct-20,51301444718,"-1,231.68",GUYATT HOUSE CARE LTD,CARE ESTABLISHMENT,LD - Young Adults Team,LD - Young Adults - Care,Supported Living
Cambridgeshire County Council,26-Oct-20,51301455750,"-1,208.16",REED SPECIALIST RECRUITMENT LTD,TRADE SUPPLIER,Community Support Service,Community Support Service ECF,Grants to Voluntary Bodies
Cambridgeshire County Council,29-Oct-20,51301454016,"-1,207.80",MENCAP PETERBOROUGH,CARE ESTABLISHMENT,OP - Fenland Locality - Cost of Care,Older People - Fenland - Care,Domiciliary Care
Cambridgeshire County Council,05-Oct-20,51301438927,"-1,200.04",73 HIGH ROAD,CARE ESTABLISHMENT,LD - South Locality - Cost of Care,LD - South Cambs - Care,Supported Living
Cambridgeshire County Council,05-Oct-20,51301438927,"-1,200.04",73 HIGH ROAD,CARE ESTABLISHMENT,LD - South Locality - Cost of Care,LD - South Cambs - Care,Supported Living
Cambridgeshire County Council,05-Oct-20,51301438927,"-1,200.04",73 HIGH ROAD,CARE ESTABLISHMENT,LD - South Locality - Cost of Care,LD - South Cambs - Care,Supported Living
Cambridgeshire County Council,05-Oct-20,51301438927,"-1,200.04",73 HIGH ROAD,CARE ESTABLISHMENT,LD - South Locality - Cost of Care,LD - South Cambs - Care,Supported Living
Cambridgeshire County Council,05-Oct-20,51301438927,"-1,200.04",73 HIGH ROAD,CARE ESTABLISHMENT,LD - South Locality - Cost of Care,LD - South Cambs - Care,Supported Living
Cambridgeshire County Council,05-Oct-20,51301438927,"-1,200.04",73 HIGH ROAD,CARE ESTABLISHMENT,LD - South Locality - Cost of Care,LD - South Cambs - Care,Supported Living
Cambridgeshire County Council,05-Oct-20,51301438927,"-1,200.04",73 HIGH ROAD,CARE ESTABLISHMENT,LD - South Locality - Cost of Care,LD - South Cambs - Care,Supported Living
Cambridgeshire County Council,05-Oct-20,51301438927,"-1,200.04",73 HIGH ROAD,CARE ESTABLISHMENT,LD - South Locality - Cost of Care,LD - South Cambs - Care,Supported Living
Cambridgeshire County Council,05-Oct-20,51301438927,"-1,200.04",73 HIGH ROAD,CARE ESTABLISHMENT,LD - South Locality - Cost of Care,LD - South Cambs - Care,Supported Living
Cambridgeshire County Council,05-Oct-20,51301438927,"-1,200.04",73 HIGH ROAD,CARE ESTABLISHMENT,LD - South Locality - Cost of Care,LD - South Cambs - Care,Supported Living
Cambridgeshire County Council,05-Oct-20,51301438927,"-1,200.04",73 HIGH ROAD,CARE ESTABLISHMENT,LD - South Locality - Cost of Care,LD - South Cambs - Care,Supported Living
Cambridgeshire County Council,05-Oct-20,51301438927,"-1,200.04",73 HIGH ROAD,CARE ESTABLISHMENT,LD - South Locality - Cost of Care,LD - South Cambs - Care,Supported Living
Cambridgeshire County Council,05-Oct-20,51301438927,"-1,200.04",73 HIGH ROAD,CARE ESTABLISHMENT,LD - South Locality - Cost of Care,LD - South Cambs - Care,Supported Living
Cambridgeshire County Council,05-Oct-20,51301438927,"-1,200.04",73 HIGH ROAD,CARE ESTABLISHMENT,LD - South Locality - Cost of Care,LD - South Cambs - Care,Supported Living
Cambridgeshire County Council,05-Oct-20,51301438927,"-1,200.04",73 HIGH ROAD,CARE ESTABLISHMENT,LD - South Locality - Cost of Care,LD - South Cambs - Care,Supported Living
Cambridgeshire County Council,05-Oct-20,51301438927,"-1,200.04",73 HIGH ROAD,CARE ESTABLISHMENT,LD - South Locality - Cost of Care,LD - South Cambs - Care,Supported Living
Cambridgeshire County Council,05-Oct-20,51301438927,"-1,200.04",73 HIGH ROAD,CARE ESTABLISHMENT,LD - South Locality - Cost of Care,LD - South Cambs - Care,Supported Living
Cambridgeshire County Council,05-Oct-20,51301438927,"-1,200.04",73 HIGH ROAD,CARE ESTABLISHMENT,LD - South Locality - Cost of Care,LD - South Cambs - Care,Supported Living
Cambridgeshire County Council,05-Oct-20,51301438927,"-1,200.04",73 HIGH ROAD,CARE ESTABLISHMENT,LD - South Locality - Cost of Care,LD - South Cambs - Care,Supported Living
Cambridgeshire County Council,05-Oct-20,51301438927,"-1,200.04",73 HIGH ROAD,CARE ESTABLISHMENT,LD - South Locality - Cost of Care,LD - South Cambs - Care,Supported Living
Cambridgeshire County Council,05-Oct-20,51301438927,"-1,200.04",73 HIGH ROAD,CARE ESTABLISHMENT,LD - South Locality - Cost of Care,LD - South Cambs - Care,Supported Living
Cambridgeshire County Council,05-Oct-20,51301438927,"-1,200.04",73 HIGH ROAD,CARE ESTABLISHMENT,LD - South Locality - Cost of Care,LD - South Cambs - Care,Supported Living
Cambridgeshire County Council,05-Oct-20,51301438927,"-1,200.04",73 HIGH ROAD,CARE ESTABLISHMENT,LD - South Locality - Cost of Care,LD - South Cambs - Care,Supported Living
Cambridgeshire County Council,29-Oct-20,51301460809,"-1,192.78",OAKLANDS CARE HOME,CARE ESTABLISHMENT,OP - East Cambs Locality - Cost of Care,East Cambs - O P Team - Care,Nursing Care
Cambridgeshire County Council,29-Oct-20,51301460809,"-1,192.78",OAKLANDS CARE HOME,CARE ESTABLISHMENT,OP - East Cambs Locality - Cost of Care,East Cambs - O P Team - Care,Nursing Care
Cambridgeshire County Council,29-Oct-20,51301460809,"-1,192.78",OAKLANDS CARE HOME,CARE ESTABLISHMENT,OP - East Cambs Locality - Cost of Care,East Cambs - O P Team - Care,Nursing Care
Cambridgeshire County Council,29-Oct-20,51301460809,"-1,192.78",OAKLANDS CARE HOME,CARE ESTABLISHMENT,OP - East Cambs Locality - Cost of Care,East Cambs - O P Team - Care,Nursing Care
Cambridgeshire County Council,29-Oct-20,51301460809,"-1,192.78",OAKLANDS CARE HOME,CARE ESTABLISHMENT,OP - East Cambs Locality - Cost of Care,East Cambs - O P Team - Care,Nursing Care
Cambridgeshire County Council,29-Oct-20,51301460809,"-1,192.78",OAKLANDS CARE HOME,CARE ESTABLISHMENT,OP - East Cambs Locality - Cost of Care,East Cambs - O P Team - Care,Nursing Care
Cambridgeshire County Council,29-Oct-20,51301460809,"-1,192.78",OAKLANDS CARE HOME,CARE ESTABLISHMENT,OP - East Cambs Locality - Cost of Care,East Cambs - O P Team - Care,Nursing Care
Cambridgeshire County Council,29-Oct-20,51301460809,"-1,192.78",OAKLANDS CARE HOME,CARE ESTABLISHMENT,OP - East Cambs Locality - Cost of Care,East Cambs - O P Team - Care,Nursing Care
Cambridgeshire County Council,29-Oct-20,51301460809,"-1,192.78",OAKLANDS CARE HOME,CARE ESTABLISHMENT,OP - East Cambs Locality - Cost of Care,East Cambs - O P Team - Care,Nursing Care
Cambridgeshire County Council,29-Oct-20,51301460809,"-1,192.78",OAKLANDS CARE HOME,CARE ESTABLISHMENT,OP - East Cambs Locality - Cost of Care,East Cambs - O P Team - Care,Nursing Care
Cambridgeshire County Council,09-Oct-20,51301451128,"-1,178.73",MAYFIELD HEATH FARM,CARE ESTABLISHMENT,LD - Hunts Locality - Cost of Care,LD - Huntingdonshire - Care,Supported Living
Cambridgeshire County Council,09-Oct-20,51301451128,"-1,178.73",MAYFIELD HEATH FARM,CARE ESTABLISHMENT,LD - Hunts Locality - Cost of Care,LD - Huntingdonshire - Care,Supported Living
Cambridgeshire County Council,09-Oct-20,51301451128,"-1,178.73",MAYFIELD HEATH FARM,CARE ESTABLISHMENT,LD - Hunts Locality - Cost of Care,LD - Huntingdonshire - Care,Supported Living
Cambridgeshire County Council,09-Oct-20,51301451128,"-1,178.73",MAYFIELD HEATH FARM,CARE ESTABLISHMENT,LD - Hunts Locality - Cost of Care,LD - Huntingdonshire - Care,Supported Living
Cambridgeshire County Council,09-Oct-20,51301451128,"-1,178.73",MAYFIELD HEATH FARM,CARE ESTABLISHMENT,LD - Hunts Locality - Cost of Care,LD - Huntingdonshire - Care,Supported Living
Cambridgeshire County Council,09-Oct-20,51301451128,"-1,178.73",MAYFIELD HEATH FARM,CARE ESTABLISHMENT,LD - Hunts Locality - Cost of Care,LD - Huntingdonshire - Care,Supported Living
Cambridgeshire County Council,09-Oct-20,51301451128,"-1,178.73",MAYFIELD HEATH FARM,CARE ESTABLISHMENT,LD - Hunts Locality - Cost of Care,LD - Huntingdonshire - Care,Supported Living
Cambridgeshire County Council,09-Oct-20,51301451128,"-1,178.73",MAYFIELD HEATH FARM,CARE ESTABLISHMENT,LD - Hunts Locality - Cost of Care,LD - Huntingdonshire - Care,Supported Living
Cambridgeshire County Council,09-Oct-20,51301451128,"-1,178.73",MAYFIELD HEATH FARM,CARE ESTABLISHMENT,LD - Hunts Locality - Cost of Care,LD - Huntingdonshire - Care,Supported Living
Cambridgeshire County Council,09-Oct-20,51301451128,"-1,178.73",MAYFIELD HEATH FARM,CARE ESTABLISHMENT,LD - Hunts Locality - Cost of Care,LD - Huntingdonshire - Care,Supported Living
Cambridgeshire County Council,29-Oct-20,51301461817,"-1,173.90",BETTER HEALTHCARE SERVICES LTD,CARE ESTABLISHMENT,OP - Fenland Locality - Cost of Care,Older People - Fenland - Care,Domiciliary Care
Cambridgeshire County Council,29-Oct-20,51301461817,"-1,173.90",BETTER HEALTHCARE SERVICES LTD,CARE ESTABLISHMENT,OP - Fenland Locality - Cost of Care,Older People - Fenland - Care,Domiciliary Care
Cambridgeshire County Council,29-Oct-20,51301461817,"-1,173.90",BETTER HEALTHCARE SERVICES LTD,CARE ESTABLISHMENT,OP - Fenland Locality - Cost of Care,Older People - Fenland - Care,Domiciliary Care
Cambridgeshire County Council,29-Oct-20,51301461817,"-1,173.90",BETTER HEALTHCARE SERVICES LTD,CARE ESTABLISHMENT,OP - Fenland Locality - Cost of Care,Older People - Fenland - Care,Domiciliary Care
Cambridgeshire County Council,29-Oct-20,51301461817,"-1,173.90",BETTER HEALTHCARE SERVICES LTD,CARE ESTABLISHMENT,OP - Fenland Locality - Cost of Care,Older People - Fenland - Care,Domiciliary Care
Cambridgeshire County Council,29-Oct-20,51301461817,"-1,173.90",BETTER HEALTHCARE SERVICES LTD,CARE ESTABLISHMENT,OP - Fenland Locality - Cost of Care,Older People - Fenland - Care,Domiciliary Care
Cambridgeshire County Council,29-Oct-20,51301463397,"-1,134.44",CHERRY HINTON NURSING HOME,CARE ESTABLISHMENT,OP - City & South Locality - Cost of Care,Older People - City & South - Care,Nursing Care
Cambridgeshire County Council,29-Oct-20,51301463397,"-1,134.44",CHERRY HINTON NURSING HOME,CARE ESTABLISHMENT,OP - City & South Locality - Cost of Care,Older People - City & South - Care,Nursing Care
Cambridgeshire County Council,29-Oct-20,51301463397,"-1,134.44",CHERRY HINTON NURSING HOME,CARE ESTABLISHMENT,OP - City & South Locality - Cost of Care,Older People - City & South - Care,Nursing Care
Cambridgeshire County Council,29-Oct-20,51301463397,"-1,134.44",CHERRY HINTON NURSING HOME,CARE ESTABLISHMENT,OP - City & South Locality - Cost of Care,Older People - City & South - Care,Nursing Care
Cambridgeshire County Council,29-Oct-20,51301463397,"-1,134.44",CHERRY HINTON NURSING HOME,CARE ESTABLISHMENT,OP - City & South Locality - Cost of Care,Older People - City & South - Care,Nursing Care
Cambridgeshire County Council,29-Oct-20,51301463397,"-1,134.44",CHERRY HINTON NURSING HOME,CARE ESTABLISHMENT,OP - City & South Locality - Cost of Care,Older People - City & South - Care,Nursing Care
Cambridgeshire County Council,29-Oct-20,51301463397,"-1,134.44",CHERRY HINTON NURSING HOME,CARE ESTABLISHMENT,OP - City & South Locality - Cost of Care,Older People - City & South - Care,Nursing Care
Cambridgeshire County Council,29-Oct-20,51301463390,"-1,134.44",BARCHESTER HEALTHCARE HOMES LTD,CARE ESTABLISHMENT,LD - South Locality - Cost of Care,LD - South Cambs - Care,Nursing Care
Cambridgeshire County Council,29-Oct-20,51301463390,"-1,134.44",BARCHESTER HEALTHCARE HOMES LTD,CARE ESTABLISHMENT,LD - South Locality - Cost of Care,LD - South Cambs - Care,Nursing Care
Cambridgeshire County Council,29-Oct-20,51301463390,"-1,134.44",BARCHESTER HEALTHCARE HOMES LTD,CARE ESTABLISHMENT,LD - South Locality - Cost of Care,LD - South Cambs - Care,Nursing Care
Cambridgeshire County Council,29-Oct-20,51301463390,"-1,134.44",BARCHESTER HEALTHCARE HOMES LTD,CARE ESTABLISHMENT,LD - South Locality - Cost of Care,LD - South Cambs - Care,Nursing Care
Cambridgeshire County Council,29-Oct-20,51301463390,"-1,134.44",BARCHESTER HEALTHCARE HOMES LTD,CARE ESTABLISHMENT,LD - South Locality - Cost of Care,LD - South Cambs - Care,Nursing Care
Cambridgeshire County Council,12-Oct-20,51301451594,"-1,114.68",24/7 Support UK Limited,CARE ESTABLISHMENT,Unaccompanied Asylum Seeking Children,Unaccompanied Asylum Seeking Children <18,Asylum Seekers
Cambridgeshire County Council,12-Oct-20,51301451607,"-1,114.68",24/7 Support UK Limited,CARE ESTABLISHMENT,Unaccompanied Asylum Seeking Children,Unaccompanied Asylum Seeking Children <18,Asylum Seekers
Cambridgeshire County Council,29-Oct-20,51301461417,"-1,100.00",CAMBRIDGE MANOR CARE HOME (TLC),CARE ESTABLISHMENT,OP - City & South Locality - Cost of Care,Older People - City & South - Care,Nursing Care
Cambridgeshire County Council,29-Oct-20,51301461417,"-1,100.00",CAMBRIDGE MANOR CARE HOME (TLC),CARE ESTABLISHMENT,OP - City & South Locality - Cost of Care,Older People - City & South - Care,Nursing Care
Cambridgeshire County Council,29-Oct-20,51301433697,"-1,100.00",THE GABLES SPECIALIST NURSING HOME,CARE ESTABLISHMENT,LD - Fenland Locality - Cost of Care,LD - Fenland  - Care,Residential Care
Cambridgeshire County Council,29-Oct-20,51301433697,"-1,100.00",THE GABLES SPECIALIST NURSING HOME,CARE ESTABLISHMENT,LD - Fenland Locality - Cost of Care,LD - Fenland  - Care,Residential Care
Cambridgeshire County Council,29-Oct-20,51301433697,"-1,100.00",THE GABLES SPECIALIST NURSING HOME,CARE ESTABLISHMENT,LD - Fenland Locality - Cost of Care,LD - Fenland  - Care,Residential Care
Cambridgeshire County Council,29-Oct-20,51301433697,"-1,100.00",THE GABLES SPECIALIST NURSING HOME,CARE ESTABLISHMENT,LD - Fenland Locality - Cost of Care,LD - Fenland  - Care,Residential Care
Cambridgeshire County Council,29-Oct-20,51301433697,"-1,100.00",THE GABLES SPECIALIST NURSING HOME,CARE ESTABLISHMENT,LD - Fenland Locality - Cost of Care,LD - Fenland  - Care,Residential Care
Cambridgeshire County Council,29-Oct-20,51301433697,"-1,100.00",THE GABLES SPECIALIST NURSING HOME,CARE ESTABLISHMENT,LD - Fenland Locality - Cost of Care,LD - Fenland  - Care,Residential Care
Cambridgeshire County Council,29-Oct-20,51301433697,"-1,100.00",THE GABLES SPECIALIST NURSING HOME,CARE ESTABLISHMENT,LD - Fenland Locality - Cost of Care,LD - Fenland  - Care,Residential Care
Cambridgeshire County Council,29-Oct-20,51301433697,"-1,100.00",THE GABLES SPECIALIST NURSING HOME,CARE ESTABLISHMENT,LD - Fenland Locality - Cost of Care,LD - Fenland  - Care,Residential Care
Cambridgeshire County Council,29-Oct-20,51301433697,"-1,100.00",THE GABLES SPECIALIST NURSING HOME,CARE ESTABLISHMENT,LD - Fenland Locality - Cost of Care,LD - Fenland  - Care,Residential Care
Cambridgeshire County Council,29-Oct-20,51301433697,"-1,100.00",THE GABLES SPECIALIST NURSING HOME,CARE ESTABLISHMENT,LD - Fenland Locality - Cost of Care,LD - Fenland  - Care,Residential Care
Cambridgeshire County Council,29-Oct-20,51301433697,"-1,100.00",THE GABLES SPECIALIST NURSING HOME,CARE ESTABLISHMENT,LD - Fenland Locality - Cost of Care,LD - Fenland  - Care,Residential Care
Cambridgeshire County Council,29-Oct-20,51301433697,"-1,100.00",THE GABLES SPECIALIST NURSING HOME,CARE ESTABLISHMENT,LD - Fenland Locality - Cost of Care,LD - Fenland  - Care,Residential Care
Cambridgeshire County Council,29-Oct-20,51301433697,"-1,100.00",THE GABLES SPECIALIST NURSING HOME,CARE ESTABLISHMENT,LD - Fenland Locality - Cost of Care,LD - Fenland  - Care,Residential Care
Cambridgeshire County Council,29-Oct-20,51301433697,"-1,100.00",THE GABLES SPECIALIST NURSING HOME,CARE ESTABLISHMENT,LD - Fenland Locality - Cost of Care,LD - Fenland  - Care,Residential Care
Cambridgeshire County Council,29-Oct-20,51301433697,"-1,100.00",THE GABLES SPECIALIST NURSING HOME,CARE ESTABLISHMENT,LD - Fenland Locality - Cost of Care,LD - Fenland  - Care,Residential Care
Cambridgeshire County Council,29-Oct-20,51301433697,"-1,100.00",THE GABLES SPECIALIST NURSING HOME,CARE ESTABLISHMENT,LD - Fenland Locality - Cost of Care,LD - Fenland  - Care,Residential Care
Cambridgeshire County Council,29-Oct-20,51301433697,"-1,100.00",THE GABLES SPECIALIST NURSING HOME,CARE ESTABLISHMENT,LD - Fenland Locality - Cost of Care,LD - Fenland  - Care,Residential Care
Cambridgeshire County Council,29-Oct-20,51301433697,"-1,100.00",THE GABLES SPECIALIST NURSING HOME,CARE ESTABLISHMENT,LD - Fenland Locality - Cost of Care,LD - Fenland  - Care,Residential Care
Cambridgeshire County Council,29-Oct-20,51301433697,"-1,100.00",THE GABLES SPECIALIST NURSING HOME,CARE ESTABLISHMENT,LD - Fenland Locality - Cost of Care,LD - Fenland  - Care,Residential Care
Cambridgeshire County Council,29-Oct-20,51301433697,"-1,100.00",THE GABLES SPECIALIST NURSING HOME,CARE ESTABLISHMENT,LD - Fenland Locality - Cost of Care,LD - Fenland  - Care,Residential Care
Cambridgeshire County Council,29-Oct-20,51301433697,"-1,100.00",THE GABLES SPECIALIST NURSING HOME,CARE ESTABLISHMENT,LD - Fenland Locality - Cost of Care,LD - Fenland  - Care,Residential Care
Cambridgeshire County Council,29-Oct-20,51301433697,"-1,100.00",THE GABLES SPECIALIST NURSING HOME,CARE ESTABLISHMENT,LD - Fenland Locality - Cost of Care,LD - Fenland  - Care,Residential Care
Cambridgeshire County Council,29-Oct-20,51301433697,"-1,100.00",THE GABLES SPECIALIST NURSING HOME,CARE ESTABLISHMENT,LD - Fenland Locality - Cost of Care,LD - Fenland  - Care,Residential Care
Cambridgeshire County Council,29-Oct-20,51301433697,"-1,100.00",THE GABLES SPECIALIST NURSING HOME,CARE ESTABLISHMENT,LD - Fenland Locality - Cost of Care,LD - Fenland  - Care,Residential Care
Cambridgeshire County Council,29-Oct-20,51301433697,"-1,100.00",THE GABLES SPECIALIST NURSING HOME,CARE ESTABLISHMENT,LD - Fenland Locality - Cost of Care,LD - Fenland  - Care,Residential Care
Cambridgeshire County Council,29-Oct-20,51301459422,"-1,098.06",MENCAP PETERBOROUGH,CARE ESTABLISHMENT,Autism and Adult Support - Cost of Care,Autism and Adult Support - Care,Domiciliary Care
Cambridgeshire County Council,29-Oct-20,51301459422,"-1,098.06",MENCAP PETERBOROUGH,CARE ESTABLISHMENT,Autism and Adult Support - Cost of Care,Autism and Adult Support - Care,Domiciliary Care
Cambridgeshire County Council,29-Oct-20,51301459422,"-1,098.06",MENCAP PETERBOROUGH,CARE ESTABLISHMENT,Autism and Adult Support - Cost of Care,Autism and Adult Support - Care,Domiciliary Care
Cambridgeshire County Council,29-Oct-20,51301459422,"-1,098.06",MENCAP PETERBOROUGH,CARE ESTABLISHMENT,Autism and Adult Support - Cost of Care,Autism and Adult Support - Care,Domiciliary Care
Cambridgeshire County Council,29-Oct-20,51301459422,"-1,098.06",MENCAP PETERBOROUGH,CARE ESTABLISHMENT,Autism and Adult Support - Cost of Care,Autism and Adult Support - Care,Domiciliary Care
Cambridgeshire County Council,29-Oct-20,51301459422,"-1,098.06",MENCAP PETERBOROUGH,CARE ESTABLISHMENT,Autism and Adult Support - Cost of Care,Autism and Adult Support - Care,Domiciliary Care
Cambridgeshire County Council,29-Oct-20,51301459422,"-1,098.06",MENCAP PETERBOROUGH,CARE ESTABLISHMENT,Autism and Adult Support - Cost of Care,Autism and Adult Support - Care,Domiciliary Care
Cambridgeshire County Council,29-Oct-20,51301459422,"-1,098.06",MENCAP PETERBOROUGH,CARE ESTABLISHMENT,Autism and Adult Support - Cost of Care,Autism and Adult Support - Care,Domiciliary Care
Cambridgeshire County Council,29-Oct-20,51301459422,"-1,098.06",MENCAP PETERBOROUGH,CARE ESTABLISHMENT,Autism and Adult Support - Cost of Care,Autism and Adult Support - Care,Domiciliary Care
Cambridgeshire County Council,29-Oct-20,51301459422,"-1,098.06",MENCAP PETERBOROUGH,CARE ESTABLISHMENT,Autism and Adult Support - Cost of Care,Autism and Adult Support - Care,Domiciliary Care
Cambridgeshire County Council,29-Oct-20,51301459422,"-1,098.06",MENCAP PETERBOROUGH,CARE ESTABLISHMENT,Autism and Adult Support - Cost of Care,Autism and Adult Support - Care,Domiciliary Care
Cambridgeshire County Council,29-Oct-20,51301463663,"-1,080.00",FARRINGTON CARE HOMES LTD T/A WOODLANDS RESIDENTIAL CARE HOME,CARE ESTABLISHMENT,OP - City & South Locality - Cost of Care,Older People - City & South - Care,Rehabilitation And Respite Care
Cambridgeshire County Council,15-Oct-20,51301440782,"-1,066.58",ASKEWS AND HOLTS LIBRARY SERVICES LTD,TRADE SUPPLIER,Libraries - Support,Support - Stock & Distribution,Books and Multimedia Supplies
Cambridgeshire County Council,05-Oct-20,51301444508,"-1,054.00",AFFINITY TRUST,CARE ESTABLISHMENT,LD - Fenland Locality - Cost of Care,LD - Fenland  - Care,Supported Living
Cambridgeshire County Council,14-Oct-20,51301423900,"-1,050.12",WIDER PLAN T/A KIDDIVOUCHERS LTD,TRADE SUPPLIER,Payroll & HR Transactions,Salary Sacrifice - Child Care Voucher Sc,Salary Sacrifice
Cambridgeshire County Council,29-Oct-20,51301461439,"-1,044.95",CAMBRIDGE MANOR CARE HOME (TLC),CARE ESTABLISHMENT,Physical Disablity - Cost of Care,Countywide PD Service - Care,Nursing Care
Cambridgeshire County Council,29-Oct-20,51301461439,"-1,044.95",CAMBRIDGE MANOR CARE HOME (TLC),CARE ESTABLISHMENT,Physical Disablity - Cost of Care,Countywide PD Service - Care,Nursing Care
Cambridgeshire County Council,29-Oct-20,51301461439,"-1,044.95",CAMBRIDGE MANOR CARE HOME (TLC),CARE ESTABLISHMENT,Physical Disablity - Cost of Care,Countywide PD Service - Care,Nursing Care
Cambridgeshire County Council,29-Oct-20,51301460826,"-1,025.00",ETHELDRED HOUSE,CARE ESTABLISHMENT,OP - City & South Locality - Cost of Care,Older People - City & South - Care,Nursing Care
Cambridgeshire County Council,29-Oct-20,51301460808,"-1,024.56",ETHELDRED HOUSE,CARE ESTABLISHMENT,OPMH - City & South,Older People Mental Health E Cambs,Nursing Care
Cambridgeshire County Council,29-Oct-20,51301463079,"-1,003.57",CONQUEST CARE HOMES PETERBOROUGH,CARE ESTABLISHMENT,AMH - Hunts & Fens,Hunts Mental Health Team,Residential Care
Cambridgeshire County Council,09-Oct-20,51301451055,"-1,000.04",THE MANOR CHESHIRE HOME,CARE ESTABLISHMENT,Physical Disablity - Cost of Care,Countywide PD Service - Care,Residential Care
Cambridgeshire County Council,09-Oct-20,51301451055,"-1,000.04",THE MANOR CHESHIRE HOME,CARE ESTABLISHMENT,Physical Disablity - Cost of Care,Countywide PD Service - Care,Residential Care
Cambridgeshire County Council,09-Oct-20,51301451055,"-1,000.04",THE MANOR CHESHIRE HOME,CARE ESTABLISHMENT,Physical Disablity - Cost of Care,Countywide PD Service - Care,Residential Care
Cambridgeshire County Council,09-Oct-20,51301451055,"-1,000.04",THE MANOR CHESHIRE HOME,CARE ESTABLISHMENT,Physical Disablity - Cost of Care,Countywide PD Service - Care,Residential Care
Cambridgeshire County Council,09-Oct-20,51301451055,"-1,000.04",THE MANOR CHESHIRE HOME,CARE ESTABLISHMENT,Physical Disablity - Cost of Care,Countywide PD Service - Care,Residential Care
Cambridgeshire County Council,09-Oct-20,51301451055,"-1,000.04",THE MANOR CHESHIRE HOME,CARE ESTABLISHMENT,Physical Disablity - Cost of Care,Countywide PD Service - Care,Residential Care
Cambridgeshire County Council,09-Oct-20,51301451055,"-1,000.04",THE MANOR CHESHIRE HOME,CARE ESTABLISHMENT,Physical Disablity - Cost of Care,Countywide PD Service - Care,Residential Care
Cambridgeshire County Council,09-Oct-20,51301451055,"-1,000.04",THE MANOR CHESHIRE HOME,CARE ESTABLISHMENT,Physical Disablity - Cost of Care,Countywide PD Service - Care,Residential Care
Cambridgeshire County Council,09-Oct-20,51301451055,"-1,000.04",THE MANOR CHESHIRE HOME,CARE ESTABLISHMENT,Physical Disablity - Cost of Care,Countywide PD Service - Care,Residential Care
Cambridgeshire County Council,09-Oct-20,51301451055,"-1,000.04",THE MANOR CHESHIRE HOME,CARE ESTABLISHMENT,Physical Disablity - Cost of Care,Countywide PD Service - Care,Residential Care
Cambridgeshire County Council,09-Oct-20,51301451055,"-1,000.04",THE MANOR CHESHIRE HOME,CARE ESTABLISHMENT,Physical Disablity - Cost of Care,Countywide PD Service - Care,Residential Care
Cambridgeshire County Council,09-Oct-20,51301451055,"-1,000.04",THE MANOR CHESHIRE HOME,CARE ESTABLISHMENT,Physical Disablity - Cost of Care,Countywide PD Service - Care,Residential Care
Cambridgeshire County Council,09-Oct-20,51301451055,"-1,000.04",THE MANOR CHESHIRE HOME,CARE ESTABLISHMENT,Physical Disablity - Cost of Care,Countywide PD Service - Care,Residential Care
Cambridgeshire County Council,09-Oct-20,51301451055,"-1,000.04",THE MANOR CHESHIRE HOME,CARE ESTABLISHMENT,Physical Disablity - Cost of Care,Countywide PD Service - Care,Residential Care
Cambridgeshire County Council,09-Oct-20,51301451055,"-1,000.04",THE MANOR CHESHIRE HOME,CARE ESTABLISHMENT,Physical Disablity - Cost of Care,Countywide PD Service - Care,Residential Care
Cambridgeshire County Council,09-Oct-20,51301451055,"-1,000.04",THE MANOR CHESHIRE HOME,CARE ESTABLISHMENT,Physical Disablity - Cost of Care,Countywide PD Service - Care,Residential Care
Cambridgeshire County Council,09-Oct-20,51301451055,"-1,000.04",THE MANOR CHESHIRE HOME,CARE ESTABLISHMENT,Physical Disablity - Cost of Care,Countywide PD Service - Care,Residential Care
Cambridgeshire County Council,09-Oct-20,51301451055,"-1,000.04",THE MANOR CHESHIRE HOME,CARE ESTABLISHMENT,Physical Disablity - Cost of Care,Countywide PD Service - Care,Residential Care
Cambridgeshire County Council,09-Oct-20,51301451055,"-1,000.04",THE MANOR CHESHIRE HOME,CARE ESTABLISHMENT,Physical Disablity - Cost of Care,Countywide PD Service - Care,Residential Care
Cambridgeshire County Council,09-Oct-20,51301451055,"-1,000.04",THE MANOR CHESHIRE HOME,CARE ESTABLISHMENT,Physical Disablity - Cost of Care,Countywide PD Service - Care,Residential Care
Cambridgeshire County Council,09-Oct-20,51301451055,"-1,000.04",THE MANOR CHESHIRE HOME,CARE ESTABLISHMENT,Physical Disablity - Cost of Care,Countywide PD Service - Care,Residential Care
Cambridgeshire County Council,09-Oct-20,51301451055,"-1,000.04",THE MANOR CHESHIRE HOME,CARE ESTABLISHMENT,Physical Disablity - Cost of Care,Countywide PD Service - Care,Residential Care
Cambridgeshire County Council,09-Oct-20,51301451055,"-1,000.04",THE MANOR CHESHIRE HOME,CARE ESTABLISHMENT,Physical Disablity - Cost of Care,Countywide PD Service - Care,Residential Care
Cambridgeshire County Council,09-Oct-20,51301451055,"-1,000.04",THE MANOR CHESHIRE HOME,CARE ESTABLISHMENT,Physical Disablity - Cost of Care,Countywide PD Service - Care,Residential Care
Cambridgeshire County Council,09-Oct-20,51301451055,"-1,000.04",THE MANOR CHESHIRE HOME,CARE ESTABLISHMENT,Physical Disablity - Cost of Care,Countywide PD Service - Care,Residential Care
Cambridgeshire County Council,09-Oct-20,51301451055,"-1,000.04",THE MANOR CHESHIRE HOME,CARE ESTABLISHMENT,Physical Disablity - Cost of Care,Countywide PD Service - Care,Residential Care
Cambridgeshire County Council,09-Oct-20,51301451055,"-1,000.04",THE MANOR CHESHIRE HOME,CARE ESTABLISHMENT,Physical Disablity - Cost of Care,Countywide PD Service - Care,Residential Care
Cambridgeshire County Council,09-Oct-20,51301451055,"-1,000.04",THE MANOR CHESHIRE HOME,CARE ESTABLISHMENT,Physical Disablity - Cost of Care,Countywide PD Service - Care,Residential Care
Cambridgeshire County Council,09-Oct-20,51301451055,"-1,000.04",THE MANOR CHESHIRE HOME,CARE ESTABLISHMENT,Physical Disablity - Cost of Care,Countywide PD Service - Care,Residential Care
Cambridgeshire County Council,09-Oct-20,51301451055,"-1,000.04",THE MANOR CHESHIRE HOME,CARE ESTABLISHMENT,Physical Disablity - Cost of Care,Countywide PD Service - Care,Residential Care
Cambridgeshire County Council,09-Oct-20,51301451055,"-1,000.04",THE MANOR CHESHIRE HOME,CARE ESTABLISHMENT,Physical Disablity - Cost of Care,Countywide PD Service - Care,Residential Care
Cambridgeshire County Council,09-Oct-20,51301451055,"-1,000.04",THE MANOR CHESHIRE HOME,CARE ESTABLISHMENT,Physical Disablity - Cost of Care,Countywide PD Service - Care,Residential Care
Cambridgeshire County Council,09-Oct-20,51301451055,"-1,000.04",THE MANOR CHESHIRE HOME,CARE ESTABLISHMENT,Physical Disablity - Cost of Care,Countywide PD Service - Care,Residential Care
Cambridgeshire County Council,09-Oct-20,51301451055,"-1,000.04",THE MANOR CHESHIRE HOME,CARE ESTABLISHMENT,Physical Disablity - Cost of Care,Countywide PD Service - Care,Residential Care
Cambridgeshire County Council,09-Oct-20,51301451055,"-1,000.04",THE MANOR CHESHIRE HOME,CARE ESTABLISHMENT,Physical Disablity - Cost of Care,Countywide PD Service - Care,Residential Care
Cambridgeshire County Council,09-Oct-20,51301451055,"-1,000.04",THE MANOR CHESHIRE HOME,CARE ESTABLISHMENT,Physical Disablity - Cost of Care,Countywide PD Service - Care,Residential Care
Cambridgeshire County Council,09-Oct-20,51301451055,"-1,000.04",THE MANOR CHESHIRE HOME,CARE ESTABLISHMENT,Physical Disablity - Cost of Care,Countywide PD Service - Care,Residential Care
Cambridgeshire County Council,09-Oct-20,51301451055,"-1,000.04",THE MANOR CHESHIRE HOME,CARE ESTABLISHMENT,Physical Disablity - Cost of Care,Countywide PD Service - Care,Residential Care
Cambridgeshire County Council,09-Oct-20,51301451055,"-1,000.04",THE MANOR CHESHIRE HOME,CARE ESTABLISHMENT,Physical Disablity - Cost of Care,Countywide PD Service - Care,Residential Care
Cambridgeshire County Council,09-Oct-20,51301451055,"-1,000.04",THE MANOR CHESHIRE HOME,CARE ESTABLISHMENT,Physical Disablity - Cost of Care,Countywide PD Service - Care,Residential Care
Cambridgeshire County Council,09-Oct-20,51301451055,"-1,000.04",THE MANOR CHESHIRE HOME,CARE ESTABLISHMENT,Physical Disablity - Cost of Care,Countywide PD Service - Care,Residential Care
Cambridgeshire County Council,09-Oct-20,51301451055,"-1,000.04",THE MANOR CHESHIRE HOME,CARE ESTABLISHMENT,Physical Disablity - Cost of Care,Countywide PD Service - Care,Residential Care
Cambridgeshire County Council,09-Oct-20,51301451055,"-1,000.04",THE MANOR CHESHIRE HOME,CARE ESTABLISHMENT,Physical Disablity - Cost of Care,Countywide PD Service - Care,Residential Care
Cambridgeshire County Council,09-Oct-20,51301451055,"-1,000.04",THE MANOR CHESHIRE HOME,CARE ESTABLISHMENT,Physical Disablity - Cost of Care,Countywide PD Service - Care,Residential Care
Cambridgeshire County Council,09-Oct-20,51301451055,"-1,000.04",THE MANOR CHESHIRE HOME,CARE ESTABLISHMENT,Physical Disablity - Cost of Care,Countywide PD Service - Care,Residential Care
Cambridgeshire County Council,09-Oct-20,51301451055,"-1,000.04",THE MANOR CHESHIRE HOME,CARE ESTABLISHMENT,Physical Disablity - Cost of Care,Countywide PD Service - Care,Residential Care
Cambridgeshire County Council,09-Oct-20,51301451055,"-1,000.04",THE MANOR CHESHIRE HOME,CARE ESTABLISHMENT,Physical Disablity - Cost of Care,Countywide PD Service - Care,Residential Care
Cambridgeshire County Council,09-Oct-20,51301451055,"-1,000.04",THE MANOR CHESHIRE HOME,CARE ESTABLISHMENT,Physical Disablity - Cost of Care,Countywide PD Service - Care,Residential Care
Cambridgeshire County Council,09-Oct-20,51301451055,"-1,000.04",THE MANOR CHESHIRE HOME,CARE ESTABLISHMENT,Physical Disablity - Cost of Care,Countywide PD Service - Care,Residential Care
Cambridgeshire County Council,09-Oct-20,51301451055,"-1,000.04",THE MANOR CHESHIRE HOME,CARE ESTABLISHMENT,Physical Disablity - Cost of Care,Countywide PD Service - Care,Residential Care
Cambridgeshire County Council,09-Oct-20,51301451055,"-1,000.04",THE MANOR CHESHIRE HOME,CARE ESTABLISHMENT,Physical Disablity - Cost of Care,Countywide PD Service - Care,Residential Care
Cambridgeshire County Council,09-Oct-20,51301451055,"-1,000.04",THE MANOR CHESHIRE HOME,CARE ESTABLISHMENT,Physical Disablity - Cost of Care,Countywide PD Service - Care,Residential Care
Cambridgeshire County Council,09-Oct-20,51301451055,"-1,000.04",THE MANOR CHESHIRE HOME,CARE ESTABLISHMENT,Physical Disablity - Cost of Care,Countywide PD Service - Care,Residential Care
Cambridgeshire County Council,09-Oct-20,51301451055,"-1,000.04",THE MANOR CHESHIRE HOME,CARE ESTABLISHMENT,Physical Disablity - Cost of Care,Countywide PD Service - Care,Residential Care
Cambridgeshire County Council,09-Oct-20,51301451055,"-1,000.04",THE MANOR CHESHIRE HOME,CARE ESTABLISHMENT,Physical Disablity - Cost of Care,Countywide PD Service - Care,Residential Care
Cambridgeshire County Council,09-Oct-20,51301451055,"-1,000.04",THE MANOR CHESHIRE HOME,CARE ESTABLISHMENT,Physical Disablity - Cost of Care,Countywide PD Service - Care,Residential Care
Cambridgeshire County Council,09-Oct-20,51301451055,"-1,000.04",THE MANOR CHESHIRE HOME,CARE ESTABLISHMENT,Physical Disablity - Cost of Care,Countywide PD Service - Care,Residential Care
Cambridgeshire County Council,09-Oct-20,51301451055,"-1,000.04",THE MANOR CHESHIRE HOME,CARE ESTABLISHMENT,Physical Disablity - Cost of Care,Countywide PD Service - Care,Residential Care
Cambridgeshire County Council,09-Oct-20,51301451055,"-1,000.04",THE MANOR CHESHIRE HOME,CARE ESTABLISHMENT,Physical Disablity - Cost of Care,Countywide PD Service - Care,Residential Care
Cambridgeshire County Council,09-Oct-20,51301451055,"-1,000.04",THE MANOR CHESHIRE HOME,CARE ESTABLISHMENT,Physical Disablity - Cost of Care,Countywide PD Service - Care,Residential Care
Cambridgeshire County Council,09-Oct-20,51301451055,"-1,000.04",THE MANOR CHESHIRE HOME,CARE ESTABLISHMENT,Physical Disablity - Cost of Care,Countywide PD Service - Care,Residential Care
Cambridgeshire County Council,09-Oct-20,51301451055,"-1,000.04",THE MANOR CHESHIRE HOME,CARE ESTABLISHMENT,Physical Disablity - Cost of Care,Countywide PD Service - Care,Residential Care
Cambridgeshire County Council,09-Oct-20,51301451055,"-1,000.04",THE MANOR CHESHIRE HOME,CARE ESTABLISHMENT,Physical Disablity - Cost of Care,Countywide PD Service - Care,Residential Care
Cambridgeshire County Council,09-Oct-20,51301451055,"-1,000.04",THE MANOR CHESHIRE HOME,CARE ESTABLISHMENT,Physical Disablity - Cost of Care,Countywide PD Service - Care,Residential Care
Cambridgeshire County Council,09-Oct-20,51301451055,"-1,000.04",THE MANOR CHESHIRE HOME,CARE ESTABLISHMENT,Physical Disablity - Cost of Care,Countywide PD Service - Care,Residential Care
Cambridgeshire County Council,09-Oct-20,51301451055,"-1,000.04",THE MANOR CHESHIRE HOME,CARE ESTABLISHMENT,Physical Disablity - Cost of Care,Countywide PD Service - Care,Residential Care
Cambridgeshire County Council,09-Oct-20,51301451055,"-1,000.04",THE MANOR CHESHIRE HOME,CARE ESTABLISHMENT,Physical Disablity - Cost of Care,Countywide PD Service - Care,Residential Care
Cambridgeshire County Council,09-Oct-20,51301451055,"-1,000.04",THE MANOR CHESHIRE HOME,CARE ESTABLISHMENT,Physical Disablity - Cost of Care,Countywide PD Service - Care,Residential Care
Cambridgeshire County Council,29-Oct-20,51301460810,"-1,000.00",OAKLANDS CARE HOME,CARE ESTABLISHMENT,Strategic Management - Adults,Adults Assistant Director,Nursing Care
Cambridgeshire County Council,29-Oct-20,51301460810,"-1,000.00",OAKLANDS CARE HOME,CARE ESTABLISHMENT,Strategic Management - Adults,Adults Assistant Director,Nursing Care
Cambridgeshire County Council,09-Oct-20,51301451040,-993.00,METHODIST HOMES FOR THE AGED (MHA),CARE ESTABLISHMENT,OP - City & South Locality - Cost of Care,Older People - City & South - Care,Residential Care
Cambridgeshire County Council,09-Oct-20,51301451040,-993.00,METHODIST HOMES FOR THE AGED (MHA),CARE ESTABLISHMENT,OP - City & South Locality - Cost of Care,Older People - City & South - Care,Residential Care
Cambridgeshire County Council,09-Oct-20,51301451040,-993.00,METHODIST HOMES FOR THE AGED (MHA),CARE ESTABLISHMENT,OP - City & South Locality - Cost of Care,Older People - City & South - Care,Residential Care
Cambridgeshire County Council,29-Oct-20,51301463378,-990.08,WOODLANDS CARE CENTRE,CARE ESTABLISHMENT,OPMH - City & South,Older People Mental Health City & South,Nursing Care
Cambridgeshire County Council,29-Oct-20,51301463378,-990.08,WOODLANDS CARE CENTRE,CARE ESTABLISHMENT,OPMH - City & South,Older People Mental Health City & South,Nursing Care
Cambridgeshire County Council,29-Oct-20,51301463378,-990.08,WOODLANDS CARE CENTRE,CARE ESTABLISHMENT,OPMH - City & South,Older People Mental Health City & South,Nursing Care
Cambridgeshire County Council,29-Oct-20,51301463378,-990.08,WOODLANDS CARE CENTRE,CARE ESTABLISHMENT,OPMH - City & South,Older People Mental Health City & South,Nursing Care
Cambridgeshire County Council,29-Oct-20,51301463378,-990.08,WOODLANDS CARE CENTRE,CARE ESTABLISHMENT,OPMH - City & South,Older People Mental Health City & South,Nursing Care
Cambridgeshire County Council,29-Oct-20,51301463378,-990.08,WOODLANDS CARE CENTRE,CARE ESTABLISHMENT,OPMH - City & South,Older People Mental Health City & South,Nursing Care
Cambridgeshire County Council,29-Oct-20,51301463378,-990.08,WOODLANDS CARE CENTRE,CARE ESTABLISHMENT,OPMH - City & South,Older People Mental Health City & South,Nursing Care
Cambridgeshire County Council,29-Oct-20,51301463378,-990.08,WOODLANDS CARE CENTRE,CARE ESTABLISHMENT,OPMH - City & South,Older People Mental Health City & South,Nursing Care
Cambridgeshire County Council,29-Oct-20,51301463378,-990.08,WOODLANDS CARE CENTRE,CARE ESTABLISHMENT,OPMH - City & South,Older People Mental Health City & South,Nursing Care
Cambridgeshire County Council,29-Oct-20,51301463378,-990.08,WOODLANDS CARE CENTRE,CARE ESTABLISHMENT,OPMH - City & South,Older People Mental Health City & South,Nursing Care
Cambridgeshire County Council,29-Oct-20,51301463378,-990.08,WOODLANDS CARE CENTRE,CARE ESTABLISHMENT,OPMH - City & South,Older People Mental Health City & South,Nursing Care
Cambridgeshire County Council,29-Oct-20,51301463378,-990.08,WOODLANDS CARE CENTRE,CARE ESTABLISHMENT,OPMH - City & South,Older People Mental Health City & South,Nursing Care
Cambridgeshire County Council,29-Oct-20,51301463378,-990.08,WOODLANDS CARE CENTRE,CARE ESTABLISHMENT,OPMH - City & South,Older People Mental Health City & South,Nursing Care
Cambridgeshire County Council,29-Oct-20,51301463378,-990.08,WOODLANDS CARE CENTRE,CARE ESTABLISHMENT,OPMH - City & South,Older People Mental Health City & South,Nursing Care
Cambridgeshire County Council,29-Oct-20,51301463378,-990.08,WOODLANDS CARE CENTRE,CARE ESTABLISHMENT,OPMH - City & South,Older People Mental Health City & South,Nursing Care
Cambridgeshire County Council,29-Oct-20,51301463378,-990.08,WOODLANDS CARE CENTRE,CARE ESTABLISHMENT,OPMH - City & South,Older People Mental Health City & South,Nursing Care
Cambridgeshire County Council,29-Oct-20,51301463378,-990.08,WOODLANDS CARE CENTRE,CARE ESTABLISHMENT,OPMH - City & South,Older People Mental Health City & South,Nursing Care
Cambridgeshire County Council,29-Oct-20,51301463378,-990.08,WOODLANDS CARE CENTRE,CARE ESTABLISHMENT,OPMH - City & South,Older People Mental Health City & South,Nursing Care
Cambridgeshire County Council,29-Oct-20,51301463378,-990.08,WOODLANDS CARE CENTRE,CARE ESTABLISHMENT,OPMH - City & South,Older People Mental Health City & South,Nursing Care
Cambridgeshire County Council,29-Oct-20,51301463378,-990.08,WOODLANDS CARE CENTRE,CARE ESTABLISHMENT,OPMH - City & South,Older People Mental Health City & South,Nursing Care
Cambridgeshire County Council,29-Oct-20,51301463378,-990.08,WOODLANDS CARE CENTRE,CARE ESTABLISHMENT,OPMH - City & South,Older People Mental Health City & South,Nursing Care
Cambridgeshire County Council,29-Oct-20,51301463378,-990.08,WOODLANDS CARE CENTRE,CARE ESTABLISHMENT,OPMH - City & South,Older People Mental Health City & South,Nursing Care
Cambridgeshire County Council,29-Oct-20,51301463378,-990.08,WOODLANDS CARE CENTRE,CARE ESTABLISHMENT,OPMH - City & South,Older People Mental Health City & South,Nursing Care
Cambridgeshire County Council,29-Oct-20,51301463378,-990.08,WOODLANDS CARE CENTRE,CARE ESTABLISHMENT,OPMH - City & South,Older People Mental Health City & South,Nursing Care
Cambridgeshire County Council,29-Oct-20,51301463378,-990.08,WOODLANDS CARE CENTRE,CARE ESTABLISHMENT,OPMH - City & South,Older People Mental Health City & South,Nursing Care
Cambridgeshire County Council,29-Oct-20,51301463378,-990.08,WOODLANDS CARE CENTRE,CARE ESTABLISHMENT,OPMH - City & South,Older People Mental Health City & South,Nursing Care
Cambridgeshire County Council,29-Oct-20,51301463378,-990.08,WOODLANDS CARE CENTRE,CARE ESTABLISHMENT,OPMH - City & South,Older People Mental Health City & South,Nursing Care
Cambridgeshire County Council,29-Oct-20,51301463378,-990.08,WOODLANDS CARE CENTRE,CARE ESTABLISHMENT,OPMH - City & South,Older People Mental Health City & South,Nursing Care
Cambridgeshire County Council,29-Oct-20,51301463378,-990.08,WOODLANDS CARE CENTRE,CARE ESTABLISHMENT,OPMH - City & South,Older People Mental Health City & South,Nursing Care
Cambridgeshire County Council,29-Oct-20,51301463378,-990.08,WOODLANDS CARE CENTRE,CARE ESTABLISHMENT,OPMH - City & South,Older People Mental Health City & South,Nursing Care
Cambridgeshire County Council,29-Oct-20,51301463378,-990.08,WOODLANDS CARE CENTRE,CARE ESTABLISHMENT,OPMH - City & South,Older People Mental Health City & South,Nursing Care
Cambridgeshire County Council,29-Oct-20,51301463378,-990.08,WOODLANDS CARE CENTRE,CARE ESTABLISHMENT,OPMH - City & South,Older People Mental Health City & South,Nursing Care
Cambridgeshire County Council,29-Oct-20,51301463378,-990.08,WOODLANDS CARE CENTRE,CARE ESTABLISHMENT,OPMH - City & South,Older People Mental Health City & South,Nursing Care
Cambridgeshire County Council,29-Oct-20,51301463378,-990.08,WOODLANDS CARE CENTRE,CARE ESTABLISHMENT,OPMH - City & South,Older People Mental Health City & South,Nursing Care
Cambridgeshire County Council,29-Oct-20,51301463378,-990.08,WOODLANDS CARE CENTRE,CARE ESTABLISHMENT,OPMH - City & South,Older People Mental Health City & South,Nursing Care
Cambridgeshire County Council,29-Oct-20,51301463378,-990.08,WOODLANDS CARE CENTRE,CARE ESTABLISHMENT,OPMH - City & South,Older People Mental Health City & South,Nursing Care
Cambridgeshire County Council,29-Oct-20,51301463378,-990.08,WOODLANDS CARE CENTRE,CARE ESTABLISHMENT,OPMH - City & South,Older People Mental Health City & South,Nursing Care
Cambridgeshire County Council,29-Oct-20,51301463378,-990.08,WOODLANDS CARE CENTRE,CARE ESTABLISHMENT,OPMH - City & South,Older People Mental Health City & South,Nursing Care
Cambridgeshire County Council,29-Oct-20,51301463378,-990.08,WOODLANDS CARE CENTRE,CARE ESTABLISHMENT,OPMH - City & South,Older People Mental Health City & South,Nursing Care
Cambridgeshire County Council,29-Oct-20,51301463378,-990.08,WOODLANDS CARE CENTRE,CARE ESTABLISHMENT,OPMH - City & South,Older People Mental Health City & South,Nursing Care
Cambridgeshire County Council,29-Oct-20,51301463378,-990.08,WOODLANDS CARE CENTRE,CARE ESTABLISHMENT,OPMH - City & South,Older People Mental Health City & South,Nursing Care
Cambridgeshire County Council,29-Oct-20,51301463378,-990.08,WOODLANDS CARE CENTRE,CARE ESTABLISHMENT,OPMH - City & South,Older People Mental Health City & South,Nursing Care
Cambridgeshire County Council,29-Oct-20,51301463378,-990.08,WOODLANDS CARE CENTRE,CARE ESTABLISHMENT,OPMH - City & South,Older People Mental Health City & South,Nursing Care
Cambridgeshire County Council,29-Oct-20,51301463378,-990.08,WOODLANDS CARE CENTRE,CARE ESTABLISHMENT,OPMH - City & South,Older People Mental Health City & South,Nursing Care
Cambridgeshire County Council,29-Oct-20,51301463378,-990.08,WOODLANDS CARE CENTRE,CARE ESTABLISHMENT,OPMH - City & South,Older People Mental Health City & South,Nursing Care
Cambridgeshire County Council,29-Oct-20,51301463378,-990.08,WOODLANDS CARE CENTRE,CARE ESTABLISHMENT,OPMH - City & South,Older People Mental Health City & South,Nursing Care
Cambridgeshire County Council,29-Oct-20,51301463378,-990.08,WOODLANDS CARE CENTRE,CARE ESTABLISHMENT,OPMH - City & South,Older People Mental Health City & South,Nursing Care
Cambridgeshire County Council,29-Oct-20,51301463378,-990.08,WOODLANDS CARE CENTRE,CARE ESTABLISHMENT,OPMH - City & South,Older People Mental Health City & South,Nursing Care
Cambridgeshire County Council,29-Oct-20,51301463378,-990.08,WOODLANDS CARE CENTRE,CARE ESTABLISHMENT,OPMH - City & South,Older People Mental Health City & South,Nursing Care
Cambridgeshire County Council,29-Oct-20,51301463378,-990.08,WOODLANDS CARE CENTRE,CARE ESTABLISHMENT,OPMH - City & South,Older People Mental Health City & South,Nursing Care
Cambridgeshire County Council,29-Oct-20,51301463378,-990.08,WOODLANDS CARE CENTRE,CARE ESTABLISHMENT,OPMH - City & South,Older People Mental Health City & South,Nursing Care
Cambridgeshire County Council,29-Oct-20,51301463378,-990.08,WOODLANDS CARE CENTRE,CARE ESTABLISHMENT,OPMH - City & South,Older People Mental Health City & South,Nursing Care
Cambridgeshire County Council,29-Oct-20,51301463378,-990.08,WOODLANDS CARE CENTRE,CARE ESTABLISHMENT,OPMH - City & South,Older People Mental Health City & South,Nursing Care
Cambridgeshire County Council,29-Oct-20,51301463378,-990.08,WOODLANDS CARE CENTRE,CARE ESTABLISHMENT,OPMH - City & South,Older People Mental Health City & South,Nursing Care
Cambridgeshire County Council,29-Oct-20,51301463378,-990.08,WOODLANDS CARE CENTRE,CARE ESTABLISHMENT,OPMH - City & South,Older People Mental Health City & South,Nursing Care
Cambridgeshire County Council,29-Oct-20,51301463378,-990.08,WOODLANDS CARE CENTRE,CARE ESTABLISHMENT,OPMH - City & South,Older People Mental Health City & South,Nursing Care
Cambridgeshire County Council,29-Oct-20,51301463378,-990.08,WOODLANDS CARE CENTRE,CARE ESTABLISHMENT,OPMH - City & South,Older People Mental Health City & South,Nursing Care
Cambridgeshire County Council,29-Oct-20,51301463378,-990.08,WOODLANDS CARE CENTRE,CARE ESTABLISHMENT,OPMH - City & South,Older People Mental Health City & South,Nursing Care
Cambridgeshire County Council,29-Oct-20,51301463378,-990.08,WOODLANDS CARE CENTRE,CARE ESTABLISHMENT,OPMH - City & South,Older People Mental Health City & South,Nursing Care
Cambridgeshire County Council,29-Oct-20,51301463378,-990.08,WOODLANDS CARE CENTRE,CARE ESTABLISHMENT,OPMH - City & South,Older People Mental Health City & South,Nursing Care
Cambridgeshire County Council,29-Oct-20,51301463378,-990.08,WOODLANDS CARE CENTRE,CARE ESTABLISHMENT,OPMH - City & South,Older People Mental Health City & South,Nursing Care
Cambridgeshire County Council,29-Oct-20,51301463378,-990.08,WOODLANDS CARE CENTRE,CARE ESTABLISHMENT,OPMH - City & South,Older People Mental Health City & South,Nursing Care
Cambridgeshire County Council,29-Oct-20,51301463378,-990.08,WOODLANDS CARE CENTRE,CARE ESTABLISHMENT,OPMH - City & South,Older People Mental Health City & South,Nursing Care
Cambridgeshire County Council,29-Oct-20,51301463378,-990.08,WOODLANDS CARE CENTRE,CARE ESTABLISHMENT,OPMH - City & South,Older People Mental Health City & South,Nursing Care
Cambridgeshire County Council,29-Oct-20,51301463378,-990.08,WOODLANDS CARE CENTRE,CARE ESTABLISHMENT,OPMH - City & South,Older People Mental Health City & South,Nursing Care
Cambridgeshire County Council,29-Oct-20,51301463378,-990.08,WOODLANDS CARE CENTRE,CARE ESTABLISHMENT,OPMH - City & South,Older People Mental Health City & South,Nursing Care
Cambridgeshire County Council,29-Oct-20,51301463378,-990.08,WOODLANDS CARE CENTRE,CARE ESTABLISHMENT,OPMH - City & South,Older People Mental Health City & South,Nursing Care
Cambridgeshire County Council,29-Oct-20,51301463378,-990.08,WOODLANDS CARE CENTRE,CARE ESTABLISHMENT,OPMH - City & South,Older People Mental Health City & South,Nursing Care
Cambridgeshire County Council,29-Oct-20,51301463378,-990.08,WOODLANDS CARE CENTRE,CARE ESTABLISHMENT,OPMH - City & South,Older People Mental Health City & South,Nursing Care
Cambridgeshire County Council,29-Oct-20,51301460803,-984.44,THE GABLES SPECIALIST NURSING HOME,CARE ESTABLISHMENT,OP - Fenland Locality - Cost of Care,Older People - Fenland - Care,Nursing Care
Cambridgeshire County Council,29-Oct-20,51301460803,-984.44,THE GABLES SPECIALIST NURSING HOME,CARE ESTABLISHMENT,OP - Fenland Locality - Cost of Care,Older People - Fenland - Care,Nursing Care
Cambridgeshire County Council,29-Oct-20,51301460803,-984.44,THE GABLES SPECIALIST NURSING HOME,CARE ESTABLISHMENT,OP - Fenland Locality - Cost of Care,Older People - Fenland - Care,Nursing Care
Cambridgeshire County Council,29-Oct-20,51301460803,-984.44,THE GABLES SPECIALIST NURSING HOME,CARE ESTABLISHMENT,OP - Fenland Locality - Cost of Care,Older People - Fenland - Care,Nursing Care
Cambridgeshire County Council,29-Oct-20,51301460803,-984.44,THE GABLES SPECIALIST NURSING HOME,CARE ESTABLISHMENT,OP - Fenland Locality - Cost of Care,Older People - Fenland - Care,Nursing Care
Cambridgeshire County Council,29-Oct-20,51301460803,-984.44,THE GABLES SPECIALIST NURSING HOME,CARE ESTABLISHMENT,OP - Fenland Locality - Cost of Care,Older People - Fenland - Care,Nursing Care
Cambridgeshire County Council,29-Oct-20,51301460803,-984.44,THE GABLES SPECIALIST NURSING HOME,CARE ESTABLISHMENT,OP - Fenland Locality - Cost of Care,Older People - Fenland - Care,Nursing Care
Cambridgeshire County Council,29-Oct-20,51301460803,-984.44,THE GABLES SPECIALIST NURSING HOME,CARE ESTABLISHMENT,OP - Fenland Locality - Cost of Care,Older People - Fenland - Care,Nursing Care
Cambridgeshire County Council,29-Oct-20,51301460803,-984.44,THE GABLES SPECIALIST NURSING HOME,CARE ESTABLISHMENT,OP - Fenland Locality - Cost of Care,Older People - Fenland - Care,Nursing Care
Cambridgeshire County Council,29-Oct-20,51301460803,-984.44,THE GABLES SPECIALIST NURSING HOME,CARE ESTABLISHMENT,OP - Fenland Locality - Cost of Care,Older People - Fenland - Care,Nursing Care
Cambridgeshire County Council,29-Oct-20,51301460803,-984.44,THE GABLES SPECIALIST NURSING HOME,CARE ESTABLISHMENT,OP - Fenland Locality - Cost of Care,Older People - Fenland - Care,Nursing Care
Cambridgeshire County Council,29-Oct-20,51301460803,-984.44,THE GABLES SPECIALIST NURSING HOME,CARE ESTABLISHMENT,OP - Fenland Locality - Cost of Care,Older People - Fenland - Care,Nursing Care
Cambridgeshire County Council,29-Oct-20,51301460803,-984.44,THE GABLES SPECIALIST NURSING HOME,CARE ESTABLISHMENT,OP - Fenland Locality - Cost of Care,Older People - Fenland - Care,Nursing Care
Cambridgeshire County Council,29-Oct-20,51301460803,-984.44,THE GABLES SPECIALIST NURSING HOME,CARE ESTABLISHMENT,OP - Fenland Locality - Cost of Care,Older People - Fenland - Care,Nursing Care
Cambridgeshire County Council,29-Oct-20,51301460803,-984.44,THE GABLES SPECIALIST NURSING HOME,CARE ESTABLISHMENT,OP - Fenland Locality - Cost of Care,Older People - Fenland - Care,Nursing Care
Cambridgeshire County Council,29-Oct-20,51301460803,-984.44,THE GABLES SPECIALIST NURSING HOME,CARE ESTABLISHMENT,OP - Fenland Locality - Cost of Care,Older People - Fenland - Care,Nursing Care
Cambridgeshire County Council,29-Oct-20,51301460803,-984.44,THE GABLES SPECIALIST NURSING HOME,CARE ESTABLISHMENT,OP - Fenland Locality - Cost of Care,Older People - Fenland - Care,Nursing Care
Cambridgeshire County Council,29-Oct-20,51301460803,-984.44,THE GABLES SPECIALIST NURSING HOME,CARE ESTABLISHMENT,OP - Fenland Locality - Cost of Care,Older People - Fenland - Care,Nursing Care
Cambridgeshire County Council,29-Oct-20,51301460803,-984.44,THE GABLES SPECIALIST NURSING HOME,CARE ESTABLISHMENT,OP - Fenland Locality - Cost of Care,Older People - Fenland - Care,Nursing Care
Cambridgeshire County Council,29-Oct-20,51301460803,-984.44,THE GABLES SPECIALIST NURSING HOME,CARE ESTABLISHMENT,OP - Fenland Locality - Cost of Care,Older People - Fenland - Care,Nursing Care
Cambridgeshire County Council,29-Oct-20,51301460803,-984.44,THE GABLES SPECIALIST NURSING HOME,CARE ESTABLISHMENT,OP - Fenland Locality - Cost of Care,Older People - Fenland - Care,Nursing Care
Cambridgeshire County Council,29-Oct-20,51301460803,-984.44,THE GABLES SPECIALIST NURSING HOME,CARE ESTABLISHMENT,OP - Fenland Locality - Cost of Care,Older People - Fenland - Care,Nursing Care
Cambridgeshire County Council,29-Oct-20,51301460803,-984.44,THE GABLES SPECIALIST NURSING HOME,CARE ESTABLISHMENT,OP - Fenland Locality - Cost of Care,Older People - Fenland - Care,Nursing Care
Cambridgeshire County Council,29-Oct-20,51301460803,-984.44,THE GABLES SPECIALIST NURSING HOME,CARE ESTABLISHMENT,OP - Fenland Locality - Cost of Care,Older People - Fenland - Care,Nursing Care
Cambridgeshire County Council,29-Oct-20,51301460803,-984.44,THE GABLES SPECIALIST NURSING HOME,CARE ESTABLISHMENT,OP - Fenland Locality - Cost of Care,Older People - Fenland - Care,Nursing Care
Cambridgeshire County Council,29-Oct-20,51301460803,-984.44,THE GABLES SPECIALIST NURSING HOME,CARE ESTABLISHMENT,OP - Fenland Locality - Cost of Care,Older People - Fenland - Care,Nursing Care
Cambridgeshire County Council,29-Oct-20,51301460803,-984.44,THE GABLES SPECIALIST NURSING HOME,CARE ESTABLISHMENT,OP - Fenland Locality - Cost of Care,Older People - Fenland - Care,Nursing Care
Cambridgeshire County Council,29-Oct-20,51301460803,-984.44,THE GABLES SPECIALIST NURSING HOME,CARE ESTABLISHMENT,OP - Fenland Locality - Cost of Care,Older People - Fenland - Care,Nursing Care
Cambridgeshire County Council,29-Oct-20,51301460803,-984.44,THE GABLES SPECIALIST NURSING HOME,CARE ESTABLISHMENT,OP - Fenland Locality - Cost of Care,Older People - Fenland - Care,Nursing Care
Cambridgeshire County Council,29-Oct-20,51301460803,-984.44,THE GABLES SPECIALIST NURSING HOME,CARE ESTABLISHMENT,OP - Fenland Locality - Cost of Care,Older People - Fenland - Care,Nursing Care
Cambridgeshire County Council,29-Oct-20,51301460803,-984.44,THE GABLES SPECIALIST NURSING HOME,CARE ESTABLISHMENT,OP - Fenland Locality - Cost of Care,Older People - Fenland - Care,Nursing Care
Cambridgeshire County Council,29-Oct-20,51301460803,-984.44,THE GABLES SPECIALIST NURSING HOME,CARE ESTABLISHMENT,OP - Fenland Locality - Cost of Care,Older People - Fenland - Care,Nursing Care
Cambridgeshire County Council,29-Oct-20,51301460803,-984.44,THE GABLES SPECIALIST NURSING HOME,CARE ESTABLISHMENT,OP - Fenland Locality - Cost of Care,Older People - Fenland - Care,Nursing Care
Cambridgeshire County Council,29-Oct-20,51301460803,-984.44,THE GABLES SPECIALIST NURSING HOME,CARE ESTABLISHMENT,OP - Fenland Locality - Cost of Care,Older People - Fenland - Care,Nursing Care
Cambridgeshire County Council,29-Oct-20,51301463103,-975.00,KELAM HEALTH CARE LTD T/A PAXTON HALL CARE HOME,CARE ESTABLISHMENT,Physical Disablity - Cost of Care,Countywide PD Service - Care,Residential Care
Cambridgeshire County Council,29-Oct-20,51301463103,-975.00,KELAM HEALTH CARE LTD T/A PAXTON HALL CARE HOME,CARE ESTABLISHMENT,Physical Disablity - Cost of Care,Countywide PD Service - Care,Residential Care
Cambridgeshire County Council,29-Oct-20,51301463103,-975.00,KELAM HEALTH CARE LTD T/A PAXTON HALL CARE HOME,CARE ESTABLISHMENT,Physical Disablity - Cost of Care,Countywide PD Service - Care,Residential Care
Cambridgeshire County Council,29-Oct-20,51301463103,-975.00,KELAM HEALTH CARE LTD T/A PAXTON HALL CARE HOME,CARE ESTABLISHMENT,Physical Disablity - Cost of Care,Countywide PD Service - Care,Residential Care
Cambridgeshire County Council,29-Oct-20,51301463103,-975.00,KELAM HEALTH CARE LTD T/A PAXTON HALL CARE HOME,CARE ESTABLISHMENT,Physical Disablity - Cost of Care,Countywide PD Service - Care,Residential Care
Cambridgeshire County Council,29-Oct-20,51301463103,-975.00,KELAM HEALTH CARE LTD T/A PAXTON HALL CARE HOME,CARE ESTABLISHMENT,Physical Disablity - Cost of Care,Countywide PD Service - Care,Residential Care
Cambridgeshire County Council,29-Oct-20,51301463103,-975.00,KELAM HEALTH CARE LTD T/A PAXTON HALL CARE HOME,CARE ESTABLISHMENT,Physical Disablity - Cost of Care,Countywide PD Service - Care,Residential Care
Cambridgeshire County Council,05-Oct-20,51301448823,-974.40,TRINITY CARESTAFF SOLUTIONS LIMITED,CARE ESTABLISHMENT,Physical Disablity - Cost of Care,Countywide PD Service - Care,Domiciliary Care
Cambridgeshire County Council,05-Oct-20,51301448823,-974.40,TRINITY CARESTAFF SOLUTIONS LIMITED,CARE ESTABLISHMENT,Physical Disablity - Cost of Care,Countywide PD Service - Care,Domiciliary Care
Cambridgeshire County Council,05-Oct-20,51301448823,-974.40,TRINITY CARESTAFF SOLUTIONS LIMITED,CARE ESTABLISHMENT,Physical Disablity - Cost of Care,Countywide PD Service - Care,Domiciliary Care
Cambridgeshire County Council,05-Oct-20,51301448823,-974.40,TRINITY CARESTAFF SOLUTIONS LIMITED,CARE ESTABLISHMENT,Physical Disablity - Cost of Care,Countywide PD Service - Care,Domiciliary Care
Cambridgeshire County Council,05-Oct-20,51301448823,-974.40,TRINITY CARESTAFF SOLUTIONS LIMITED,CARE ESTABLISHMENT,Physical Disablity - Cost of Care,Countywide PD Service - Care,Domiciliary Care
Cambridgeshire County Council,05-Oct-20,51301448823,-974.40,TRINITY CARESTAFF SOLUTIONS LIMITED,CARE ESTABLISHMENT,Physical Disablity - Cost of Care,Countywide PD Service - Care,Domiciliary Care
Cambridgeshire County Council,29-Oct-20,51301463752,-974.25,THE RIVERSIDE GROUP LTD,CARE ESTABLISHMENT,LAC Placements,Placements - 16+,Childrens Lodgings
Cambridgeshire County Council,29-Oct-20,51301462966,-971.38,VOYAGE,CARE ESTABLISHMENT,LD - City Locality - Cost of Care,LD - City - Care,Residential Care
Cambridgeshire County Council,29-Oct-20,51301462966,-971.38,VOYAGE,CARE ESTABLISHMENT,LD - City Locality - Cost of Care,LD - City - Care,Residential Care
Cambridgeshire County Council,29-Oct-20,51301462966,-971.38,VOYAGE,CARE ESTABLISHMENT,LD - City Locality - Cost of Care,LD - City - Care,Residential Care
Cambridgeshire County Council,29-Oct-20,51301462966,-971.38,VOYAGE,CARE ESTABLISHMENT,LD - City Locality - Cost of Care,LD - City - Care,Residential Care
Cambridgeshire County Council,29-Oct-20,51301462966,-971.38,VOYAGE,CARE ESTABLISHMENT,LD - City Locality - Cost of Care,LD - City - Care,Residential Care
Cambridgeshire County Council,29-Oct-20,51301462966,-971.38,VOYAGE,CARE ESTABLISHMENT,LD - City Locality - Cost of Care,LD - City - Care,Residential Care
Cambridgeshire County Council,29-Oct-20,51301462966,-971.38,VOYAGE,CARE ESTABLISHMENT,LD - City Locality - Cost of Care,LD - City - Care,Residential Care
Cambridgeshire County Council,29-Oct-20,51301462966,-971.38,VOYAGE,CARE ESTABLISHMENT,LD - City Locality - Cost of Care,LD - City - Care,Residential Care
Cambridgeshire County Council,05-Oct-20,51301445012,-965.95,BROAD OAKS VCT LTD,CARE ESTABLISHMENT,LD - Fenland Locality - Cost of Care,LD - Fenland  - Care,Residential Care
Cambridgeshire County Council,05-Oct-20,51301445012,-965.95,BROAD OAKS VCT LTD,CARE ESTABLISHMENT,LD - Fenland Locality - Cost of Care,LD - Fenland  - Care,Residential Care
Cambridgeshire County Council,05-Oct-20,51301445012,-965.95,BROAD OAKS VCT LTD,CARE ESTABLISHMENT,LD - Fenland Locality - Cost of Care,LD - Fenland  - Care,Residential Care
Cambridgeshire County Council,05-Oct-20,51301445012,-965.95,BROAD OAKS VCT LTD,CARE ESTABLISHMENT,LD - Fenland Locality - Cost of Care,LD - Fenland  - Care,Residential Care
Cambridgeshire County Council,05-Oct-20,51301445012,-965.95,BROAD OAKS VCT LTD,CARE ESTABLISHMENT,LD - Fenland Locality - Cost of Care,LD - Fenland  - Care,Residential Care
Cambridgeshire County Council,05-Oct-20,51301445012,-965.95,BROAD OAKS VCT LTD,CARE ESTABLISHMENT,LD - Fenland Locality - Cost of Care,LD - Fenland  - Care,Residential Care
Cambridgeshire County Council,05-Oct-20,51301445012,-965.95,BROAD OAKS VCT LTD,CARE ESTABLISHMENT,LD - Fenland Locality - Cost of Care,LD - Fenland  - Care,Residential Care
Cambridgeshire County Council,05-Oct-20,51301445012,-965.95,BROAD OAKS VCT LTD,CARE ESTABLISHMENT,LD - Fenland Locality - Cost of Care,LD - Fenland  - Care,Residential Care
Cambridgeshire County Council,15-Oct-20,51301453538,-960.00,WOODLANDS CARE CENTRE,CARE ESTABLISHMENT,OPMH - City & South,Older People Mental Health City & South,Nursing Care
Cambridgeshire County Council,22-Oct-20,51300570066,-950.00,LITTLE MIRACLES PETERBOROUGH,LOCAL CLUBS & GROUPS,Children's Disability Direct Payments,CSC Direct Payments,Direct Payments
Cambridgeshire County Council,22-Oct-20,51300570108,-950.00,LITTLE MIRACLES PETERBOROUGH,LOCAL CLUBS & GROUPS,Children's Disability Direct Payments,CSC Direct Payments,Direct Payments
Cambridgeshire County Council,29-Oct-20,51301415416,-950.00,PARK HOUSE NURSING HOME,CARE ESTABLISHMENT,OP - Hunts Locality - Cost of Care,Hunts OP Team - Care,Nursing Care
Cambridgeshire County Council,29-Oct-20,51301415416,-950.00,PARK HOUSE NURSING HOME,CARE ESTABLISHMENT,OP - Hunts Locality - Cost of Care,Hunts OP Team - Care,Nursing Care
Cambridgeshire County Council,29-Oct-20,51301415416,-950.00,PARK HOUSE NURSING HOME,CARE ESTABLISHMENT,OP - Hunts Locality - Cost of Care,Hunts OP Team - Care,Nursing Care
Cambridgeshire County Council,29-Oct-20,51301415416,-950.00,PARK HOUSE NURSING HOME,CARE ESTABLISHMENT,OP - Hunts Locality - Cost of Care,Hunts OP Team - Care,Nursing Care
Cambridgeshire County Council,29-Oct-20,51301415416,-950.00,PARK HOUSE NURSING HOME,CARE ESTABLISHMENT,OP - Hunts Locality - Cost of Care,Hunts OP Team - Care,Nursing Care
Cambridgeshire County Council,29-Oct-20,51301415416,-950.00,PARK HOUSE NURSING HOME,CARE ESTABLISHMENT,OP - Hunts Locality - Cost of Care,Hunts OP Team - Care,Nursing Care
Cambridgeshire County Council,29-Oct-20,51301415416,-950.00,PARK HOUSE NURSING HOME,CARE ESTABLISHMENT,OP - Hunts Locality - Cost of Care,Hunts OP Team - Care,Nursing Care
Cambridgeshire County Council,29-Oct-20,51301415416,-950.00,PARK HOUSE NURSING HOME,CARE ESTABLISHMENT,OP - Hunts Locality - Cost of Care,Hunts OP Team - Care,Nursing Care
Cambridgeshire County Council,29-Oct-20,51301415416,-950.00,PARK HOUSE NURSING HOME,CARE ESTABLISHMENT,OP - Hunts Locality - Cost of Care,Hunts OP Team - Care,Nursing Care
Cambridgeshire County Council,29-Oct-20,51301415416,-950.00,PARK HOUSE NURSING HOME,CARE ESTABLISHMENT,OP - Hunts Locality - Cost of Care,Hunts OP Team - Care,Nursing Care
Cambridgeshire County Council,29-Oct-20,51301415416,-950.00,PARK HOUSE NURSING HOME,CARE ESTABLISHMENT,OP - Hunts Locality - Cost of Care,Hunts OP Team - Care,Nursing Care
Cambridgeshire County Council,29-Oct-20,51301415416,-950.00,PARK HOUSE NURSING HOME,CARE ESTABLISHMENT,OP - Hunts Locality - Cost of Care,Hunts OP Team - Care,Nursing Care
Cambridgeshire County Council,29-Oct-20,51301415416,-950.00,PARK HOUSE NURSING HOME,CARE ESTABLISHMENT,OP - Hunts Locality - Cost of Care,Hunts OP Team - Care,Nursing Care
Cambridgeshire County Council,29-Oct-20,51301415416,-950.00,PARK HOUSE NURSING HOME,CARE ESTABLISHMENT,OP - Hunts Locality - Cost of Care,Hunts OP Team - Care,Nursing Care
Cambridgeshire County Council,29-Oct-20,51301415416,-950.00,PARK HOUSE NURSING HOME,CARE ESTABLISHMENT,OP - Hunts Locality - Cost of Care,Hunts OP Team - Care,Nursing Care
Cambridgeshire County Council,29-Oct-20,51301415416,-950.00,PARK HOUSE NURSING HOME,CARE ESTABLISHMENT,OP - Hunts Locality - Cost of Care,Hunts OP Team - Care,Nursing Care
Cambridgeshire County Council,29-Oct-20,51301415416,-950.00,PARK HOUSE NURSING HOME,CARE ESTABLISHMENT,OP - Hunts Locality - Cost of Care,Hunts OP Team - Care,Nursing Care
Cambridgeshire County Council,29-Oct-20,51301415416,-950.00,PARK HOUSE NURSING HOME,CARE ESTABLISHMENT,OP - Hunts Locality - Cost of Care,Hunts OP Team - Care,Nursing Care
Cambridgeshire County Council,29-Oct-20,51301415416,-950.00,PARK HOUSE NURSING HOME,CARE ESTABLISHMENT,OP - Hunts Locality - Cost of Care,Hunts OP Team - Care,Nursing Care
Cambridgeshire County Council,29-Oct-20,51301415416,-950.00,PARK HOUSE NURSING HOME,CARE ESTABLISHMENT,OP - Hunts Locality - Cost of Care,Hunts OP Team - Care,Nursing Care
Cambridgeshire County Council,29-Oct-20,51301461213,-941.60,Redacted Personal Data ,INDIVIDUAL,OP - City & South Locality - Cost of Care,Older People - City & South - Care,Direct Payments
Cambridgeshire County Council,29-Oct-20,51301461213,-941.60,Redacted Personal Data ,INDIVIDUAL,OP - City & South Locality - Cost of Care,Older People - City & South - Care,Direct Payments
Cambridgeshire County Council,29-Oct-20,51301461213,-941.60,Redacted Personal Data ,INDIVIDUAL,OP - City & South Locality - Cost of Care,Older People - City & South - Care,Direct Payments
Cambridgeshire County Council,22-Oct-20,51301279127,-937.26,CAPSTONE FOSTER CARE (SOUTH EAST) LTD,CARE ESTABLISHMENT,LAC Placements,Placements - independent fostering,Agency Placements - Out of  County
Cambridgeshire County Council,05-Oct-20,51301446249,-934.44,BARCHESTER HEALTHCARE HOMES LTD,CARE ESTABLISHMENT,OP - East Cambs Locality - Cost of Care,East Cambs - O P Team - Care,Nursing Care
Cambridgeshire County Council,05-Oct-20,51301446249,-934.44,BARCHESTER HEALTHCARE HOMES LTD,CARE ESTABLISHMENT,OP - East Cambs Locality - Cost of Care,East Cambs - O P Team - Care,Nursing Care
Cambridgeshire County Council,13-Oct-20,51301452878,-932.56,THE NATIONAL FOSTERING AGENCY,CARE ESTABLISHMENT,LAC Placements,Placements - independent fostering,Agency Placements - Out of  County
Cambridgeshire County Council,29-Oct-20,51301463124,-925.00,MIDFIELD LODGE CARE CENTRE,CARE ESTABLISHMENT,Strategic Management - Adults,Adults Assistant Director,Nursing Care
Cambridgeshire County Council,29-Oct-20,51301463124,-925.00,MIDFIELD LODGE CARE CENTRE,CARE ESTABLISHMENT,Strategic Management - Adults,Adults Assistant Director,Nursing Care
Cambridgeshire County Council,29-Oct-20,51301463124,-925.00,MIDFIELD LODGE CARE CENTRE,CARE ESTABLISHMENT,Strategic Management - Adults,Adults Assistant Director,Nursing Care
Cambridgeshire County Council,29-Oct-20,51301463124,-925.00,MIDFIELD LODGE CARE CENTRE,CARE ESTABLISHMENT,Strategic Management - Adults,Adults Assistant Director,Nursing Care
Cambridgeshire County Council,29-Oct-20,51301463124,-925.00,MIDFIELD LODGE CARE CENTRE,CARE ESTABLISHMENT,Strategic Management - Adults,Adults Assistant Director,Nursing Care
Cambridgeshire County Council,29-Oct-20,51301463124,-925.00,MIDFIELD LODGE CARE CENTRE,CARE ESTABLISHMENT,Strategic Management - Adults,Adults Assistant Director,Nursing Care
Cambridgeshire County Council,29-Oct-20,51301463124,-925.00,MIDFIELD LODGE CARE CENTRE,CARE ESTABLISHMENT,Strategic Management - Adults,Adults Assistant Director,Nursing Care
Cambridgeshire County Council,29-Oct-20,51301463124,-925.00,MIDFIELD LODGE CARE CENTRE,CARE ESTABLISHMENT,Strategic Management - Adults,Adults Assistant Director,Nursing Care
Cambridgeshire County Council,29-Oct-20,51301463124,-925.00,MIDFIELD LODGE CARE CENTRE,CARE ESTABLISHMENT,Strategic Management - Adults,Adults Assistant Director,Nursing Care
Cambridgeshire County Council,05-Oct-20,51301444884,-915.06,PAULINE BURNETT HOUSE,CARE ESTABLISHMENT,LD - South Locality - Cost of Care,LD - South Cambs - Care,Residential Care
Cambridgeshire County Council,05-Oct-20,51301444884,-915.06,PAULINE BURNETT HOUSE,CARE ESTABLISHMENT,LD - South Locality - Cost of Care,LD - South Cambs - Care,Residential Care
Cambridgeshire County Council,05-Oct-20,51301444884,-915.06,PAULINE BURNETT HOUSE,CARE ESTABLISHMENT,LD - South Locality - Cost of Care,LD - South Cambs - Care,Residential Care
Cambridgeshire County Council,05-Oct-20,51301444884,-915.06,PAULINE BURNETT HOUSE,CARE ESTABLISHMENT,LD - South Locality - Cost of Care,LD - South Cambs - Care,Residential Care
Cambridgeshire County Council,29-Oct-20,51301462982,-915.06,PAULINE BURNETT HOUSE,CARE ESTABLISHMENT,LD - South Locality - Cost of Care,LD - South Cambs - Care,Residential Care
Cambridgeshire County Council,29-Oct-20,51301462982,-915.06,PAULINE BURNETT HOUSE,CARE ESTABLISHMENT,LD - South Locality - Cost of Care,LD - South Cambs - Care,Residential Care
Cambridgeshire County Council,29-Oct-20,51301462982,-915.06,PAULINE BURNETT HOUSE,CARE ESTABLISHMENT,LD - South Locality - Cost of Care,LD - South Cambs - Care,Residential Care
Cambridgeshire County Council,29-Oct-20,51301462982,-915.06,PAULINE BURNETT HOUSE,CARE ESTABLISHMENT,LD - South Locality - Cost of Care,LD - South Cambs - Care,Residential Care
Cambridgeshire County Council,09-Oct-20,51301451058,-900.00,WOODLANDS CARE CENTRE,CARE ESTABLISHMENT,OP - City & South Locality - Cost of Care,Older People - City & South - Care,Residential Care
Cambridgeshire County Council,09-Oct-20,51301451058,-900.00,WOODLANDS CARE CENTRE,CARE ESTABLISHMENT,OP - City & South Locality - Cost of Care,Older People - City & South - Care,Residential Care
Cambridgeshire County Council,09-Oct-20,51301451058,-900.00,WOODLANDS CARE CENTRE,CARE ESTABLISHMENT,OP - City & South Locality - Cost of Care,Older People - City & South - Care,Residential Care
Cambridgeshire County Council,09-Oct-20,51301451058,-900.00,WOODLANDS CARE CENTRE,CARE ESTABLISHMENT,OP - City & South Locality - Cost of Care,Older People - City & South - Care,Residential Care
Cambridgeshire County Council,09-Oct-20,51301451058,-900.00,WOODLANDS CARE CENTRE,CARE ESTABLISHMENT,OP - City & South Locality - Cost of Care,Older People - City & South - Care,Residential Care
Cambridgeshire County Council,09-Oct-20,51301451058,-900.00,WOODLANDS CARE CENTRE,CARE ESTABLISHMENT,OP - City & South Locality - Cost of Care,Older People - City & South - Care,Residential Care
Cambridgeshire County Council,29-Oct-20,51301461527,-900.00,SYMONDS HOUSE NURSING HOME,CARE ESTABLISHMENT,Strategic Management - Adults,Adults Assistant Director,Nursing Care
Cambridgeshire County Council,29-Oct-20,51301461527,-900.00,SYMONDS HOUSE NURSING HOME,CARE ESTABLISHMENT,Strategic Management - Adults,Adults Assistant Director,Nursing Care
Cambridgeshire County Council,29-Oct-20,51301461527,-900.00,SYMONDS HOUSE NURSING HOME,CARE ESTABLISHMENT,Strategic Management - Adults,Adults Assistant Director,Nursing Care
Cambridgeshire County Council,29-Oct-20,51301461527,-900.00,SYMONDS HOUSE NURSING HOME,CARE ESTABLISHMENT,Strategic Management - Adults,Adults Assistant Director,Nursing Care
Cambridgeshire County Council,29-Oct-20,51301301551,-900.00,EASTCOTTS NURSING HOME,CARE ESTABLISHMENT,OP - City & South Locality - Cost of Care,Older People - City & South - Care,Nursing Care
Cambridgeshire County Council,29-Oct-20,51301301551,-900.00,EASTCOTTS NURSING HOME,CARE ESTABLISHMENT,OP - City & South Locality - Cost of Care,Older People - City & South - Care,Nursing Care
Cambridgeshire County Council,29-Oct-20,51301301551,-900.00,EASTCOTTS NURSING HOME,CARE ESTABLISHMENT,OP - City & South Locality - Cost of Care,Older People - City & South - Care,Nursing Care
Cambridgeshire County Council,29-Oct-20,51301301551,-900.00,EASTCOTTS NURSING HOME,CARE ESTABLISHMENT,OP - City & South Locality - Cost of Care,Older People - City & South - Care,Nursing Care
Cambridgeshire County Council,29-Oct-20,51301301551,-900.00,EASTCOTTS NURSING HOME,CARE ESTABLISHMENT,OP - City & South Locality - Cost of Care,Older People - City & South - Care,Nursing Care
Cambridgeshire County Council,29-Oct-20,51301301551,-900.00,EASTCOTTS NURSING HOME,CARE ESTABLISHMENT,OP - City & South Locality - Cost of Care,Older People - City & South - Care,Nursing Care
Cambridgeshire County Council,29-Oct-20,51301301551,-900.00,EASTCOTTS NURSING HOME,CARE ESTABLISHMENT,OP - City & South Locality - Cost of Care,Older People - City & South - Care,Nursing Care
Cambridgeshire County Council,29-Oct-20,51301463182,-891.31,MENCAP (32 KINGS LANE),CARE ESTABLISHMENT,LD - Young Adults Team,LD - Young Adults - Special Needs,Residential Care
Cambridgeshire County Council,29-Oct-20,51301463182,-891.31,MENCAP (32 KINGS LANE),CARE ESTABLISHMENT,LD - Young Adults Team,LD - Young Adults - Special Needs,Residential Care
Cambridgeshire County Council,29-Oct-20,51301463182,-891.31,MENCAP (32 KINGS LANE),CARE ESTABLISHMENT,LD - Young Adults Team,LD - Young Adults - Special Needs,Residential Care
Cambridgeshire County Council,29-Oct-20,51301463182,-891.31,MENCAP (32 KINGS LANE),CARE ESTABLISHMENT,LD - Young Adults Team,LD - Young Adults - Special Needs,Residential Care
Cambridgeshire County Council,29-Oct-20,51301463182,-891.31,MENCAP (32 KINGS LANE),CARE ESTABLISHMENT,LD - Young Adults Team,LD - Young Adults - Special Needs,Residential Care
Cambridgeshire County Council,29-Oct-20,51301463182,-891.31,MENCAP (32 KINGS LANE),CARE ESTABLISHMENT,LD - Young Adults Team,LD - Young Adults - Special Needs,Residential Care
Cambridgeshire County Council,29-Oct-20,51301463182,-891.31,MENCAP (32 KINGS LANE),CARE ESTABLISHMENT,LD - Young Adults Team,LD - Young Adults - Special Needs,Residential Care
Cambridgeshire County Council,29-Oct-20,51301463182,-891.31,MENCAP (32 KINGS LANE),CARE ESTABLISHMENT,LD - Young Adults Team,LD - Young Adults - Special Needs,Residential Care
Cambridgeshire County Council,29-Oct-20,51301463182,-891.31,MENCAP (32 KINGS LANE),CARE ESTABLISHMENT,LD - Young Adults Team,LD - Young Adults - Special Needs,Residential Care
Cambridgeshire County Council,29-Oct-20,51301463182,-891.31,MENCAP (32 KINGS LANE),CARE ESTABLISHMENT,LD - Young Adults Team,LD - Young Adults - Special Needs,Residential Care
Cambridgeshire County Council,29-Oct-20,51301463182,-891.31,MENCAP (32 KINGS LANE),CARE ESTABLISHMENT,LD - Young Adults Team,LD - Young Adults - Special Needs,Residential Care
Cambridgeshire County Council,29-Oct-20,51301463182,-891.31,MENCAP (32 KINGS LANE),CARE ESTABLISHMENT,LD - Young Adults Team,LD - Young Adults - Special Needs,Residential Care
Cambridgeshire County Council,29-Oct-20,51301463182,-891.31,MENCAP (32 KINGS LANE),CARE ESTABLISHMENT,LD - Young Adults Team,LD - Young Adults - Special Needs,Residential Care
Cambridgeshire County Council,29-Oct-20,51301463182,-891.31,MENCAP (32 KINGS LANE),CARE ESTABLISHMENT,LD - Young Adults Team,LD - Young Adults - Special Needs,Residential Care
Cambridgeshire County Council,29-Oct-20,51301463182,-891.31,MENCAP (32 KINGS LANE),CARE ESTABLISHMENT,LD - Young Adults Team,LD - Young Adults - Special Needs,Residential Care
Cambridgeshire County Council,29-Oct-20,51301463182,-891.31,MENCAP (32 KINGS LANE),CARE ESTABLISHMENT,LD - Young Adults Team,LD - Young Adults - Special Needs,Residential Care
Cambridgeshire County Council,29-Oct-20,51301463182,-891.31,MENCAP (32 KINGS LANE),CARE ESTABLISHMENT,LD - Young Adults Team,LD - Young Adults - Special Needs,Residential Care
Cambridgeshire County Council,29-Oct-20,51301463182,-891.31,MENCAP (32 KINGS LANE),CARE ESTABLISHMENT,LD - Young Adults Team,LD - Young Adults - Special Needs,Residential Care
Cambridgeshire County Council,29-Oct-20,51301463182,-891.31,MENCAP (32 KINGS LANE),CARE ESTABLISHMENT,LD - Young Adults Team,LD - Young Adults - Special Needs,Residential Care
Cambridgeshire County Council,29-Oct-20,51301463182,-891.31,MENCAP (32 KINGS LANE),CARE ESTABLISHMENT,LD - Young Adults Team,LD - Young Adults - Special Needs,Residential Care
Cambridgeshire County Council,29-Oct-20,51301463182,-891.31,MENCAP (32 KINGS LANE),CARE ESTABLISHMENT,LD - Young Adults Team,LD - Young Adults - Special Needs,Residential Care
Cambridgeshire County Council,29-Oct-20,51301463182,-891.31,MENCAP (32 KINGS LANE),CARE ESTABLISHMENT,LD - Young Adults Team,LD - Young Adults - Special Needs,Residential Care
Cambridgeshire County Council,29-Oct-20,51301463182,-891.31,MENCAP (32 KINGS LANE),CARE ESTABLISHMENT,LD - Young Adults Team,LD - Young Adults - Special Needs,Residential Care
Cambridgeshire County Council,29-Oct-20,51301463182,-891.31,MENCAP (32 KINGS LANE),CARE ESTABLISHMENT,LD - Young Adults Team,LD - Young Adults - Special Needs,Residential Care
Cambridgeshire County Council,29-Oct-20,51301463182,-891.31,MENCAP (32 KINGS LANE),CARE ESTABLISHMENT,LD - Young Adults Team,LD - Young Adults - Special Needs,Residential Care
Cambridgeshire County Council,29-Oct-20,51301463182,-891.31,MENCAP (32 KINGS LANE),CARE ESTABLISHMENT,LD - Young Adults Team,LD - Young Adults - Special Needs,Residential Care
Cambridgeshire County Council,29-Oct-20,51301463182,-891.31,MENCAP (32 KINGS LANE),CARE ESTABLISHMENT,LD - Young Adults Team,LD - Young Adults - Special Needs,Residential Care
Cambridgeshire County Council,29-Oct-20,51301463182,-891.31,MENCAP (32 KINGS LANE),CARE ESTABLISHMENT,LD - Young Adults Team,LD - Young Adults - Special Needs,Residential Care
Cambridgeshire County Council,29-Oct-20,51301458987,-876.77,THERA EAST ANGLIA,CARE ESTABLISHMENT,LD - South Locality - Cost of Care,LD - South Cambs - Care,Domiciliary Care
Cambridgeshire County Council,29-Oct-20,51301458987,-876.77,THERA EAST ANGLIA,CARE ESTABLISHMENT,LD - South Locality - Cost of Care,LD - South Cambs - Care,Domiciliary Care
Cambridgeshire County Council,29-Oct-20,51301463182,-867.03,MENCAP (32 KINGS LANE),CARE ESTABLISHMENT,LD - Young Adults Team,LD - Young Adults - Special Needs,Residential Care
Cambridgeshire County Council,29-Oct-20,51301463182,-867.03,MENCAP (32 KINGS LANE),CARE ESTABLISHMENT,LD - Young Adults Team,LD - Young Adults - Special Needs,Residential Care
Cambridgeshire County Council,29-Oct-20,51301463182,-867.03,MENCAP (32 KINGS LANE),CARE ESTABLISHMENT,LD - Young Adults Team,LD - Young Adults - Special Needs,Residential Care
Cambridgeshire County Council,29-Oct-20,51301463182,-867.03,MENCAP (32 KINGS LANE),CARE ESTABLISHMENT,LD - Young Adults Team,LD - Young Adults - Special Needs,Residential Care
Cambridgeshire County Council,29-Oct-20,51301463182,-867.03,MENCAP (32 KINGS LANE),CARE ESTABLISHMENT,LD - Young Adults Team,LD - Young Adults - Special Needs,Residential Care
Cambridgeshire County Council,29-Oct-20,51301463182,-867.03,MENCAP (32 KINGS LANE),CARE ESTABLISHMENT,LD - Young Adults Team,LD - Young Adults - Special Needs,Residential Care
Cambridgeshire County Council,29-Oct-20,51301463182,-867.03,MENCAP (32 KINGS LANE),CARE ESTABLISHMENT,LD - Young Adults Team,LD - Young Adults - Special Needs,Residential Care
Cambridgeshire County Council,29-Oct-20,51301463182,-867.03,MENCAP (32 KINGS LANE),CARE ESTABLISHMENT,LD - Young Adults Team,LD - Young Adults - Special Needs,Residential Care
Cambridgeshire County Council,29-Oct-20,51301463182,-867.03,MENCAP (32 KINGS LANE),CARE ESTABLISHMENT,LD - Young Adults Team,LD - Young Adults - Special Needs,Residential Care
Cambridgeshire County Council,29-Oct-20,51301463182,-867.03,MENCAP (32 KINGS LANE),CARE ESTABLISHMENT,LD - Young Adults Team,LD - Young Adults - Special Needs,Residential Care
Cambridgeshire County Council,29-Oct-20,51301463182,-867.03,MENCAP (32 KINGS LANE),CARE ESTABLISHMENT,LD - Young Adults Team,LD - Young Adults - Special Needs,Residential Care
Cambridgeshire County Council,29-Oct-20,51301463182,-867.03,MENCAP (32 KINGS LANE),CARE ESTABLISHMENT,LD - Young Adults Team,LD - Young Adults - Special Needs,Residential Care
Cambridgeshire County Council,29-Oct-20,51301463182,-867.03,MENCAP (32 KINGS LANE),CARE ESTABLISHMENT,LD - Young Adults Team,LD - Young Adults - Special Needs,Residential Care
Cambridgeshire County Council,29-Oct-20,51301463182,-867.03,MENCAP (32 KINGS LANE),CARE ESTABLISHMENT,LD - Young Adults Team,LD - Young Adults - Special Needs,Residential Care
Cambridgeshire County Council,29-Oct-20,51301463182,-867.03,MENCAP (32 KINGS LANE),CARE ESTABLISHMENT,LD - Young Adults Team,LD - Young Adults - Special Needs,Residential Care
Cambridgeshire County Council,29-Oct-20,51301463182,-867.03,MENCAP (32 KINGS LANE),CARE ESTABLISHMENT,LD - Young Adults Team,LD - Young Adults - Special Needs,Residential Care
Cambridgeshire County Council,29-Oct-20,51301462427,-865.80,SANCTUARY HOUSING ASSOCIATION,CARE ESTABLISHMENT,AMH - City South,Cambridge Mental Health team,Supported Living
Cambridgeshire County Council,29-Oct-20,51301463068,-860.00,ELTISLEY MANOR (PSYCARE LTD),CARE ESTABLISHMENT,AMH - Hunts & Fens,Hunts Mental Health Team,Nursing Care
Cambridgeshire County Council,29-Oct-20,51301463068,-860.00,ELTISLEY MANOR (PSYCARE LTD),CARE ESTABLISHMENT,AMH - Hunts & Fens,Hunts Mental Health Team,Nursing Care
Cambridgeshire County Council,29-Oct-20,51301463068,-860.00,ELTISLEY MANOR (PSYCARE LTD),CARE ESTABLISHMENT,AMH - Hunts & Fens,Hunts Mental Health Team,Nursing Care
Cambridgeshire County Council,29-Oct-20,51301463068,-860.00,ELTISLEY MANOR (PSYCARE LTD),CARE ESTABLISHMENT,AMH - Hunts & Fens,Hunts Mental Health Team,Nursing Care
Cambridgeshire County Council,29-Oct-20,51301463068,-860.00,ELTISLEY MANOR (PSYCARE LTD),CARE ESTABLISHMENT,AMH - Hunts & Fens,Hunts Mental Health Team,Nursing Care
Cambridgeshire County Council,29-Oct-20,51301463068,-860.00,ELTISLEY MANOR (PSYCARE LTD),CARE ESTABLISHMENT,AMH - Hunts & Fens,Hunts Mental Health Team,Nursing Care
Cambridgeshire County Council,29-Oct-20,51301463068,-860.00,ELTISLEY MANOR (PSYCARE LTD),CARE ESTABLISHMENT,AMH - Hunts & Fens,Hunts Mental Health Team,Nursing Care
Cambridgeshire County Council,29-Oct-20,51301463068,-860.00,ELTISLEY MANOR (PSYCARE LTD),CARE ESTABLISHMENT,AMH - Hunts & Fens,Hunts Mental Health Team,Nursing Care
Cambridgeshire County Council,29-Oct-20,51301463068,-860.00,ELTISLEY MANOR (PSYCARE LTD),CARE ESTABLISHMENT,AMH - Hunts & Fens,Hunts Mental Health Team,Nursing Care
Cambridgeshire County Council,29-Oct-20,51301463068,-860.00,ELTISLEY MANOR (PSYCARE LTD),CARE ESTABLISHMENT,AMH - Hunts & Fens,Hunts Mental Health Team,Nursing Care
Cambridgeshire County Council,29-Oct-20,51301463068,-860.00,ELTISLEY MANOR (PSYCARE LTD),CARE ESTABLISHMENT,AMH - Hunts & Fens,Hunts Mental Health Team,Nursing Care
Cambridgeshire County Council,29-Oct-20,51301463068,-860.00,ELTISLEY MANOR (PSYCARE LTD),CARE ESTABLISHMENT,AMH - Hunts & Fens,Hunts Mental Health Team,Nursing Care
Cambridgeshire County Council,29-Oct-20,51301463068,-860.00,ELTISLEY MANOR (PSYCARE LTD),CARE ESTABLISHMENT,AMH - Hunts & Fens,Hunts Mental Health Team,Nursing Care
Cambridgeshire County Council,29-Oct-20,51301463068,-860.00,ELTISLEY MANOR (PSYCARE LTD),CARE ESTABLISHMENT,AMH - Hunts & Fens,Hunts Mental Health Team,Nursing Care
Cambridgeshire County Council,29-Oct-20,51301463068,-860.00,ELTISLEY MANOR (PSYCARE LTD),CARE ESTABLISHMENT,AMH - Hunts & Fens,Hunts Mental Health Team,Nursing Care
Cambridgeshire County Council,29-Oct-20,51301463068,-860.00,ELTISLEY MANOR (PSYCARE LTD),CARE ESTABLISHMENT,AMH - Hunts & Fens,Hunts Mental Health Team,Nursing Care
Cambridgeshire County Council,29-Oct-20,51301463068,-860.00,ELTISLEY MANOR (PSYCARE LTD),CARE ESTABLISHMENT,AMH - Hunts & Fens,Hunts Mental Health Team,Nursing Care
Cambridgeshire County Council,29-Oct-20,51301463068,-860.00,ELTISLEY MANOR (PSYCARE LTD),CARE ESTABLISHMENT,AMH - Hunts & Fens,Hunts Mental Health Team,Nursing Care
Cambridgeshire County Council,29-Oct-20,51301463068,-860.00,ELTISLEY MANOR (PSYCARE LTD),CARE ESTABLISHMENT,AMH - Hunts & Fens,Hunts Mental Health Team,Nursing Care
Cambridgeshire County Council,29-Oct-20,51301463068,-860.00,ELTISLEY MANOR (PSYCARE LTD),CARE ESTABLISHMENT,AMH - Hunts & Fens,Hunts Mental Health Team,Nursing Care
Cambridgeshire County Council,29-Oct-20,51301463068,-860.00,ELTISLEY MANOR (PSYCARE LTD),CARE ESTABLISHMENT,AMH - Hunts & Fens,Hunts Mental Health Team,Nursing Care
Cambridgeshire County Council,29-Oct-20,51301463068,-860.00,ELTISLEY MANOR (PSYCARE LTD),CARE ESTABLISHMENT,AMH - Hunts & Fens,Hunts Mental Health Team,Nursing Care
Cambridgeshire County Council,29-Oct-20,51301463068,-860.00,ELTISLEY MANOR (PSYCARE LTD),CARE ESTABLISHMENT,AMH - Hunts & Fens,Hunts Mental Health Team,Nursing Care
Cambridgeshire County Council,29-Oct-20,51301463068,-860.00,ELTISLEY MANOR (PSYCARE LTD),CARE ESTABLISHMENT,AMH - Hunts & Fens,Hunts Mental Health Team,Nursing Care
Cambridgeshire County Council,29-Oct-20,51301463068,-860.00,ELTISLEY MANOR (PSYCARE LTD),CARE ESTABLISHMENT,AMH - Hunts & Fens,Hunts Mental Health Team,Nursing Care
Cambridgeshire County Council,05-Oct-20,51301447406,-856.80,MEADOWS HOMECARE SERVICES,CARE ESTABLISHMENT,Physical Disablity - Cost of Care,Countywide PD Service - Care,Homecare
Cambridgeshire County Council,05-Oct-20,51301447406,-856.80,MEADOWS HOMECARE SERVICES,CARE ESTABLISHMENT,Physical Disablity - Cost of Care,Countywide PD Service - Care,Homecare
Cambridgeshire County Council,05-Oct-20,51301447406,-856.80,MEADOWS HOMECARE SERVICES,CARE ESTABLISHMENT,Physical Disablity - Cost of Care,Countywide PD Service - Care,Homecare
Cambridgeshire County Council,05-Oct-20,51301447406,-856.80,MEADOWS HOMECARE SERVICES,CARE ESTABLISHMENT,Physical Disablity - Cost of Care,Countywide PD Service - Care,Homecare
Cambridgeshire County Council,05-Oct-20,51301447354,-856.80,MEADOWS HOMECARE SERVICES,CARE ESTABLISHMENT,OP - City & South Locality - Cost of Care,Older People - City & South - Care,Homecare
Cambridgeshire County Council,05-Oct-20,51301447354,-856.80,MEADOWS HOMECARE SERVICES,CARE ESTABLISHMENT,OP - City & South Locality - Cost of Care,Older People - City & South - Care,Homecare
Cambridgeshire County Council,05-Oct-20,51301447354,-856.80,MEADOWS HOMECARE SERVICES,CARE ESTABLISHMENT,OP - City & South Locality - Cost of Care,Older People - City & South - Care,Homecare
Cambridgeshire County Council,05-Oct-20,51301447354,-856.80,MEADOWS HOMECARE SERVICES,CARE ESTABLISHMENT,OP - City & South Locality - Cost of Care,Older People - City & South - Care,Homecare
Cambridgeshire County Council,05-Oct-20,51301447354,-856.80,MEADOWS HOMECARE SERVICES,CARE ESTABLISHMENT,OP - City & South Locality - Cost of Care,Older People - City & South - Care,Homecare
Cambridgeshire County Council,05-Oct-20,51301447354,-856.80,MEADOWS HOMECARE SERVICES,CARE ESTABLISHMENT,OP - City & South Locality - Cost of Care,Older People - City & South - Care,Homecare
Cambridgeshire County Council,29-Oct-20,51301463560,-853.31,SENSE FOR DEAF BLIND PEOPLE,CARE ESTABLISHMENT,LD - South Locality - Cost of Care,LD - South Cambs - Care,Day Care
Cambridgeshire County Council,05-Oct-20,51301448707,-852.60,TRINITY CARESTAFF SOLUTIONS LIMITED,CARE ESTABLISHMENT,Physical Disablity - Cost of Care,Countywide PD Service - Care,Domiciliary Care
Cambridgeshire County Council,05-Oct-20,51301448707,-852.60,TRINITY CARESTAFF SOLUTIONS LIMITED,CARE ESTABLISHMENT,Physical Disablity - Cost of Care,Countywide PD Service - Care,Domiciliary Care
Cambridgeshire County Council,05-Oct-20,51301448707,-852.60,TRINITY CARESTAFF SOLUTIONS LIMITED,CARE ESTABLISHMENT,Physical Disablity - Cost of Care,Countywide PD Service - Care,Domiciliary Care
Cambridgeshire County Council,05-Oct-20,51301448707,-852.60,TRINITY CARESTAFF SOLUTIONS LIMITED,CARE ESTABLISHMENT,Physical Disablity - Cost of Care,Countywide PD Service - Care,Domiciliary Care
Cambridgeshire County Council,05-Oct-20,51301448707,-852.60,TRINITY CARESTAFF SOLUTIONS LIMITED,CARE ESTABLISHMENT,Physical Disablity - Cost of Care,Countywide PD Service - Care,Domiciliary Care
Cambridgeshire County Council,29-Oct-20,51301463182,-850.03,MENCAP (32 KINGS LANE),CARE ESTABLISHMENT,LD - Young Adults Team,LD - Young Adults - Special Needs,Residential Care
Cambridgeshire County Council,29-Oct-20,51301463182,-850.03,MENCAP (32 KINGS LANE),CARE ESTABLISHMENT,LD - Young Adults Team,LD - Young Adults - Special Needs,Residential Care
Cambridgeshire County Council,29-Oct-20,51301463182,-850.03,MENCAP (32 KINGS LANE),CARE ESTABLISHMENT,LD - Young Adults Team,LD - Young Adults - Special Needs,Residential Care
Cambridgeshire County Council,29-Oct-20,51301463182,-850.03,MENCAP (32 KINGS LANE),CARE ESTABLISHMENT,LD - Young Adults Team,LD - Young Adults - Special Needs,Residential Care
Cambridgeshire County Council,29-Oct-20,51301463182,-850.03,MENCAP (32 KINGS LANE),CARE ESTABLISHMENT,LD - Young Adults Team,LD - Young Adults - Special Needs,Residential Care
Cambridgeshire County Council,29-Oct-20,51301463182,-850.03,MENCAP (32 KINGS LANE),CARE ESTABLISHMENT,LD - Young Adults Team,LD - Young Adults - Special Needs,Residential Care
Cambridgeshire County Council,29-Oct-20,51301463182,-850.03,MENCAP (32 KINGS LANE),CARE ESTABLISHMENT,LD - Young Adults Team,LD - Young Adults - Special Needs,Residential Care
Cambridgeshire County Council,29-Oct-20,51301463182,-850.03,MENCAP (32 KINGS LANE),CARE ESTABLISHMENT,LD - Young Adults Team,LD - Young Adults - Special Needs,Residential Care
Cambridgeshire County Council,29-Oct-20,51301463182,-850.03,MENCAP (32 KINGS LANE),CARE ESTABLISHMENT,LD - Young Adults Team,LD - Young Adults - Special Needs,Residential Care
Cambridgeshire County Council,29-Oct-20,51301463182,-850.03,MENCAP (32 KINGS LANE),CARE ESTABLISHMENT,LD - Young Adults Team,LD - Young Adults - Special Needs,Residential Care
Cambridgeshire County Council,29-Oct-20,51301463182,-850.03,MENCAP (32 KINGS LANE),CARE ESTABLISHMENT,LD - Young Adults Team,LD - Young Adults - Special Needs,Residential Care
Cambridgeshire County Council,29-Oct-20,51301463182,-850.03,MENCAP (32 KINGS LANE),CARE ESTABLISHMENT,LD - Young Adults Team,LD - Young Adults - Special Needs,Residential Care
Cambridgeshire County Council,29-Oct-20,51301463182,-850.03,MENCAP (32 KINGS LANE),CARE ESTABLISHMENT,LD - Young Adults Team,LD - Young Adults - Special Needs,Residential Care
Cambridgeshire County Council,29-Oct-20,51301463182,-850.03,MENCAP (32 KINGS LANE),CARE ESTABLISHMENT,LD - Young Adults Team,LD - Young Adults - Special Needs,Residential Care
Cambridgeshire County Council,29-Oct-20,51301463182,-850.03,MENCAP (32 KINGS LANE),CARE ESTABLISHMENT,LD - Young Adults Team,LD - Young Adults - Special Needs,Residential Care
Cambridgeshire County Council,29-Oct-20,51301463182,-850.03,MENCAP (32 KINGS LANE),CARE ESTABLISHMENT,LD - Young Adults Team,LD - Young Adults - Special Needs,Residential Care
Cambridgeshire County Council,29-Oct-20,51301463182,-850.03,MENCAP (32 KINGS LANE),CARE ESTABLISHMENT,LD - Young Adults Team,LD - Young Adults - Special Needs,Residential Care
Cambridgeshire County Council,29-Oct-20,51301463182,-850.03,MENCAP (32 KINGS LANE),CARE ESTABLISHMENT,LD - Young Adults Team,LD - Young Adults - Special Needs,Residential Care
Cambridgeshire County Council,29-Oct-20,51301463182,-850.03,MENCAP (32 KINGS LANE),CARE ESTABLISHMENT,LD - Young Adults Team,LD - Young Adults - Special Needs,Residential Care
Cambridgeshire County Council,29-Oct-20,51301463182,-850.03,MENCAP (32 KINGS LANE),CARE ESTABLISHMENT,LD - Young Adults Team,LD - Young Adults - Special Needs,Residential Care
Cambridgeshire County Council,29-Oct-20,51301463182,-850.03,MENCAP (32 KINGS LANE),CARE ESTABLISHMENT,LD - Young Adults Team,LD - Young Adults - Special Needs,Residential Care
Cambridgeshire County Council,29-Oct-20,51301463182,-850.03,MENCAP (32 KINGS LANE),CARE ESTABLISHMENT,LD - Young Adults Team,LD - Young Adults - Special Needs,Residential Care
Cambridgeshire County Council,29-Oct-20,51301463182,-850.03,MENCAP (32 KINGS LANE),CARE ESTABLISHMENT,LD - Young Adults Team,LD - Young Adults - Special Needs,Residential Care
Cambridgeshire County Council,29-Oct-20,51301463182,-850.03,MENCAP (32 KINGS LANE),CARE ESTABLISHMENT,LD - Young Adults Team,LD - Young Adults - Special Needs,Residential Care
Cambridgeshire County Council,29-Oct-20,51301463182,-850.03,MENCAP (32 KINGS LANE),CARE ESTABLISHMENT,LD - Young Adults Team,LD - Young Adults - Special Needs,Residential Care
Cambridgeshire County Council,29-Oct-20,51301463182,-850.03,MENCAP (32 KINGS LANE),CARE ESTABLISHMENT,LD - Young Adults Team,LD - Young Adults - Special Needs,Residential Care
Cambridgeshire County Council,29-Oct-20,51301463182,-850.03,MENCAP (32 KINGS LANE),CARE ESTABLISHMENT,LD - Young Adults Team,LD - Young Adults - Special Needs,Residential Care
Cambridgeshire County Council,29-Oct-20,51301463182,-850.03,MENCAP (32 KINGS LANE),CARE ESTABLISHMENT,LD - Young Adults Team,LD - Young Adults - Special Needs,Residential Care
Cambridgeshire County Council,29-Oct-20,51301463182,-850.03,MENCAP (32 KINGS LANE),CARE ESTABLISHMENT,LD - Young Adults Team,LD - Young Adults - Special Needs,Residential Care
Cambridgeshire County Council,29-Oct-20,51301463182,-850.03,MENCAP (32 KINGS LANE),CARE ESTABLISHMENT,LD - Young Adults Team,LD - Young Adults - Special Needs,Residential Care
Cambridgeshire County Council,29-Oct-20,51301463182,-850.03,MENCAP (32 KINGS LANE),CARE ESTABLISHMENT,LD - Young Adults Team,LD - Young Adults - Special Needs,Residential Care
Cambridgeshire County Council,29-Oct-20,51301463182,-850.03,MENCAP (32 KINGS LANE),CARE ESTABLISHMENT,LD - Young Adults Team,LD - Young Adults - Special Needs,Residential Care
Cambridgeshire County Council,29-Oct-20,51301463182,-850.03,MENCAP (32 KINGS LANE),CARE ESTABLISHMENT,LD - Young Adults Team,LD - Young Adults - Special Needs,Residential Care
Cambridgeshire County Council,29-Oct-20,51301463182,-850.03,MENCAP (32 KINGS LANE),CARE ESTABLISHMENT,LD - Young Adults Team,LD - Young Adults - Special Needs,Residential Care
Cambridgeshire County Council,29-Oct-20,51301463182,-850.03,MENCAP (32 KINGS LANE),CARE ESTABLISHMENT,LD - Young Adults Team,LD - Young Adults - Special Needs,Residential Care
Cambridgeshire County Council,29-Oct-20,51301463182,-850.03,MENCAP (32 KINGS LANE),CARE ESTABLISHMENT,LD - Young Adults Team,LD - Young Adults - Special Needs,Residential Care
Cambridgeshire County Council,29-Oct-20,51301463430,-850.00,ABBEY HEALTHCARE (HUNTINGDON) LTD,CARE ESTABLISHMENT,Strategic Management - Adults,Adults Assistant Director,Nursing Care
Cambridgeshire County Council,29-Oct-20,51301463430,-850.00,ABBEY HEALTHCARE (HUNTINGDON) LTD,CARE ESTABLISHMENT,Strategic Management - Adults,Adults Assistant Director,Nursing Care
Cambridgeshire County Council,29-Oct-20,51301463430,-850.00,ABBEY HEALTHCARE (HUNTINGDON) LTD,CARE ESTABLISHMENT,Strategic Management - Adults,Adults Assistant Director,Nursing Care
Cambridgeshire County Council,29-Oct-20,51301463430,-850.00,ABBEY HEALTHCARE (HUNTINGDON) LTD,CARE ESTABLISHMENT,Strategic Management - Adults,Adults Assistant Director,Nursing Care
Cambridgeshire County Council,29-Oct-20,51301463430,-850.00,ABBEY HEALTHCARE (HUNTINGDON) LTD,CARE ESTABLISHMENT,Strategic Management - Adults,Adults Assistant Director,Nursing Care
Cambridgeshire County Council,29-Oct-20,51301463430,-850.00,ABBEY HEALTHCARE (HUNTINGDON) LTD,CARE ESTABLISHMENT,Strategic Management - Adults,Adults Assistant Director,Nursing Care
Cambridgeshire County Council,29-Oct-20,51301459654,-850.00,A CLASS CARE LTD,CARE ESTABLISHMENT,Physical Disablity - Cost of Care,Countywide PD Service - Care,Homecare
Cambridgeshire County Council,09-Oct-20,51301451128,-841.95,MAYFIELD HEATH FARM,CARE ESTABLISHMENT,LD - Hunts Locality - Cost of Care,LD - Huntingdonshire - Care,Supported Living
Cambridgeshire County Council,29-Oct-20,51301463103,-835.71,KELAM HEALTH CARE LTD T/A PAXTON HALL CARE HOME,CARE ESTABLISHMENT,Physical Disablity - Cost of Care,Countywide PD Service - Care,Residential Care
Cambridgeshire County Council,05-Oct-20,51301448646,-825.00,BLACK SWAN CARE GROUP LTD,CARE ESTABLISHMENT,OP - Fenland Locality - Cost of Care,Older People - Fenland - Care,Residential Care
Cambridgeshire County Council,05-Oct-20,51301448646,-825.00,BLACK SWAN CARE GROUP LTD,CARE ESTABLISHMENT,OP - Fenland Locality - Cost of Care,Older People - Fenland - Care,Residential Care
Cambridgeshire County Council,05-Oct-20,51301448646,-825.00,BLACK SWAN CARE GROUP LTD,CARE ESTABLISHMENT,OP - Fenland Locality - Cost of Care,Older People - Fenland - Care,Residential Care
Cambridgeshire County Council,29-Oct-20,51301461525,-822.44,ALIWAL HEALTHCARE LTD,CARE ESTABLISHMENT,OP - Hunts Locality - Cost of Care,Hunts OP Team - Care,Nursing Care
Cambridgeshire County Council,29-Oct-20,51301461525,-822.44,ALIWAL HEALTHCARE LTD,CARE ESTABLISHMENT,OP - Hunts Locality - Cost of Care,Hunts OP Team - Care,Nursing Care
Cambridgeshire County Council,29-Oct-20,51301461525,-822.44,ALIWAL HEALTHCARE LTD,CARE ESTABLISHMENT,OP - Hunts Locality - Cost of Care,Hunts OP Team - Care,Nursing Care
Cambridgeshire County Council,29-Oct-20,51301461525,-822.44,ALIWAL HEALTHCARE LTD,CARE ESTABLISHMENT,OP - Hunts Locality - Cost of Care,Hunts OP Team - Care,Nursing Care
Cambridgeshire County Council,29-Oct-20,51301461525,-822.44,ALIWAL HEALTHCARE LTD,CARE ESTABLISHMENT,OP - Hunts Locality - Cost of Care,Hunts OP Team - Care,Nursing Care
Cambridgeshire County Council,29-Oct-20,51301461525,-822.44,ALIWAL HEALTHCARE LTD,CARE ESTABLISHMENT,OP - Hunts Locality - Cost of Care,Hunts OP Team - Care,Nursing Care
